Directorate,Department,Expenditure Type,Ref.Doc.1,Vendor Name,Expenditure Amount (exc VAT),Payment Date
Assurance,Assurance,Subscriptions,60086795,ASSOCIATION OF ELECTORAL ADMINISTRA,47.50,04/10/2017
Assurance,Assurance,Stationery,40002594,OFFICE DEPOT UK LTD,26.32,18/10/2017
Assurance,Assurance,General Office Expenses,40002603,OFFICE DEPOT UK LTD,5.73,24/10/2017
Assurance,Assurance,Postage,60088035,ROYAL MAIL GROUP LIMITED,"1,128.63",11/10/2017
Assurance,Assurance,Postage,60089781,ROYAL MAIL GROUP LIMITED,"2,351.98",20/10/2017
Assurance,Assurance,Postage,60089787,ROYAL MAIL GROUP LIMITED,"1,340.04",20/10/2017
Assurance,Assurance,Hardware Purchases,60089562,TWOFOLD LTD,439.79,18/10/2017
Assurance,Assurance,Hardware Purchases,60089578,TWOFOLD LTD,185.82,18/10/2017
Assurance,Assurance,Rents,60082656,BISHOP DOUGLASS CATHOLIC SCHOOL ACADEMY,315.52,26/10/2017
Assurance,Assurance,Rents,60081222,ETZ CHAIM JEWISH PRIMARY SCHOOL,"1,218.75",31/10/2017
Assurance,Assurance,Rents,60087686,FRIERN BARNET HUT MANAGEMENT COMMIT,750.00,10/10/2017
Assurance,Assurance,Rents,60088758,ARTS DEPOT PRODUCTIONS LTD,"1,807.00",05/10/2017
Assurance,Assurance,Training,60087577,LLG LEGAL TRAINING,215.00,12/10/2017
Assurance,Assurance,Training,60087877,LLG LEGAL TRAINING,215.00,12/10/2017
Assurance,Assurance,Training,60088105,LLG LEGAL TRAINING,215.00,18/10/2017
Assurance,Assurance,Training,60089726,MODERN MINDSET LTD,650.00,19/10/2017
Assurance,Assurance,Transport Hire Charges,80012823,S7 CHAUFFEURS,570.00,06/10/2017
Assurance,Assurance,Other Indirect Employee Expens,80012940,THE MAYOR'S CHARITY APPEAL,90.00,10/10/2017
Assurance,Assurance,Other Indirect Employee Expens,80012954,MAYOR'S SPECIAL FUND APPEAL,150.00,10/10/2017
Assurance,Assurance,Other Indirect Employee Expens,80013327,ISIS WARD ROOM,30.00,31/10/2017
Assurance,Assurance,General Office Expenses,40002480,OFFICE DEPOT UK LTD,0.30,12/10/2017
Assurance,Assurance,Ttl IT & Comms,60087573,BRITISH TELECOM PLC,"5,648.96",13/10/2017
Assurance,Assurance,Professional Services,60087734,PRICEWATERHOUSE COOPERS,"30,973.44",12/10/2017
Assurance,Assurance,Subscriptions,60086354,TAMESIDE METROPOLITAN BOROUGH COUNC,465.82,09/10/2017
Assurance,Assurance,Subscriptions,60088182,COMPANIES HOUSE,13.00,20/10/2017
Assurance,Assurance,Training,60088267,ITS TRAINING (UK) LTD,"1,980.00",05/10/2017
Assurance,Assurance,Training,60088283,ITS TRAINING (UK) LTD,"3,838.00",05/10/2017
Assurance,Assurance,Miscellaneous Expenses,80012365,JEEVES INTERN,718.50,02/10/2017
Assurance,Assurance,Clothing - Protective Clothing,80013258,LJB CLOTHING,562.30,20/10/2017
Assurance,Assurance,Equipment and Materials Purcha,60087434,PRIME PRODUCTION LTD,39.50,09/10/2017
Assurance,Assurance,Equipment and Materials Purcha,60086980,PRIME PRODUCTION LTD,145.00,13/10/2017
Assurance,Assurance,Equipment and Materials Purcha,60089111,PRIME PRODUCTION LTD,39.50,23/10/2017
Assurance,Assurance,Equipment and Materials Purcha,60089135,PRIME PRODUCTION LTD,39.50,23/10/2017
Assurance,Assurance,Equipment and Materials Purcha,60089159,PRIME PRODUCTION LTD,54.50,23/10/2017
Central Expenses,Central Expenses,Other Establishments - Third P,60089200,CITY OF LONDON,"94,147.00",12/10/2017
Central Expenses,Central Expenses,Other Local Authorities - Thir,60089032,LONDON COUNCILS,"83,918.00",31/10/2017
Central Expenses,Central Expenses,Audit Fee,60089181,BDO LLP,"85,012.50",12/10/2017
Central Expenses,Central Expenses,Audit Fee,60089192,BDO LLP,"10,500.00",12/10/2017
Central Expenses,Central Expenses,Insurance Claims,60082181,WEIGHTMANS LLP,"1,000.00",03/10/2017
Central Expenses,Central Expenses,Insurance Claims,60088799,WEIGHTMANS LLP,448.50,06/10/2017
Central Expenses,Central Expenses,Insurance Claims,60081487,WEIGHTMANS LLP,600.00,16/10/2017
Central Expenses,Central Expenses,Insurance Claims,60081539,WEIGHTMANS LLP,994.00,16/10/2017
Central Expenses,Central Expenses,Insurance Claims,60081544,WEIGHTMANS LLP,400.00,16/10/2017
Central Expenses,Central Expenses,Insurance Claims,60081555,WEIGHTMANS LLP,"1,111.31",16/10/2017
Central Expenses,Central Expenses,Insurance Claims,60082173,WEIGHTMANS LLP,"1,582.10",16/10/2017
Central Expenses,Central Expenses,Insurance Claims,60084483,WEIGHTMANS LLP,"1,000.00",16/10/2017
Central Expenses,Central Expenses,Insurance Claims,60088621,WEIGHTMANS LLP,"1,000.00",16/10/2017
Central Expenses,Central Expenses,Insurance Claims,60089471,WEIGHTMANS LLP,"1,800.00",18/10/2017
Central Expenses,Central Expenses,Insurance Claims,60088240,WEIGHTMANS LLP,600.00,19/10/2017
Central Expenses,Central Expenses,Insurance Claims,60088254,WEIGHTMANS LLP,"1,012.20",19/10/2017
Central Expenses,Central Expenses,Insurance Claims,60080010,WEIGHTMANS LLP,"1,600.00",24/10/2017
Central Expenses,Central Expenses,Insurance Claims,60086871,WEIGHTMANS LLP,"1,000.00",24/10/2017
Central Expenses,Central Expenses,Insurance Claims,80012880,DWP COMPENSATION RECOVERY UNIT,637.00,06/10/2017
Central Expenses,Central Expenses,Insurance Claims,80012943,DWP COMPENSATION RECOVERY UNIT,"7,670.40",13/10/2017
Central Expenses,Central Expenses,Insurance Claims,60088623,JOHNSON AUSTIN PARTNERSHIP LLP,150.00,11/10/2017
Central Expenses,Central Expenses,Insurance Claims,80012434,BDE LAW,"1,000.00",02/10/2017
Central Expenses,Central Expenses,Insurance Claims,80012441,PUBLISH - REDACT NAME,670.00,02/10/2017
Central Expenses,Central Expenses,Insurance Claims,80012443,PUBLISH - REDACT NAME,420.00,02/10/2017
Central Expenses,Central Expenses,Insurance Claims,80012444,EAGLE LODGE FLAT MANAGEMENT,180.00,02/10/2017
Central Expenses,Central Expenses,Insurance Claims,80012825,DEPT FOR WORKS AND PENSIONS,573.30,06/10/2017
Central Expenses,Central Expenses,Insurance Claims,80012861,PUBLISH - REDACT NAME,55.00,06/10/2017
Central Expenses,Central Expenses,Insurance Claims,80012890,PUBLISH - REDACT NAME,"2,000.00",06/10/2017
Central Expenses,Central Expenses,Insurance Claims,80012905,PUBLISH - REDACT NAME,108.00,06/10/2017
Central Expenses,Central Expenses,Insurance Claims,80013067,IME LAW,816.00,13/10/2017
Central Expenses,Central Expenses,Insurance Claims,80013068,HAMILTON CLAIMS SOLUTIONS,"2,084.06",13/10/2017
Central Expenses,Central Expenses,Insurance Claims,80013069,CHURCHILL INSURANCE,"1,450.00",13/10/2017
Central Expenses,Central Expenses,Insurance Claims,80013070,PUBLISH - REDACT NAME,75.00,13/10/2017
Central Expenses,Central Expenses,Insurance Claims,80013075,ADMIRAL INSURANCE,"1,142.93",13/10/2017
Central Expenses,Central Expenses,Insurance Claims,80013077,ELI MOTORS LTD,"2,146.55",16/10/2017
Central Expenses,Central Expenses,Insurance Claims,80013079,PUBLISH - REDACT NAME,"1,436.94",16/10/2017
Central Expenses,Central Expenses,Insurance Claims,80013084,DAC BEACHCROFT,"6,500.00",16/10/2017
Central Expenses,Central Expenses,Insurance Claims,80013085,QM LEGAL COSTS,580.57,16/10/2017
Central Expenses,Central Expenses,Insurance Claims,80013089,ADMIRAL LAW,"2,879.43",16/10/2017
Central Expenses,Central Expenses,Insurance Claims,80013154,ENABLE LAW,"14,974.00",18/10/2017
Central Expenses,Central Expenses,Insurance Claims,80013188,PLEXUS LAW LTD,"14,409.02",18/10/2017
Central Expenses,Central Expenses,Insurance Claims,80013196,PUBLISH - REDACT NAME,"9,066.80",17/10/2017
Central Expenses,Central Expenses,Insurance Claims,80013200,SLATER GORDON,"3,355.00",19/10/2017
Central Expenses,Central Expenses,Insurance Claims,80013202,SLATER GORDON,816.00,19/10/2017
Central Expenses,Central Expenses,Insurance Claims,80013215,ACCIDENT INJURY SOLICITORS,240.00,23/10/2017
Central Expenses,Central Expenses,Insurance Claims,80013233,QM LEGAL COSTS,655.88,19/10/2017
Central Expenses,Central Expenses,Insurance Claims,80013290,OSBORNES SOLICITORS,"15,500.00",24/10/2017
Central Expenses,Central Expenses,Insurance Claims,80013291,QM LEGAL COSTS,943.66,24/10/2017
Central Expenses,Central Expenses,Insurance Claims,80013299,PUBLISH - REDACT NAME,"2,250.00",24/10/2017
Central Expenses,Central Expenses,Subscriptions,60088449,LONDON BOROUGH OF EALING,"36,269.00",02/10/2017
Central Expenses,Central Expenses,Tax Deducted-Income Tax,80012856,HM REVENUE & CUSTOMS,"2,938.68",20/10/2017
Central Expenses,Central Expenses,Tax Deducted-Income Tax,80013282,HM REVENUE & CUSTOMS,"2,938.68",23/10/2017
Central Expenses,Central Expenses,Other Local Authorities - Thir,GLAPRECEPT,GREATER LONDON AUTHORITY,"4,014,752.61",12/10/2017
Commercial,Customer Support Group,Building Repairs & Maintenance,60088583,AJS LTD,243.04,04/10/2017
Commercial,Customer Support Group,Building Repairs & Maintenance,60088613,AJS LTD,296.87,04/10/2017
Commercial,Customer Support Group,Building Repairs & Maintenance,60088660,AJS LTD,156.80,04/10/2017
Commercial,Customer Support Group,Building Repairs & Maintenance,60088669,AJS LTD,296.87,04/10/2017
Commercial,Customer Support Group,Building Repairs & Maintenance,60088670,AJS LTD,368.48,04/10/2017
Commercial,Customer Support Group,Building Repairs & Maintenance,60088672,AJS LTD,94.08,04/10/2017
Commercial,Customer Support Group,Building Repairs & Maintenance,60088788,HERTEL (UK) LTD,119.70,05/10/2017
Commercial,Customer Support Group,Building Repairs & Maintenance,60090314,HERTEL (UK) LTD,140.00,27/10/2017
Commercial,Customer Support Group,Building Repairs & Maintenance,60090336,HERTEL (UK) LTD,34.91,27/10/2017
Commercial,Customer Support Group,Building Repairs & Maintenance,60090339,HERTEL (UK) LTD,34.91,27/10/2017
Commercial,Customer Support Group,Building Repairs & Maintenance,60090353,HERTEL (UK) LTD,34.91,27/10/2017
Commercial,Customer Support Group,Building Repairs & Maintenance,60090600,HERTEL (UK) LTD,34.91,31/10/2017
Commercial,Customer Support Group,Building Repairs & Maintenance,60090618,HERTEL (UK) LTD,34.91,31/10/2017
Commercial,Customer Support Group,Building Repairs & Maintenance,60090627,HERTEL (UK) LTD,34.91,31/10/2017
Commercial,Customer Support Group,Building Repairs & Maintenance,60090632,HERTEL (UK) LTD,34.91,31/10/2017
Commercial,Customer Support Group,Building Repairs & Maintenance,60090649,HERTEL (UK) LTD,34.91,31/10/2017
Commercial,Customer Support Group,Building Repairs & Maintenance,60090653,HERTEL (UK) LTD,34.91,31/10/2017
Commercial,Customer Support Group,Building Repairs & Maintenance,60090665,HERTEL (UK) LTD,34.91,31/10/2017
Commercial,Customer Support Group,Building Repairs & Maintenance,60090675,HERTEL (UK) LTD,34.91,31/10/2017
Commercial,Customer Support Group,Building Repairs & Maintenance,60088003,RGE SERVICES,188.41,05/10/2017
Commercial,Customer Support Group,Building Repairs & Maintenance,60087951,RGE SERVICES,115.43,12/10/2017
Commercial,Customer Support Group,Building Repairs & Maintenance,60087953,RGE SERVICES,127.61,12/10/2017
Commercial,Customer Support Group,Building Repairs & Maintenance,60087954,RGE SERVICES,119.71,12/10/2017
Commercial,Customer Support Group,Building Repairs & Maintenance,60090142,RGE SERVICES,52.19,25/10/2017
Commercial,Customer Support Group,Building Repairs & Maintenance,60090186,RGE SERVICES,346.33,25/10/2017
Commercial,Customer Support Group,Building Repairs & Maintenance,60090199,RGE SERVICES,47.03,26/10/2017
Commercial,Customer Support Group,Building Repairs & Maintenance,60090203,RGE SERVICES,94.05,26/10/2017
Commercial,Customer Support Group,Building Repairs & Maintenance,60090214,RGE SERVICES,64.13,26/10/2017
Commercial,Customer Support Group,Cleaning and domestic material,60086580,CHURCHILL CONTRACT SERVICES,"1,032.37",18/10/2017
Commercial,Customer Support Group,Cleaning and domestic material,60088772,CHURCHILL CONTRACT SERVICES,"1,032.37",30/10/2017
Commercial,Customer Support Group,Equipment and Materials Purcha,60088476,DAY PLANT HIRE CO LIMITED,"2,326.60",05/10/2017
Commercial,Customer Support Group,Cleaning and domestic material,60089003,HERTFORDSHIRE SUPPLIES   COUNTY CO,"2,522.05",10/10/2017
Commercial,Customer Support Group,Cleaning and domestic material,60089046,HERTFORDSHIRE SUPPLIES   COUNTY CO,21.00,10/10/2017
Commercial,Customer Support Group,Cleaning and domestic material,60089074,HERTFORDSHIRE SUPPLIES   COUNTY CO,48.40,10/10/2017
Commercial,Customer Support Group,Electricity,60088100,KENT COUNTY COUNCIL (KCS),"5,064.13",03/10/2017
Commercial,Customer Support Group,Gas,60089880,KENT COUNTY COUNCIL (KCS),"1,074.40",23/10/2017
Commercial,Customer Support Group,Water Services,60087010,ANGEL SPRINGS LTD,250.00,13/10/2017
Commercial,Customer Support Group,Water Services,60087072,ANGEL SPRINGS LTD,31.00,13/10/2017
Commercial,Customer Support Group,Water Services,60089381,ANGEL SPRINGS LTD,8.40,27/10/2017
Commercial,Customer Support Group,Water Services,60089404,ANGEL SPRINGS LTD,150.00,27/10/2017
Commercial,Customer Support Group,Other Services,60089019,BLUE 9 SECURITY LIMITED,"20,745.78",11/10/2017
Commercial,Customer Support Group,Cleaning and domestic material,60089285,CHURCHILL CONTRACT SERVICES,127.00,13/10/2017
Commercial,Customer Support Group,Cleaning and domestic material,60089370,CHURCHILL CONTRACT SERVICES,127.00,13/10/2017
Commercial,Customer Support Group,Cleaning and domestic material,60089281,CHURCHILL CONTRACT SERVICES,127.00,16/10/2017
Commercial,Customer Support Group,Cleaning and domestic material,60086613,CHURCHILL CONTRACT SERVICES,"11,562.54",18/10/2017
Commercial,Customer Support Group,Cleaning and domestic material,60088795,CHURCHILL CONTRACT SERVICES,"11,562.54",30/10/2017
Commercial,Customer Support Group,Rubbish Collection,60089174,G.B.HOLDINGS LTD,853.00,12/10/2017
Commercial,Customer Support Group,Building Repairs & Maintenance,60090411,HERTEL (UK) LTD,250.00,27/10/2017
Commercial,Customer Support Group,Furniture-Purchase-Repair,60088340,LYCO DIRECT LTD,3.99,24/10/2017
Commercial,Customer Support Group,Furniture-Purchase-Repair,60088886,LYCO DIRECT LTD,47.76,31/10/2017
Commercial,Customer Support Group,Rents,60088499,MONTAGU EVANS LLP,"186,250.00",02/10/2017
Commercial,Customer Support Group,Furniture-Purchase-Repair,60087655,SCREWFIX DIRECT LTD,38.07,10/10/2017
Commercial,Customer Support Group,Furniture-Purchase-Repair,60089973,SCREWFIX DIRECT LTD,66.20,26/10/2017
Commercial,Customer Support Group,Training,60089438,SKILLS TRAINING CENTRE LTD,330.00,17/10/2017
Commercial,Customer Support Group,Water Services,60089850,AFFINITY WATER LIMITED,429.81,31/10/2017
Commercial,Customer Support Group,Water Services,60090187,CASTLE WATER LTD,"3,230.94",25/10/2017
Commercial,Customer Support Group,Rents,60088374,MIDDLESEX UNIVERSITY,"88,625.00",23/10/2017
Commercial,Customer Support Group,Rents,60089893,MIDDLESEX UNIVERSITY,"31,125.00",23/10/2017
Commercial,Customer Support Group,Cleaning and domestic material,60086986,HERTFORDSHIRE SUPPLIES   COUNTY CO,184.16,03/10/2017
Commercial,Customer Support Group,Cleaning and domestic material,60086893,HERTFORDSHIRE SUPPLIES   COUNTY CO,85.68,16/10/2017
Commercial,Customer Support Group,Water Services,60089451,ANGEL SPRINGS LTD,80.00,27/10/2017
Commercial,Customer Support Group,Other Services,60089197,BLUE 9 SECURITY LIMITED,"5,920.43",12/10/2017
Commercial,Customer Support Group,Cleaning and domestic material,60088742,CHURCHILL CONTRACT SERVICES,"1,133.45",30/10/2017
Commercial,Customer Support Group,Building Repairs & Maintenance,60088726,FRONTIER-PITTS LTD,454.50,13/10/2017
Commercial,Customer Support Group,Building Repairs & Maintenance,60089418,FRONTIER-PITTS LTD,291.00,27/10/2017
Commercial,Customer Support Group,Building Repairs & Maintenance,60089991,RGE SERVICES,62.00,25/10/2017
Commercial,Customer Support Group,Building Repairs & Maintenance,60090156,RGE SERVICES,76.95,25/10/2017
Commercial,Customer Support Group,Furniture-Purchase-Repair,60088507,SCREWFIX DIRECT LTD,36.09,06/10/2017
Commercial,Customer Support Group,Equipment and Materials Purcha,60086912,AUDITEL SYSTEMS,"1,980.00",04/10/2017
Commercial,Customer Support Group,Electricity,60090020,KENT COUNTY COUNCIL (KCS),"1,213.57",27/10/2017
Commercial,Customer Support Group,Gas,60090027,KENT COUNTY COUNCIL (KCS),317.53,27/10/2017
Commercial,Customer Support Group,Electricity,60090036,KENT COUNTY COUNCIL (KCS),"1,316.28",27/10/2017
Commercial,Customer Support Group,Electricity,60090045,KENT COUNTY COUNCIL (KCS),974.47,27/10/2017
Commercial,Customer Support Group,Electricity,60090059,KENT COUNTY COUNCIL (KCS),"1,175.32",27/10/2017
Commercial,Customer Support Group,Gas,60090064,KENT COUNTY COUNCIL (KCS),319.57,27/10/2017
Commercial,Customer Support Group,Electricity,60090065,KENT COUNTY COUNCIL (KCS),394.80,27/10/2017
Commercial,Customer Support Group,Electricity,60090066,KENT COUNTY COUNCIL (KCS),"1,427.33",27/10/2017
Commercial,Customer Support Group,Electricity,60090069,KENT COUNTY COUNCIL (KCS),346.51,27/10/2017
Commercial,Customer Support Group,Electricity,60090082,KENT COUNTY COUNCIL (KCS),485.49,27/10/2017
Commercial,Customer Support Group,Electricity,60090084,KENT COUNTY COUNCIL (KCS),245.82,27/10/2017
Commercial,Customer Support Group,Electricity,60090100,KENT COUNTY COUNCIL (KCS),"1,177.41",27/10/2017
Commercial,Customer Support Group,Electricity,60090039,KENT COUNTY COUNCIL (KCS),822.12,30/10/2017
Commercial,Customer Support Group,Electricity,60090010,KENT COUNTY COUNCIL (KCS),"1,632.02",31/10/2017
Commercial,Customer Support Group,Gas,60090079,KENT COUNTY COUNCIL (KCS),(420.80),31/10/2017
Commercial,Customer Support Group,Building Repairs & Maintenance,60088708,HERTEL (UK) LTD,179.55,05/10/2017
Commercial,Customer Support Group,Electricity,60087614,KENT COUNTY COUNCIL (KCS),"1,750.88",10/10/2017
Commercial,Customer Support Group,Electricity,60084038,KENT COUNTY COUNCIL (KCS),"1,543.50",20/10/2017
Commercial,Customer Support Group,Electricity,60085555,KENT COUNTY COUNCIL (KCS),"1,594.95",20/10/2017
Commercial,Customer Support Group,Water Services,60087077,ANGEL SPRINGS LTD,8.78,05/10/2017
Commercial,Customer Support Group,Rubbish Collection,60089292,PEARCE RECYCLING CO. LTD,35.00,27/10/2017
Commercial,Customer Support Group,Rubbish Collection,60089349,PEARCE RECYCLING CO. LTD,1.50,27/10/2017
Commercial,Customer Support Group,Furniture-Purchase-Repair,60089515,C.E.S.,283.50,18/10/2017
Commercial,Customer Support Group,Books-CDs-Audio-Video,60087891,SM ELECTRICAL SERVICES,190.00,16/10/2017
Commercial,Customer Support Group,Service Charges,60088385,MIDDLESEX UNIVERSITY,"21,545.00",04/10/2017
Commercial,Customer Support Group,Rents,60088344,MIDDLESEX UNIVERSITY,"207,588.20",11/10/2017
Commercial,Customer Support Group,Cleaning and domestic material,60086928,HERTFORDSHIRE SUPPLIES   COUNTY CO,"2,199.02",03/10/2017
Commercial,Customer Support Group,Cleaning and domestic material,60089080,HERTFORDSHIRE SUPPLIES   COUNTY CO,"2,199.58",10/10/2017
Commercial,Customer Support Group,Other Services,60089086,BLUE 9 SECURITY LIMITED,"11,210.40",11/10/2017
Commercial,Customer Support Group,Cleaning and domestic material,60088349,CHURCHILL CONTRACT SERVICES,36.00,03/10/2017
Commercial,Customer Support Group,Cleaning and domestic material,60086631,CHURCHILL CONTRACT SERVICES,"7,329.82",18/10/2017
Commercial,Customer Support Group,Cleaning and domestic material,60088761,CHURCHILL CONTRACT SERVICES,"7,329.82",30/10/2017
Commercial,Customer Support Group,Rubbish Collection,60089353,PEARCE RECYCLING CO. LTD,28.00,27/10/2017
Commercial,Customer Support Group,Building Repairs & Maintenance,60090222,RGE SERVICES,"1,368.77",26/10/2017
Commercial,Customer Support Group,Furniture-Purchase-Repair,60088101,WAGSTAFF INTERIORS GROUP,10.00,02/10/2017
Commercial,Customer Support Group,Furniture-Purchase-Repair,60089040,WAGSTAFF INTERIORS GROUP,20.00,31/10/2017
Commercial,Customer Support Group,Gas,60084195,KENT COUNTY COUNCIL (KCS),84.83,19/10/2017
Commercial,Customer Support Group,Gas,60084484,KENT COUNTY COUNCIL (KCS),68.48,19/10/2017
Commercial,Customer Support Group,Gas,60085434,KENT COUNTY COUNCIL (KCS),102.86,19/10/2017
Commercial,Customer Support Group,Gas,60085889,KENT COUNTY COUNCIL (KCS),60.98,19/10/2017
Commercial,Customer Support Group,Electricity,60089978,KENT COUNTY COUNCIL (KCS),616.86,25/10/2017
Commercial,Customer Support Group,Cleaning and domestic material,60087540,CHURCHILL CONTRACT SERVICES,540.00,11/10/2017
Commercial,Customer Support Group,Cleaning and domestic material,60086531,CHURCHILL CONTRACT SERVICES,661.80,18/10/2017
Commercial,Customer Support Group,Cleaning and domestic material,60088681,CHURCHILL CONTRACT SERVICES,661.80,30/10/2017
Commercial,Customer Support Group,Rubbish Collection,60089114,G.B.HOLDINGS LTD,33.60,12/10/2017
Commercial,Customer Support Group,Rubbish Collection,60083003,G.B.HOLDINGS LTD,16.80,25/10/2017
Commercial,Customer Support Group,Ttl IT & Comms,60085797,BRITISH TELECOM PLC,55.89,18/10/2017
Commercial,Customer Support Group,CSG Services Contract Payment,60089910,CAPITA BUSINESS SERVICES LTD,"235,329.90",30/10/2017
Commercial,Customer Support Group,CSG Services Contract Payment,60089871,CAPITA BUSINESS SERVICES LTD,"54,867.50",31/10/2017
Commercial,Customer Support Group,CSG Services Contract Payment,60088359,CAPITA BUSINESS SERVICES LTD,"74,658.52",10/10/2017
Commercial,Customer Support Group,CSG Services Contract Payment,60088396,CAPITA BUSINESS SERVICES LTD,"18,122.60",10/10/2017
Commercial,Customer Support Group,CSG Services Contract Payment,60089109,CAPITA BUSINESS SERVICES LTD,"35,189.56",13/10/2017
Commercial,Customer Support Group,CSG Services Contract Payment,60089887,CAPITA BUSINESS SERVICES LTD,"33,557.50",31/10/2017
Commercial,Customer Support Group,CSG Services Contract Payment,60089934,CAPITA BUSINESS SERVICES LTD,"514,066.94",31/10/2017
Commercial,Customer Support Group,CSG Services Contract Payment,60089950,CAPITA BUSINESS SERVICES LTD,"128,000.00",31/10/2017
Commercial,Customer Support Group,Professional Services,60067137,THE BARNETGROUP LIMITED,"71,335.00",12/10/2017
Commercial,Customer Support Group,Professional Services,60087767,THE BARNETGROUP LIMITED,"38,182.40",12/10/2017
Commercial,Customer Support Group,Building Repairs & Maintenance,60089680,ST ANDREWS PAROCHIAL CHURCH COUNCIL,"3,360.00",31/10/2017
Commercial,Customer Support Group,Electricity,60087844,KENT COUNTY COUNCIL (KCS),107.02,05/10/2017
Commercial,Customer Support Group,Electricity,60088974,KENT COUNTY COUNCIL (KCS),310.41,10/10/2017
Commercial,Customer Support Group,Gas,60088977,KENT COUNTY COUNCIL (KCS),186.85,10/10/2017
Commercial,Customer Support Group,Gas,60088982,KENT COUNTY COUNCIL (KCS),277.11,10/10/2017
Commercial,Customer Support Group,Electricity,60079762,KENT COUNTY COUNCIL (KCS),103.57,20/10/2017
Commercial,Customer Support Group,Gas,60089830,KENT COUNTY COUNCIL (KCS),40.87,23/10/2017
Commercial,Customer Support Group,Gas,60089867,KENT COUNTY COUNCIL (KCS),110.67,23/10/2017
Commercial,Customer Support Group,Gas,60089877,KENT COUNTY COUNCIL (KCS),65.10,23/10/2017
Commercial,Customer Support Group,Gas,60089946,KENT COUNTY COUNCIL (KCS),52.93,23/10/2017
Commercial,Customer Support Group,Gas,60089963,KENT COUNTY COUNCIL (KCS),49.19,23/10/2017
Commercial,Customer Support Group,Gas,60089972,KENT COUNTY COUNCIL (KCS),43.92,23/10/2017
Commercial,Customer Support Group,Electricity,60089915,KENT COUNTY COUNCIL (KCS),296.64,24/10/2017
Commercial,Customer Support Group,Electricity,60089933,KENT COUNTY COUNCIL (KCS),447.38,24/10/2017
Commercial,Customer Support Group,Electricity,60090028,KENT COUNTY COUNCIL (KCS),201.29,25/10/2017
Commercial,Customer Support Group,Gas,60090056,KENT COUNTY COUNCIL (KCS),65.17,25/10/2017
Commercial,Customer Support Group,Gas,60090126,KENT COUNTY COUNCIL (KCS),136.55,25/10/2017
Commercial,Customer Support Group,Electricity,60090165,KENT COUNTY COUNCIL (KCS),191.61,25/10/2017
Commercial,Customer Support Group,Electricity,60090017,KENT COUNTY COUNCIL (KCS),774.26,27/10/2017
Commercial,Customer Support Group,Electricity,60090097,KENT COUNTY COUNCIL (KCS),395.40,27/10/2017
Commercial,Customer Support Group,Building Repairs & Maintenance,60087475,ARMSTRONG YORK,"10,560.00",10/10/2017
Commercial,Customer Support Group,Other Services,60089185,BLUE 9 SECURITY LIMITED,402.90,12/10/2017
Commercial,Customer Support Group,Other Services,60089191,BLUE 9 SECURITY LIMITED,163.49,12/10/2017
Commercial,Customer Support Group,Other Services,60089232,BLUE 9 SECURITY LIMITED,228.31,12/10/2017
Commercial,Customer Support Group,Other Services,60089251,BLUE 9 SECURITY LIMITED,62.28,12/10/2017
Commercial,Customer Support Group,Other Services,60089252,BLUE 9 SECURITY LIMITED,53.72,12/10/2017
Commercial,Customer Support Group,Building Repairs & Maintenance,60088523,BUSH WHEELER SERVICES LIMITED,"1,800.00",19/10/2017
Commercial,Customer Support Group,Cleaning and domestic material,60086747,CHURCHILL CONTRACT SERVICES,658.45,25/10/2017
Commercial,Customer Support Group,Cleaning and domestic material,60088737,CHURCHILL CONTRACT SERVICES,294.16,30/10/2017
Commercial,Customer Support Group,Cleaning and domestic material,60089299,CHURCHILL CONTRACT SERVICES,658.45,30/10/2017
Commercial,Customer Support Group,Building Repairs & Maintenance,60088677,HERTEL (UK) LTD,179.55,05/10/2017
Commercial,Customer Support Group,Building Repairs & Maintenance,60088680,HERTEL (UK) LTD,179.55,05/10/2017
Commercial,Customer Support Group,Building Repairs & Maintenance,60088683,HERTEL (UK) LTD,104.74,05/10/2017
Commercial,Customer Support Group,Building Repairs & Maintenance,60088686,HERTEL (UK) LTD,179.55,05/10/2017
Commercial,Customer Support Group,Building Repairs & Maintenance,60088687,HERTEL (UK) LTD,104.74,05/10/2017
Commercial,Customer Support Group,Building Repairs & Maintenance,60088713,HERTEL (UK) LTD,45.00,05/10/2017
Commercial,Customer Support Group,Building Repairs & Maintenance,60088741,HERTEL (UK) LTD,104.74,05/10/2017
Commercial,Customer Support Group,Building Repairs & Maintenance,60088753,HERTEL (UK) LTD,104.74,05/10/2017
Commercial,Customer Support Group,Building Repairs & Maintenance,60088771,HERTEL (UK) LTD,104.74,05/10/2017
Commercial,Customer Support Group,Building Repairs & Maintenance,60088746,HERTEL (UK) LTD,165.00,11/10/2017
Commercial,Customer Support Group,Building Repairs & Maintenance,60090308,HERTEL (UK) LTD,"1,455.51",27/10/2017
Commercial,Customer Support Group,Building Repairs & Maintenance,60090309,HERTEL (UK) LTD,990.00,27/10/2017
Commercial,Customer Support Group,Building Repairs & Maintenance,60090317,HERTEL (UK) LTD,180.00,27/10/2017
Commercial,Customer Support Group,Building Repairs & Maintenance,60090328,HERTEL (UK) LTD,90.00,27/10/2017
Commercial,Customer Support Group,Building Repairs & Maintenance,60090331,HERTEL (UK) LTD,300.00,27/10/2017
Commercial,Customer Support Group,Building Repairs & Maintenance,60090397,HERTEL (UK) LTD,34.91,27/10/2017
Commercial,Customer Support Group,Building Repairs & Maintenance,60090616,HERTEL (UK) LTD,34.91,31/10/2017
Commercial,Customer Support Group,Building Repairs & Maintenance,60090617,HERTEL (UK) LTD,34.91,31/10/2017
Commercial,Customer Support Group,Building Repairs & Maintenance,60090625,HERTEL (UK) LTD,34.91,31/10/2017
Commercial,Customer Support Group,Building Repairs & Maintenance,60090630,HERTEL (UK) LTD,34.91,31/10/2017
Commercial,Customer Support Group,Building Repairs & Maintenance,60090655,HERTEL (UK) LTD,34.91,31/10/2017
Commercial,Customer Support Group,Building Repairs & Maintenance,60090666,HERTEL (UK) LTD,34.91,31/10/2017
Commercial,Customer Support Group,Building Repairs & Maintenance,60090118,LEE SECURITY LONDON LIMITED,89.96,25/10/2017
Commercial,Customer Support Group,Building Repairs & Maintenance,60090153,LEE SECURITY LONDON LIMITED,45.42,25/10/2017
Commercial,Customer Support Group,Building Repairs & Maintenance,60090158,LEE SECURITY LONDON LIMITED,98.00,25/10/2017
Commercial,Customer Support Group,Building Repairs & Maintenance,60090167,LEE SECURITY LONDON LIMITED,484.00,25/10/2017
Commercial,Customer Support Group,Building Repairs & Maintenance,60090171,LEE SECURITY LONDON LIMITED,574.00,25/10/2017
Commercial,Customer Support Group,Building Repairs & Maintenance,60090242,LEE SECURITY LONDON LIMITED,489.00,26/10/2017
Commercial,Customer Support Group,Building Repairs & Maintenance,60090281,LEE SECURITY LONDON LIMITED,83.00,26/10/2017
Commercial,Customer Support Group,Building Repairs & Maintenance,60087937,RGE SERVICES,25.65,05/10/2017
Commercial,Customer Support Group,Building Repairs & Maintenance,60087984,RGE SERVICES,47.03,05/10/2017
Commercial,Customer Support Group,Building Repairs & Maintenance,60087968,RGE SERVICES,150.70,12/10/2017
Commercial,Customer Support Group,Building Repairs & Maintenance,60087970,RGE SERVICES,108.59,12/10/2017
Commercial,Customer Support Group,Building Repairs & Maintenance,60087985,RGE SERVICES,37.62,12/10/2017
Commercial,Customer Support Group,Building Repairs & Maintenance,60089196,RGE SERVICES,62.00,18/10/2017
Commercial,Customer Support Group,Building Repairs & Maintenance,60089986,RGE SERVICES,166.73,25/10/2017
Commercial,Customer Support Group,Building Repairs & Maintenance,60090106,RGE SERVICES,25.65,25/10/2017
Commercial,Customer Support Group,Building Repairs & Maintenance,60090115,RGE SERVICES,62.00,25/10/2017
Commercial,Customer Support Group,Building Repairs & Maintenance,60090122,RGE SERVICES,7.79,25/10/2017
Commercial,Customer Support Group,Building Repairs & Maintenance,60090230,RGE SERVICES,91.02,26/10/2017
Commercial,Customer Support Group,Building Repairs & Maintenance,60061224,S W BRUCE & CO LTD,57.00,16/10/2017
Commercial,Customer Support Group,Building Repairs & Maintenance,60083635,S W BRUCE & CO LTD,112.98,16/10/2017
Commercial,Customer Support Group,Building Repairs & Maintenance,60089840,S W BRUCE & CO LTD,"5,350.00",23/10/2017
Commercial,Customer Support Group,Building Repairs & Maintenance,60083595,S W BRUCE & CO LTD,25.00,24/10/2017
Commercial,Customer Support Group,Building Repairs & Maintenance,60089237,TECHNICAL SURFACES LTD,"1,190.00",26/10/2017
Commercial,Customer Support Group,Water Services,60089741,AFFINITY WATER LIMITED,40.34,19/10/2017
Commercial,Customer Support Group,Water Services,60089985,AFFINITY WATER LIMITED,197.57,25/10/2017
Commercial,Customer Support Group,Building Repairs & Maintenance,60080020,AFFINITY WATER LIMITED,25.52,27/10/2017
Commercial,Customer Support Group,Water Services,60085922,AFFINITY WATER LIMITED,87.51,27/10/2017
Commercial,Customer Support Group,Water Services,60085923,AFFINITY WATER LIMITED,753.52,27/10/2017
Commercial,Customer Support Group,Water Services,60085924,AFFINITY WATER LIMITED,50.00,27/10/2017
Commercial,Customer Support Group,Water Services,60085925,AFFINITY WATER LIMITED,50.00,27/10/2017
Commercial,Customer Support Group,Water Services,60090650,AFFINITY WATER LIMITED,111.82,31/10/2017
Commercial,Customer Support Group,Electricity,60090433,BRITISH GAS BUSINESS,36.20,30/10/2017
Commercial,Customer Support Group,Water Services,60090403,CASTLE WATER LTD,165.77,27/10/2017
Commercial,Customer Support Group,Water Services,60090445,CASTLE WATER LTD,219.55,30/10/2017
Commercial,Customer Support Group,Electricity,60086192,E-ON ENERGY,52.55,23/10/2017
Commercial,Customer Support Group,Electricity,60087443,E-ON ENERGY,15.77,23/10/2017
Commercial,Customer Support Group,Postage,60086485,BLISSETT BOOKBINDERS,222.00,23/10/2017
Commercial,Customer Support Group,Postage,60086502,BLISSETT BOOKBINDERS,966.00,23/10/2017
Commercial,Customer Support Group,Postage,60087639,GLS EDUCATIONAL SUPPLIES LTD,"2,590.56",20/10/2017
Commercial,Customer Support Group,Postage,60089131,LETTERBOX DISTRIBUTION.COM,770.56,12/10/2017
Commercial,Customer Support Group,Postage,60090453,ROYAL MAIL GROUP LIMITED,125.45,30/10/2017
Commercial,Customer Support Group,Postage,60089031,WEMBLEY LAMINATIONS LTD:,110.00,10/10/2017
Commercial,Customer Support Group,Postage,60089034,WEMBLEY LAMINATIONS LTD:,90.00,10/10/2017
Commercial,Customer Support Group,Cleaning and domestic material,60089042,HERTFORDSHIRE SUPPLIES   COUNTY CO,19.06,10/10/2017
Commercial,Customer Support Group,Electricity,60089949,KENT COUNTY COUNCIL (KCS),108.31,23/10/2017
Commercial,Customer Support Group,Electricity,60089828,KENT COUNTY COUNCIL (KCS),722.79,24/10/2017
Commercial,Customer Support Group,Electricity,60089928,KENT COUNTY COUNCIL (KCS),945.96,24/10/2017
Commercial,Customer Support Group,Water Services,60089442,ANGEL SPRINGS LTD,110.00,27/10/2017
Commercial,Customer Support Group,Other Services,60089071,BLUE 9 SECURITY LIMITED,"22,039.20",11/10/2017
Commercial,Customer Support Group,Rents,60088462,NETWORK RAIL ACCOUNTS RECEIVABLE,"25,923.10",02/10/2017
Commercial,Customer Support Group,Rents,60088503,NETWORK RAIL ACCOUNTS RECEIVABLE,"55,000.00",02/10/2017
Commercial,Customer Support Group,Building Repairs & Maintenance,60089718,RIBBEX UK LTD,764.75,25/10/2017
Commercial,Customer Support Group,Furniture-Purchase-Repair,60089243,SCREWFIX DIRECT LTD,167.86,17/10/2017
Commercial,Customer Support Group,CSG Services Contract Payment,10013886,CAPITA BUSINESS SERVICES LTD,"2,187.67",02/10/2017
Commercial,Customer Support Group,CSG Services Contract Payment,10013887,CAPITA BUSINESS SERVICES LTD,"11,970.00",02/10/2017
Commercial,Customer Support Group,CSG Services Contract Payment,10013888,CAPITA BUSINESS SERVICES LTD,"42,154.39",02/10/2017
Commercial,Customer Support Group,CSG Services Contract Payment,60089167,CAPITA BUSINESS SERVICES LTD,"8,633.48",12/10/2017
Commercial,Customer Support Group,CSG Services Contract Payment,60089537,CAPITA BUSINESS SERVICES LTD,"534,000.00",20/10/2017
Commercial,Customer Support Group,Building Repairs & Maintenance,60090383,HERTEL (UK) LTD,90.00,27/10/2017
Commercial,HB LAW,Legal Disbursements,60085782,LONDON BOROUGH OF HARROW,"184,070.01",23/10/2017
Commercial,Housing Needs Resources,Private Contractors - Third Pa,60087882,THE BARNETGROUP LIMITED,"1,853,222.33",06/10/2017
Commercial,Housing Needs Resources,Other Services,60087888,THE BARNETGROUP LIMITED,"23,800.61",06/10/2017
Commercial,Housing Needs Resources,Other Services,60087921,THE BARNETGROUP LIMITED,"12,642.54",06/10/2017
Commercial,Housing Needs Resources,Other Agencies - Third Party P,60089999,THE BARNETGROUP LIMITED,"4,469.74",25/10/2017
Commercial,Housing Needs Resources,Other Services,60090054,THE BARNETGROUP LIMITED,"23,800.61",25/10/2017
Commercial,Housing Needs Resources,Private Contractors - Third Pa,60090092,THE BARNETGROUP LIMITED,"1,853,222.33",25/10/2017
Commercial,HRA,Consultants Fees,60090042,P P C R ASSOCIATES LTD,564.02,27/10/2017
Commercial,HRA,Consultants Fees,60090067,TROWERS & HAMLINS,"1,949.60",25/10/2017
Commercial,HRA,Consultants Fees,10013901,MPCS,255.00,13/10/2017
Commercial,HRA,Other Services,60087066,BARNET FC COMMUNITY TRUST,20.00,30/10/2017
Commercial,HRA,Consultants Fees,60088535,THE BARNETGROUP LIMITED,"36,700.00",31/10/2017
Commercial,HRA,Building Repairs & Maintenance,80012892,DUAL ENERGY DIRECT LTD,361.99,12/10/2017
Commercial,HRA,Other Services,60087981,RGE SERVICES,"8,535.18",03/10/2017
Commercial,HRA,Water Services,60088534,AFFINITY WATER LIMITED,239.08,06/10/2017
Commercial,HRA,Water Services,60088542,AFFINITY WATER LIMITED,"8,137.97",06/10/2017
Commercial,HRA,Water Services,60088544,AFFINITY WATER LIMITED,109.30,06/10/2017
Commercial,HRA,Water Services,60088546,AFFINITY WATER LIMITED,"828,163.44",06/10/2017
Commercial,HRA,Water Services,60088580,AFFINITY WATER LIMITED,"772,600.94",06/10/2017
Commercial,HRA,Other Services,60087892,THE BARNETGROUP LIMITED,"2,048,526.26",06/10/2017
Commercial,HRA,Other Services,60090025,THE BARNETGROUP LIMITED,"2,048,526.26",25/10/2017
Commercial,HRA,Consultants Fees,60088037,STRATEGIC URBAN FUTURES LIMITED,186.66,19/10/2017
Commercial,HRA,Consultants Fees,60088579,STRATEGIC URBAN FUTURES LIMITED,533.30,26/10/2017
Commercial,Parking & Infrastructure,Equipment and Materials Purcha,60077599,ACCESS INNOVATIONS UK LTD,140.00,04/10/2017
Commercial,Parking & Infrastructure,Equipment and Materials Purcha,60047054,ACCESS INNOVATIONS UK LTD,830.00,27/10/2017
Commercial,Parking & Infrastructure,Equipment and Materials Purcha,60049264,ACCESS INNOVATIONS UK LTD,"1,022.80",27/10/2017
Commercial,Parking & Infrastructure,Equipment and Materials Purcha,60049273,ACCESS INNOVATIONS UK LTD,580.00,27/10/2017
Commercial,Parking & Infrastructure,Equipment and Materials Purcha,60056177,ACCESS INNOVATIONS UK LTD,284.00,27/10/2017
Commercial,Parking & Infrastructure,Miscellaneous Expenses,60089626,MOTT MACDONALD LTD/CAMBRIDGE EDUCATION,60.00,19/10/2017
Commercial,Parking & Infrastructure,Equipment and Materials Purcha,60088308,AMARI PLASTICS LTD,417.50,02/10/2017
Commercial,Parking & Infrastructure,Equipment and Materials Purcha,60087298,GREENHAM TRADING LIMITED,"1,244.40",05/10/2017
Commercial,Parking & Infrastructure,Equipment and Materials Purcha,60087643,GREENHAM TRADING LIMITED,207.26,12/10/2017
Commercial,Parking & Infrastructure,Equipment and Materials Purcha,60087012,LAFARGE TARMAC TRADING LIMITED,125.90,03/10/2017
Commercial,Parking & Infrastructure,Equipment and Materials Purcha,60087425,LAFARGE TARMAC TRADING LIMITED,101.50,05/10/2017
Commercial,Parking & Infrastructure,Equipment and Materials Purcha,60087599,LAFARGE TARMAC TRADING LIMITED,96.62,05/10/2017
Commercial,Parking & Infrastructure,Equipment and Materials Purcha,60088845,LAFARGE TARMAC TRADING LIMITED,222.52,26/10/2017
Commercial,Parking & Infrastructure,Equipment and Materials Purcha,60088877,LAFARGE TARMAC TRADING LIMITED,117.12,27/10/2017
Commercial,Parking & Infrastructure,Equipment and Materials Purcha,60089217,LAFARGE TARMAC TRADING LIMITED,119.07,31/10/2017
Commercial,Parking & Infrastructure,Equipment and Materials Purcha,60087391,RENNICK UK LTD,"1,019.83",05/10/2017
Commercial,Parking & Infrastructure,Equipment and Materials Purcha,60087480,RENNICK UK LTD,84.71,10/10/2017
Commercial,Parking & Infrastructure,Equipment and Materials Purcha,60087753,RENNICK UK LTD,401.10,12/10/2017
Commercial,Parking & Infrastructure,Equipment and Materials Purcha,60087756,KLOECKNER METALS UK,"1,211.00",11/10/2017
Commercial,Parking & Infrastructure,Equipment and Materials Purcha,60088818,WM SMITH & SONS LIMITED,"5,998.23",11/10/2017
Commercial,Parking & Infrastructure,Software Licences & Support,60088378,NSL LTD,"30,343.34",05/10/2017
Commercial,Parking & Infrastructure,Other Services,60088388,NSL LTD,"3,057.90",05/10/2017
Commercial,Parking & Infrastructure,Software Licences & Support,60088348,NSL LTD,"8,163.76",11/10/2017
Commercial,Parking & Infrastructure,Software Licences & Support,60089872,NSL LTD,"7,908.93",25/10/2017
Commercial,Parking & Infrastructure,Other Services,60089896,NSL LTD,"1,754.10",25/10/2017
Commercial,Parking & Infrastructure,Software Licences & Support,60089925,NSL LTD,"36,984.07",25/10/2017
Commercial,Parking & Infrastructure,Miscellaneous Expenses,60089924,NSL LTD,"1,585.51",31/10/2017
Commercial,Parking & Infrastructure,Miscellaneous Expenses,60088666,OPENVIEW SECURITY SOLUTIONS LTD,"1,400.00",26/10/2017
Commercial,Parking & Infrastructure,Other Services,60087969,PARKEON LIMITED,"2,299.44",18/10/2017
Commercial,Parking & Infrastructure,Other Services,60088022,PARKEON LIMITED,810.00,18/10/2017
Commercial,Parking & Infrastructure,Other Services,60088700,BARNET LIGHTING SERVICES LTD,"394,946.46",13/10/2017
Commercial,Parking & Infrastructure,Other Services,60088636,BARNET LIGHTING SERVICES LTD,231.30,04/10/2017
Commercial,Public Health,Health authorities - Third Par,60087908,LONDON BOROUGH OF HARROW,"2,640,300.00",19/10/2017
Commercial,Public Health,Other Transfer Payments to Soc,60085499,CENTRAL LONDONCOMMUNITY HEALTHCARE,"356,000.00",10/10/2017
Commercial,Public Health,Other Transfer Payments to Soc,60088351,CENTRAL LONDONCOMMUNITY HEALTHCARE,"356,000.00",10/10/2017
Commercial,Public Health,Professional Services,60085523,CENTRAL LONDONCOMMUNITY HEALTHCARE,"85,834.00",09/10/2017
Commercial,Public Health,Professional Services,60088366,CENTRAL LONDONCOMMUNITY HEALTHCARE,"85,834.00",09/10/2017
Commercial,Public Health,Professional Services,60085502,CENTRAL LONDONCOMMUNITY HEALTHCARE,"9,583.00",09/10/2017
Commercial,Public Health,Professional Services,60088367,CENTRAL LONDONCOMMUNITY HEALTHCARE,"9,583.00",09/10/2017
Commercial,Public Health,Other Transfer Payments to Soc,60085533,CENTRAL LONDONCOMMUNITY HEALTHCARE,"29,167.00",09/10/2017
Commercial,Public Health,Other Transfer Payments to Soc,60088384,CENTRAL LONDONCOMMUNITY HEALTHCARE,"29,167.00",09/10/2017
Commercial,Public Health,Professional Services,60085469,CENTRAL LONDONCOMMUNITY HEALTHCARE,"4,917.00",09/10/2017
Commercial,Public Health,Professional Services,60088360,CENTRAL LONDONCOMMUNITY HEALTHCARE,"4,917.00",09/10/2017
Commercial,Regional Enterprise,Other Services,60089504,CONWAY AECOM LTD,"21,165.24",26/10/2017
Commercial,Regional Enterprise,Other Services,60079328,KENT COUNTY COUNCIL (KCS),37.18,20/10/2017
Commercial,Regional Enterprise,Other Services,60079334,KENT COUNTY COUNCIL (KCS),71.38,20/10/2017
Commercial,Regional Enterprise,Other Services,60079339,KENT COUNTY COUNCIL (KCS),51.41,20/10/2017
Commercial,Regional Enterprise,Other Services,60079350,KENT COUNTY COUNCIL (KCS),8.12,20/10/2017
Commercial,Regional Enterprise,Other Services,60079362,KENT COUNTY COUNCIL (KCS),25.53,20/10/2017
Commercial,Regional Enterprise,Other Services,60079451,KENT COUNTY COUNCIL (KCS),34.22,20/10/2017
Commercial,Regional Enterprise,Other Services,60087028,KENT COUNTY COUNCIL (KCS),54.24,23/10/2017
Commercial,Regional Enterprise,Other Services,60088345,AFFINITY WATER LIMITED,154.51,09/10/2017
Commercial,Regional Enterprise,Other Services,60085365,AFFINITY WATER LIMITED,24.69,16/10/2017
Commercial,Regional Enterprise,Other Services,60089329,AFFINITY WATER LIMITED,104.81,23/10/2017
Commercial,Regional Enterprise,Other Services,60089346,AFFINITY WATER LIMITED,9.12,23/10/2017
Commercial,Regional Enterprise,Other Services,60084393,AFFINITY WATER LIMITED,28.20,24/10/2017
Commercial,Regional Enterprise,Other Services,60078701,AFFINITY WATER LIMITED,19.80,27/10/2017
Commercial,Regional Enterprise,Other Services,60088338,AFFINITY WATER LIMITED,32.68,30/10/2017
Commercial,Regional Enterprise,Other Services,60088368,AFFINITY WATER LIMITED,42.96,30/10/2017
Commercial,Regional Enterprise,Other Services,60085444,CASTLE WATER LTD,43.86,17/10/2017
Commercial,Regional Enterprise,Other Services,60085516,CASTLE WATER LTD,28.56,17/10/2017
Commercial,Regional Enterprise,Other Services,60085462,CASTLE WATER LTD,19.92,25/10/2017
Commercial,Regional Enterprise,Other Services,60087062,CASTLE WATER LTD,84.82,25/10/2017
Commercial,Regional Enterprise,Advertising,60086646,TMP (UK) LTD,342.00,02/10/2017
Commercial,Regional Enterprise,Advertising,60087270,TMP (UK) LTD,524.60,09/10/2017
Commercial,Regional Enterprise,Advertising,60087348,TMP (UK) LTD,444.60,09/10/2017
Commercial,Regional Enterprise,Advertising,60087350,TMP (UK) LTD,342.00,09/10/2017
Commercial,Regional Enterprise,Advertising,60087319,TMP (UK) LTD,342.00,10/10/2017
Commercial,Regional Enterprise,Advertising,60088626,TMP (UK) LTD,422.00,11/10/2017
Commercial,Regional Enterprise,Advertising,60088652,TMP (UK) LTD,490.40,11/10/2017
Commercial,Regional Enterprise,Advertising,60089202,TMP (UK) LTD,342.00,12/10/2017
Commercial,Regional Enterprise,Advertising,60089247,TMP (UK) LTD,422.00,12/10/2017
Commercial,Regional Enterprise,Advertising,60089245,TMP (UK) LTD,410.40,20/10/2017
Commercial,Regional Enterprise,Advertising,60087212,TMP (UK) LTD,"1,668.00",10/10/2017
Commercial,Regional Enterprise,Advertising,60088214,TMP (UK) LTD,"1,174.40",11/10/2017
Commercial,Regional Enterprise,Other Services,60090236,CONWAY AECOM LTD,"9,517.84",26/10/2017
Commercial,Regional Enterprise,Advertising,60088589,TMP (UK) LTD,"1,264.40",11/10/2017
Commercial,Regional Enterprise,Other Services,60090271,BARNET LIGHTING SERVICES LTD,720.00,26/10/2017
Commercial,Regional Enterprise,Other Services,60089149,LOBEG,"1,402.00",24/10/2017
Commercial,Regional Enterprise,Other Services,60088820,CONWAY AECOM LTD,286.95,06/10/2017
Commercial,Regional Enterprise,Other Services,60088833,CONWAY AECOM LTD,209.36,06/10/2017
Commercial,Regional Enterprise,Professional Services,60089189,WATES LIVING SPACE,"3,296.45",17/10/2017
Commercial,Regional Enterprise,Other Services,60088543,CONWAY AECOM LTD,18.94,17/10/2017
Commercial,Regional Enterprise,Other Services,60088551,CONWAY AECOM LTD,5.77,17/10/2017
Commercial,Regional Enterprise,Other Services,60088570,CONWAY AECOM LTD,13.31,17/10/2017
Commercial,Regional Enterprise,Other Services,60089968,CONWAY AECOM LTD,11.26,25/10/2017
Commercial,Regional Enterprise,Advertising,60088642,TMP (UK) LTD,580.40,11/10/2017
Commercial,Regional Enterprise,Advertising,60088664,TMP (UK) LTD,580.40,11/10/2017
Commercial,Regional Enterprise,Advertising,60088665,TMP (UK) LTD,580.40,11/10/2017
Commercial,Regional Enterprise,Professional Services,60088578,PUBLIC ANALYST SCIENTIFIC SERVS. LT,675.00,18/10/2017
Commercial,Regional Enterprise,Other Services,60088407,CONWAY AECOM LTD,50.87,02/10/2017
Commercial,Regional Enterprise,Other Services,60088408,CONWAY AECOM LTD,201.82,02/10/2017
Commercial,Regional Enterprise,Other Services,60088410,CONWAY AECOM LTD,50.60,02/10/2017
Commercial,Regional Enterprise,Other Services,60088417,CONWAY AECOM LTD,50.87,02/10/2017
Commercial,Regional Enterprise,Other Services,60088423,CONWAY AECOM LTD,212.18,02/10/2017
Commercial,Regional Enterprise,Other Services,60088425,CONWAY AECOM LTD,96.84,02/10/2017
Commercial,Regional Enterprise,Other Services,60088433,CONWAY AECOM LTD,41.92,02/10/2017
Commercial,Regional Enterprise,Other Services,60088440,CONWAY AECOM LTD,365.35,02/10/2017
Commercial,Regional Enterprise,Other Services,60088441,CONWAY AECOM LTD,46.11,02/10/2017
Commercial,Regional Enterprise,Other Services,60088450,CONWAY AECOM LTD,124.50,02/10/2017
Commercial,Regional Enterprise,Other Services,60088453,CONWAY AECOM LTD,130.48,02/10/2017
Commercial,Regional Enterprise,Other Services,60088467,CONWAY AECOM LTD,130.48,02/10/2017
Commercial,Regional Enterprise,Other Services,60088475,CONWAY AECOM LTD,100.91,02/10/2017
Commercial,Regional Enterprise,Other Services,60088479,CONWAY AECOM LTD,50.87,02/10/2017
Commercial,Regional Enterprise,Other Services,60088497,CONWAY AECOM LTD,100.91,02/10/2017
Commercial,Regional Enterprise,Other Services,60088504,CONWAY AECOM LTD,136.95,02/10/2017
Commercial,Regional Enterprise,Other Services,60088511,CONWAY AECOM LTD,230.64,02/10/2017
Commercial,Regional Enterprise,Other Services,60088530,CONWAY AECOM LTD,130.48,02/10/2017
Commercial,Regional Enterprise,Other Services,60088377,CONWAY AECOM LTD,40.81,11/10/2017
Commercial,Regional Enterprise,Other Services,60089088,CONWAY AECOM LTD,70.97,11/10/2017
Commercial,Regional Enterprise,Other Services,60089096,CONWAY AECOM LTD,50.87,11/10/2017
Commercial,Regional Enterprise,Other Services,60089102,CONWAY AECOM LTD,83.32,11/10/2017
Commercial,Regional Enterprise,Other Services,60089103,CONWAY AECOM LTD,130.48,11/10/2017
Commercial,Regional Enterprise,Other Services,60089104,CONWAY AECOM LTD,50.60,11/10/2017
Commercial,Regional Enterprise,Other Services,60089105,CONWAY AECOM LTD,93.55,11/10/2017
Commercial,Regional Enterprise,Other Services,60089113,CONWAY AECOM LTD,100.91,11/10/2017
Commercial,Regional Enterprise,Other Services,60089116,CONWAY AECOM LTD,100.91,11/10/2017
Commercial,Regional Enterprise,Other Services,60089119,CONWAY AECOM LTD,40.75,11/10/2017
Commercial,Regional Enterprise,Other Services,60089122,CONWAY AECOM LTD,209.93,11/10/2017
Commercial,Regional Enterprise,Other Services,60089137,CONWAY AECOM LTD,46.11,11/10/2017
Commercial,Regional Enterprise,Other Services,60089143,CONWAY AECOM LTD,50.87,11/10/2017
Commercial,Regional Enterprise,Other Services,60089147,CONWAY AECOM LTD,95.70,11/10/2017
Commercial,Regional Enterprise,Other Services,60089161,CONWAY AECOM LTD,50.87,11/10/2017
Commercial,Regional Enterprise,Other Services,60089164,CONWAY AECOM LTD,67.45,11/10/2017
Commercial,Regional Enterprise,Other Services,60089168,CONWAY AECOM LTD,302.35,11/10/2017
Commercial,Regional Enterprise,Other Services,60089169,CONWAY AECOM LTD,47.87,11/10/2017
Commercial,Regional Enterprise,Other Services,60089170,CONWAY AECOM LTD,195.72,11/10/2017
Commercial,Regional Enterprise,Other Services,60089172,CONWAY AECOM LTD,100.91,11/10/2017
Commercial,Regional Enterprise,Other Services,60089173,CONWAY AECOM LTD,178.03,11/10/2017
Commercial,Regional Enterprise,Other Services,60089176,CONWAY AECOM LTD,151.36,11/10/2017
Commercial,Regional Enterprise,Other Services,60089177,CONWAY AECOM LTD,100.91,11/10/2017
Commercial,Regional Enterprise,Other Services,60089142,CONWAY AECOM LTD,195.72,12/10/2017
Commercial,Regional Enterprise,Other Services,60089146,CONWAY AECOM LTD,130.48,12/10/2017
Commercial,Regional Enterprise,Other Services,60089273,CONWAY AECOM LTD,182.79,13/10/2017
Commercial,Regional Enterprise,Other Services,60089275,CONWAY AECOM LTD,50.87,13/10/2017
Commercial,Regional Enterprise,Other Services,60089276,CONWAY AECOM LTD,44.05,13/10/2017
Commercial,Regional Enterprise,Other Services,60089277,CONWAY AECOM LTD,46.11,13/10/2017
Commercial,Regional Enterprise,Other Services,60089289,CONWAY AECOM LTD,83.32,13/10/2017
Commercial,Regional Enterprise,Other Services,60089298,CONWAY AECOM LTD,186.47,13/10/2017
Commercial,Regional Enterprise,Other Services,60089301,CONWAY AECOM LTD,100.91,13/10/2017
Commercial,Regional Enterprise,Other Services,60089302,CONWAY AECOM LTD,114.02,13/10/2017
Commercial,Regional Enterprise,Other Services,60089303,CONWAY AECOM LTD,45.96,13/10/2017
Commercial,Regional Enterprise,Other Services,60089310,CONWAY AECOM LTD,137.09,13/10/2017
Commercial,Regional Enterprise,Other Services,60089311,CONWAY AECOM LTD,46.11,13/10/2017
Commercial,Regional Enterprise,Other Services,60089312,CONWAY AECOM LTD,100.91,13/10/2017
Commercial,Regional Enterprise,Other Services,60089313,CONWAY AECOM LTD,128.41,13/10/2017
Commercial,Regional Enterprise,Other Services,60089316,CONWAY AECOM LTD,114.02,13/10/2017
Commercial,Regional Enterprise,Other Services,60089323,CONWAY AECOM LTD,50.87,13/10/2017
Commercial,Regional Enterprise,Other Services,60089331,CONWAY AECOM LTD,45.96,13/10/2017
Commercial,Regional Enterprise,Other Services,60089333,CONWAY AECOM LTD,100.91,13/10/2017
Commercial,Regional Enterprise,Other Services,60089334,CONWAY AECOM LTD,82.37,13/10/2017
Commercial,Regional Enterprise,Other Services,60089335,CONWAY AECOM LTD,91.39,13/10/2017
Commercial,Regional Enterprise,Other Services,60089336,CONWAY AECOM LTD,50.87,13/10/2017
Commercial,Regional Enterprise,Other Services,60089341,CONWAY AECOM LTD,100.91,13/10/2017
Commercial,Regional Enterprise,Other Services,60089342,CONWAY AECOM LTD,100.91,13/10/2017
Commercial,Regional Enterprise,Other Services,60089348,CONWAY AECOM LTD,50.87,13/10/2017
Commercial,Regional Enterprise,Other Services,60089354,CONWAY AECOM LTD,183.43,13/10/2017
Commercial,Regional Enterprise,Other Services,60089357,CONWAY AECOM LTD,50.87,13/10/2017
Commercial,Regional Enterprise,Other Services,60089359,CONWAY AECOM LTD,50.87,13/10/2017
Commercial,Regional Enterprise,Other Services,60089362,CONWAY AECOM LTD,50.87,13/10/2017
Commercial,Regional Enterprise,Other Services,60089363,CONWAY AECOM LTD,64.23,13/10/2017
Commercial,Regional Enterprise,Other Services,60089372,CONWAY AECOM LTD,100.91,13/10/2017
Commercial,Regional Enterprise,Other Services,60089374,CONWAY AECOM LTD,130.48,16/10/2017
Commercial,Regional Enterprise,Other Services,60089377,CONWAY AECOM LTD,114.60,16/10/2017
Commercial,Regional Enterprise,Other Services,60089378,CONWAY AECOM LTD,46.11,16/10/2017
Commercial,Regional Enterprise,Other Services,60089379,CONWAY AECOM LTD,65.78,16/10/2017
Commercial,Regional Enterprise,Other Services,60089397,CONWAY AECOM LTD,151.36,16/10/2017
Commercial,Regional Enterprise,Other Services,60089398,CONWAY AECOM LTD,46.11,16/10/2017
Commercial,Regional Enterprise,Other Services,60089402,CONWAY AECOM LTD,50.87,16/10/2017
Commercial,Regional Enterprise,Other Services,60089410,CONWAY AECOM LTD,100.91,16/10/2017
Commercial,Regional Enterprise,Other Services,60089412,CONWAY AECOM LTD,61.87,16/10/2017
Commercial,Regional Enterprise,Other Services,60089414,CONWAY AECOM LTD,151.36,16/10/2017
Commercial,Regional Enterprise,Other Services,60089415,CONWAY AECOM LTD,46.11,16/10/2017
Commercial,Regional Enterprise,Other Services,60089416,CONWAY AECOM LTD,130.48,16/10/2017
Commercial,Regional Enterprise,Other Services,60089425,CONWAY AECOM LTD,59.43,16/10/2017
Commercial,Regional Enterprise,Other Services,60089433,CONWAY AECOM LTD,130.48,16/10/2017
Commercial,Regional Enterprise,Other Services,60089445,CONWAY AECOM LTD,100.91,16/10/2017
Commercial,Regional Enterprise,Other Services,60089453,CONWAY AECOM LTD,100.91,17/10/2017
Commercial,Regional Enterprise,Other Services,60089454,CONWAY AECOM LTD,54.93,17/10/2017
Commercial,Regional Enterprise,Other Services,60089456,CONWAY AECOM LTD,32.36,17/10/2017
Commercial,Regional Enterprise,Other Services,60089457,CONWAY AECOM LTD,91.39,17/10/2017
Commercial,Regional Enterprise,Other Services,60089460,CONWAY AECOM LTD,44.05,17/10/2017
Commercial,Regional Enterprise,Other Services,60089462,CONWAY AECOM LTD,50.96,17/10/2017
Commercial,Regional Enterprise,Other Services,60089463,CONWAY AECOM LTD,50.96,17/10/2017
Commercial,Regional Enterprise,Other Services,60089467,CONWAY AECOM LTD,100.91,17/10/2017
Commercial,Regional Enterprise,Other Services,60089474,CONWAY AECOM LTD,50.87,17/10/2017
Commercial,Regional Enterprise,Other Services,60089477,CONWAY AECOM LTD,109.02,17/10/2017
Commercial,Regional Enterprise,Other Services,60089479,CONWAY AECOM LTD,100.99,17/10/2017
Commercial,Regional Enterprise,Other Services,60089482,CONWAY AECOM LTD,169.55,17/10/2017
Commercial,Regional Enterprise,Other Services,60089489,CONWAY AECOM LTD,174.36,17/10/2017
Commercial,Regional Enterprise,Other Services,60089491,CONWAY AECOM LTD,50.87,17/10/2017
Commercial,Regional Enterprise,Other Services,60089498,CONWAY AECOM LTD,54.93,17/10/2017
Commercial,Regional Enterprise,Other Services,60089500,CONWAY AECOM LTD,151.36,17/10/2017
Commercial,Regional Enterprise,Other Services,60089501,CONWAY AECOM LTD,167.25,17/10/2017
Commercial,Regional Enterprise,Other Services,60089502,CONWAY AECOM LTD,118.81,17/10/2017
Commercial,Regional Enterprise,Other Services,60089505,CONWAY AECOM LTD,34.92,17/10/2017
Commercial,Regional Enterprise,Other Services,60089508,CONWAY AECOM LTD,56.21,17/10/2017
Commercial,Regional Enterprise,Other Services,60089509,CONWAY AECOM LTD,50.87,17/10/2017
Commercial,Regional Enterprise,Other Services,60089516,CONWAY AECOM LTD,109.02,17/10/2017
Commercial,Regional Enterprise,Other Services,60089517,CONWAY AECOM LTD,93.96,17/10/2017
Commercial,Regional Enterprise,Other Services,60089518,CONWAY AECOM LTD,190.79,17/10/2017
Commercial,Regional Enterprise,Other Services,60089520,CONWAY AECOM LTD,34.92,17/10/2017
Commercial,Regional Enterprise,Other Services,60089521,CONWAY AECOM LTD,34.92,17/10/2017
Commercial,Regional Enterprise,Other Services,60089523,CONWAY AECOM LTD,64.23,17/10/2017
Commercial,Regional Enterprise,Other Services,60089527,CONWAY AECOM LTD,65.78,17/10/2017
Commercial,Regional Enterprise,Other Services,60089528,CONWAY AECOM LTD,46.11,17/10/2017
Commercial,Regional Enterprise,Other Services,60089529,CONWAY AECOM LTD,133.35,17/10/2017
Commercial,Regional Enterprise,Other Services,60089532,CONWAY AECOM LTD,66.13,17/10/2017
Commercial,Regional Enterprise,Other Services,60089533,CONWAY AECOM LTD,32.36,17/10/2017
Commercial,Regional Enterprise,Other Services,60089534,CONWAY AECOM LTD,54.93,17/10/2017
Commercial,Regional Enterprise,Other Services,60089535,CONWAY AECOM LTD,50.96,17/10/2017
Commercial,Regional Enterprise,Other Services,60089538,CONWAY AECOM LTD,151.36,17/10/2017
Commercial,Regional Enterprise,Other Services,60089539,CONWAY AECOM LTD,62.36,17/10/2017
Commercial,Regional Enterprise,Other Services,60089541,CONWAY AECOM LTD,32.36,17/10/2017
Commercial,Regional Enterprise,Other Services,60089544,CONWAY AECOM LTD,100.91,17/10/2017
Commercial,Regional Enterprise,Other Services,60089360,CONWAY AECOM LTD,112.59,18/10/2017
Commercial,Regional Enterprise,Other Services,60088973,CONWAY AECOM LTD,180.58,19/10/2017
Commercial,Regional Enterprise,Other Services,60089841,CONWAY AECOM LTD,45.66,23/10/2017
Commercial,Regional Enterprise,Other Services,60089855,CONWAY AECOM LTD,54.93,23/10/2017
Commercial,Regional Enterprise,Other Services,60089862,CONWAY AECOM LTD,65.78,23/10/2017
Commercial,Regional Enterprise,Other Services,60089879,CONWAY AECOM LTD,54.93,23/10/2017
Commercial,Regional Enterprise,Other Services,60089885,CONWAY AECOM LTD,65.78,23/10/2017
Commercial,Regional Enterprise,Other Services,60089000,CONWAY AECOM LTD,469.96,24/10/2017
Commercial,Regional Enterprise,Other Services,60089011,CONWAY AECOM LTD,110.81,24/10/2017
Commercial,Regional Enterprise,Other Services,60089053,CONWAY AECOM LTD,551.70,24/10/2017
Commercial,Regional Enterprise,Other Services,60090190,CONWAY AECOM LTD,45.66,26/10/2017
Commercial,Regional Enterprise,Other Services,60090191,CONWAY AECOM LTD,65.78,26/10/2017
Commercial,Regional Enterprise,Other Services,60090192,CONWAY AECOM LTD,45.86,26/10/2017
Commercial,Regional Enterprise,Other Services,60090195,CONWAY AECOM LTD,70.97,26/10/2017
Commercial,Regional Enterprise,Other Services,60090196,CONWAY AECOM LTD,70.97,26/10/2017
Commercial,Regional Enterprise,Other Services,60090200,CONWAY AECOM LTD,32.09,26/10/2017
Commercial,Regional Enterprise,Other Services,60090206,CONWAY AECOM LTD,163.54,26/10/2017
Commercial,Regional Enterprise,Other Services,60090211,CONWAY AECOM LTD,100.04,26/10/2017
Commercial,Regional Enterprise,Other Services,60090213,CONWAY AECOM LTD,354.33,26/10/2017
Commercial,Regional Enterprise,Other Services,60090215,CONWAY AECOM LTD,65.78,26/10/2017
Commercial,Regional Enterprise,Other Services,60090223,CONWAY AECOM LTD,214.41,26/10/2017
Commercial,Regional Enterprise,Other Services,60090225,CONWAY AECOM LTD,73.20,26/10/2017
Commercial,Regional Enterprise,Other Services,60090226,CONWAY AECOM LTD,50.67,26/10/2017
Commercial,Regional Enterprise,Other Services,60090229,CONWAY AECOM LTD,94.88,26/10/2017
Commercial,Regional Enterprise,Other Services,60090231,CONWAY AECOM LTD,32.37,26/10/2017
Commercial,Regional Enterprise,Other Services,60090232,CONWAY AECOM LTD,45.86,26/10/2017
Commercial,Regional Enterprise,Other Services,60090234,CONWAY AECOM LTD,50.67,26/10/2017
Commercial,Regional Enterprise,Other Services,60090238,CONWAY AECOM LTD,95.30,26/10/2017
Commercial,Regional Enterprise,Other Services,60090239,CONWAY AECOM LTD,137.54,26/10/2017
Commercial,Regional Enterprise,Other Services,60090244,CONWAY AECOM LTD,140.87,26/10/2017
Commercial,Regional Enterprise,Other Services,60090248,CONWAY AECOM LTD,65.78,26/10/2017
Commercial,Regional Enterprise,Other Services,60090250,CONWAY AECOM LTD,218.05,26/10/2017
Commercial,Regional Enterprise,Other Services,60090252,CONWAY AECOM LTD,56.21,26/10/2017
Commercial,Regional Enterprise,Other Services,60090253,CONWAY AECOM LTD,54.93,26/10/2017
Commercial,Regional Enterprise,Other Services,60090256,CONWAY AECOM LTD,86.24,26/10/2017
Commercial,Regional Enterprise,Other Services,60090258,CONWAY AECOM LTD,50.60,26/10/2017
Commercial,Regional Enterprise,Other Services,60090260,CONWAY AECOM LTD,123.35,26/10/2017
Commercial,Regional Enterprise,Other Services,60090262,CONWAY AECOM LTD,45.86,26/10/2017
Commercial,Regional Enterprise,Other Services,60090265,CONWAY AECOM LTD,54.59,26/10/2017
Commercial,Regional Enterprise,Other Services,60090270,CONWAY AECOM LTD,45.66,26/10/2017
Commercial,Regional Enterprise,Other Services,60090272,CONWAY AECOM LTD,196.77,26/10/2017
Commercial,Regional Enterprise,Other Services,60090280,CONWAY AECOM LTD,123.89,26/10/2017
Commercial,Regional Enterprise,Other Services,60090284,CONWAY AECOM LTD,50.67,26/10/2017
Commercial,Regional Enterprise,Other Services,60090285,CONWAY AECOM LTD,54.93,26/10/2017
Commercial,Regional Enterprise,Other Services,60090291,CONWAY AECOM LTD,141.02,26/10/2017
Commercial,Regional Enterprise,Other Services,60090294,CONWAY AECOM LTD,112.49,26/10/2017
Commercial,Regional Enterprise,Other Services,60090295,CONWAY AECOM LTD,65.78,26/10/2017
Commercial,Regional Enterprise,Other Services,60090298,CONWAY AECOM LTD,50.67,26/10/2017
Commercial,Regional Enterprise,Other Services,60090299,CONWAY AECOM LTD,86.24,26/10/2017
Commercial,Regional Enterprise,Other Services,60090300,CONWAY AECOM LTD,54.93,26/10/2017
Commercial,Regional Enterprise,Other Services,60090301,CONWAY AECOM LTD,161.97,26/10/2017
Commercial,Regional Enterprise,Other Services,60090303,CONWAY AECOM LTD,102.97,26/10/2017
Commercial,Regional Enterprise,Other Services,60090528,RM COUNTRYSIDE SERVICES LTD,472.00,30/10/2017
Commercial,Regional Enterprise,Miscellaneous Expenses,60086035,TRINITY CHURCH CENTRE,83.15,23/10/2017
Commercial,Regional Enterprise,Other Services,60088812,CONWAY AECOM LTD,"1,519.20",06/10/2017
Commercial,Regional Enterprise,Other Services,60088830,CONWAY AECOM LTD,633.00,06/10/2017
Commercial,Regional Enterprise,Other Services,60088853,CONWAY AECOM LTD,911.52,06/10/2017
Commercial,Regional Enterprise,Other Services,60088371,CONWAY AECOM LTD,784.92,11/10/2017
Commercial,Regional Enterprise,Other Services,60089076,CONWAY AECOM LTD,265.86,19/10/2017
Commercial,Regional Enterprise,Other Services,60088976,CONWAY AECOM LTD,886.20,24/10/2017
Commercial,Regional Enterprise,Other Services,60088990,CONWAY AECOM LTD,911.52,24/10/2017
Commercial,Regional Enterprise,Other Services,60088992,CONWAY AECOM LTD,582.36,24/10/2017
Commercial,Regional Enterprise,Other Services,60088999,CONWAY AECOM LTD,658.32,24/10/2017
Commercial,Regional Enterprise,Other Services,60089015,CONWAY AECOM LTD,151.92,24/10/2017
Commercial,Regional Enterprise,Other Services,60089025,CONWAY AECOM LTD,949.50,24/10/2017
Commercial,Regional Enterprise,Other Services,60089028,CONWAY AECOM LTD,436.77,24/10/2017
Commercial,Regional Enterprise,Other Services,60089043,CONWAY AECOM LTD,"1,569.84",24/10/2017
Commercial,Regional Enterprise,Other Services,60089066,CONWAY AECOM LTD,"1,139.40",24/10/2017
Commercial,Regional Enterprise,Other Services,60089067,CONWAY AECOM LTD,379.80,24/10/2017
Commercial,Regional Enterprise,Other Services,60089068,CONWAY AECOM LTD,557.04,24/10/2017
Commercial,Regional Enterprise,Other Services,60089070,CONWAY AECOM LTD,"1,569.84",24/10/2017
Commercial,Regional Enterprise,Other Services,60089075,CONWAY AECOM LTD,"1,215.36",24/10/2017
Commercial,Regional Enterprise,Other Services,60089625,AMAS LTD,150.00,18/10/2017
Commercial,Regional Enterprise,Grant Payments,80013016,MCP PROPERTY SERVICES LTD,"7,050.00",19/10/2017
Commercial,Regional Enterprise,Grant Payments,80013008,PUBLISH - REDACT NAME,"2,350.00",12/10/2017
Commercial,Regional Enterprise,Grant Payments,80013020,PUBLISH - REDACT NAME,"10,500.00",13/10/2017
Commercial,Regional Enterprise,Other Establishments - Third P,80013037,TFL,"404,031.43",13/10/2017
Commercial,Regional Enterprise,Grant Payments,80013240,NW LONDON GARD,400.00,23/10/2017
Commercial,Regional Enterprise,Fees and Charges,20034791,SEARCHES ONLINE,212.00,05/10/2017
Commercial,Regional Enterprise,Other Services,60089909,GROUNDWORK LONDON,333.33,26/10/2017
Commercial,Regional Enterprise,Other Services,60089961,GROUNDWORK LONDON,"37,600.00",26/10/2017
Commercial,Regional Enterprise,Consultants Fees,60088412,EVERSHEDS LLP,"2,521.16",06/10/2017
Commercial,Regional Enterprise,Consultants Fees,60088828,GOWLING WLG,900.00,13/10/2017
Commercial,Regional Enterprise,Consultants Fees,60089293,GOWLING WLG,"3,994.36",26/10/2017
Commercial,Regional Enterprise,Consultants Fees,60089307,GOWLING WLG,"8,089.32",26/10/2017
Commercial,Regional Enterprise,Consultants Fees,60089325,GOWLING WLG,300.00,26/10/2017
Commercial,Regional Enterprise,Consultants Fees,60088029,URBAN MICROCLIMATE LTD,"2,500.00",19/10/2017
Commercial,Regional Enterprise,Consultants Fees,60088685,GOWLING WLG,"2,703.82",05/10/2017
Commercial,Regional Enterprise,Consultants Fees,60088699,GOWLING WLG,"7,302.67",05/10/2017
Commercial,Regional Enterprise,Consultants Fees,60088765,GOWLING WLG,"1,015.00",05/10/2017
Commercial,Regional Enterprise,Consultants Fees,60089305,GOWLING WLG,715.12,26/10/2017
Commercial,Regional Enterprise,Consultants Fees,60089309,GOWLING WLG,"3,536.28",26/10/2017
Commercial,Regional Enterprise,Consultants Fees,60089320,GOWLING WLG,"1,251.23",26/10/2017
Commercial,Regional Enterprise,Consultants Fees,60089324,GOWLING WLG,219.40,26/10/2017
Commercial,Regional Enterprise,Consultants Fees,60089338,GOWLING WLG,"1,696.00",26/10/2017
Commercial,Regional Enterprise,Consultants Fees,60089345,GOWLING WLG,"2,923.78",26/10/2017
Commercial,Regional Enterprise,Consultants Fees,60089364,GOWLING WLG,"1,015.20",26/10/2017
Commercial,Regional Enterprise,Consultants Fees,60089373,GOWLING WLG,"1,384.06",26/10/2017
Commercial,Regional Enterprise,Agency/Interim Non Hays,60088536,WE MADE THAT LLP,"2,699.81",26/10/2017
Commercial,Regional Enterprise,RE Services Contract Payment,60088076,RE (REGIONAL ENTERPRISE) LIMITED,"23,811.53",06/10/2017
Commercial,Regional Enterprise,RE Services Contract Payment,60088112,RE (REGIONAL ENTERPRISE) LIMITED,"23,493.35",06/10/2017
Commercial,Regional Enterprise,RE Services Contract Payment,60084009,RE (REGIONAL ENTERPRISE) LIMITED,"1,028,633.75",16/10/2017
Commercial,Regional Enterprise,Cleaning and domestic material,60086627,CHURCHILL CONTRACT SERVICES,488.56,18/10/2017
Commercial,Regional Enterprise,Cleaning and domestic material,60088690,CHURCHILL CONTRACT SERVICES,488.56,30/10/2017
Commercial,Regional Enterprise,RE Services Contract Payment,60088160,RE (REGIONAL ENTERPRISE) LIMITED,"167,500.00",06/10/2017
Commercial,Regional Enterprise,Grant Payments,80013286,ACCESS & AUTOMATION LTD,"3,115.00",25/10/2017
Commercial,Regional Enterprise,Grant Payments,80012547,AMWELL CONSTRUCTION LTD,"7,058.00",02/10/2017
Commercial,Regional Enterprise,Grant Payments,80013012,AMWELL CONSTRUCTION LTD,"5,145.78",12/10/2017
Commercial,Regional Enterprise,Grant Payments,80013018,AMWELL CONSTRUCTION LTD,"10,802.00",13/10/2017
Commercial,Regional Enterprise,Grant Payments,80013100,AMWELL CONSTRUCTION LTD,"12,988.00",16/10/2017
Commercial,Regional Enterprise,Grant Payments,80013104,AMWELL CONSTRUCTION LTD,"11,405.00",16/10/2017
Commercial,Regional Enterprise,Grant Payments,80013288,AMWELL CONSTRUCTION LTD,"6,295.00",25/10/2017
Commercial,Regional Enterprise,Grant Payments,80013349,AMWELL CONSTRUCTION LTD,"11,181.30",27/10/2017
Commercial,Regional Enterprise,Grant Payments,80013354,AMWELL CONSTRUCTION LTD,"18,746.00",27/10/2017
Commercial,Regional Enterprise,Grant Payments,80013005,ASTOR BANNERMAN LTD,"9,232.00",13/10/2017
Commercial,Regional Enterprise,Grant Payments,80013329,DOLPHIN MOBILITY LTD.,"5,460.00",25/10/2017
Commercial,Regional Enterprise,Grant Payments,80012543,DP BUILDERS DISABLED ADAPTATIONS,"2,944.00",02/10/2017
Commercial,Regional Enterprise,Grant Payments,80012906,DP BUILDERS DISABLED ADAPTATIONS,"4,579.48",12/10/2017
Commercial,Regional Enterprise,Grant Payments,80013167,DP BUILDERS DISABLED ADAPTATIONS,"2,991.00",25/10/2017
Commercial,Regional Enterprise,Grant Payments,80012795,H D PROPERTY SERVICES LTD,"6,456.00",04/10/2017
Commercial,Regional Enterprise,Grant Payments,80012796,H D PROPERTY SERVICES LTD,"4,605.00",04/10/2017
Commercial,Regional Enterprise,Grant Payments,80012964,H D PROPERTY SERVICES LTD,"4,715.82",12/10/2017
Commercial,Regional Enterprise,Grant Payments,80013062,H D PROPERTY SERVICES LTD,"4,864.00",13/10/2017
Commercial,Regional Enterprise,Grant Payments,80013287,H D PROPERTY SERVICES LTD,"1,324.00",25/10/2017
Commercial,Regional Enterprise,Grant Payments,80013320,H D PROPERTY SERVICES LTD,"1,300.00",25/10/2017
Commercial,Regional Enterprise,Grant Payments,80013234,PC BY VOICE LTD,"17,135.00",19/10/2017
Commercial,Regional Enterprise,Grant Payments,80012509,SOUTH HERTFORDSHIRE,"5,436.00",02/10/2017
Commercial,Regional Enterprise,Grant Payments,80012782,SOUTH HERTFORDSHIRE,"1,995.00",04/10/2017
Commercial,Regional Enterprise,Grant Payments,80012857,SOUTH HERTFORDSHIRE,"5,149.00",10/10/2017
Commercial,Regional Enterprise,Grant Payments,80012915,SOUTH HERTFORDSHIRE,"5,500.00",10/10/2017
Commercial,Regional Enterprise,Grant Payments,80012953,SOUTH HERTFORDSHIRE,"2,868.01",11/10/2017
Commercial,Regional Enterprise,Grant Payments,80013051,SOUTH HERTFORDSHIRE,"1,445.00",13/10/2017
Commercial,Regional Enterprise,Grant Payments,80013355,SOUTH HERTFORDSHIRE,350.00,27/10/2017
Commercial,Regional Enterprise,Grant Payments,80012535,STANNAH STAIRLIFTS LTD,"1,240.83",02/10/2017
Commercial,Regional Enterprise,Grant Payments,80012806,STANNAH STAIRLIFTS LTD,"5,377.00",10/10/2017
Commercial,Regional Enterprise,Grant Payments,80013013,STANNAH STAIRLIFTS LTD,"4,503.00",12/10/2017
Commercial,Regional Enterprise,Grant Payments,80013014,STANNAH STAIRLIFTS LTD,"4,690.00",12/10/2017
Commercial,Regional Enterprise,Grant Payments,80013319,STANNAH STAIRLIFTS LTD,"2,705.00",25/10/2017
Commercial,Regional Enterprise,Grant Payments,80013378,STANNAH STAIRLIFTS LTD,"2,234.00",27/10/2017
Commercial,Regional Enterprise,Grant Payments,80012297,TOTAL HYGIENE LIMITED,"3,978.50",03/10/2017
Commercial,Regional Enterprise,Grant Payments,80013032,PUBLISH - REDACT NAME,"11,254.00",13/10/2017
Commercial,Regional Enterprise,Grant Payments,80013106,PUBLISH - REDACT NAME,"10,378.00",19/10/2017
Commercial,Regional Enterprise,Grant Payments,80012700,ARTHUR J. FERRYMAN ASSOCIATES,"2,039.64",05/10/2017
Commercial,Regional Enterprise,Grant Payments,80012701,BG BUILDING SOCIETY,"17,846.85",05/10/2017
Commercial,Regional Enterprise,Other Services,60088571,CONWAY AECOM LTD,459.94,03/10/2017
Commercial,Regional Enterprise,Other Services,60088565,CONWAY AECOM LTD,776.93,03/10/2017
Commercial,Regional Enterprise,Other Services,60088611,BARNET LIGHTING SERVICES LTD,"1,029.25",06/10/2017
Commercial,Regional Enterprise,Other Services,60090251,BARNET LIGHTING SERVICES LTD,690.00,26/10/2017
Commercial,Regional Enterprise,Other Services,60089459,BARNET LIGHTING SERVICES LTD,"4,290.20",17/10/2017
Commercial,Regional Enterprise,Other Services,60082341,LONDON BOROUGH OF HAMMERSMITH & FUL,"1,072.87",17/10/2017
Commercial,Regional Enterprise,Other Services,60088198,CONWAY AECOM LTD,"3,630.99",03/10/2017
Commercial,Regional Enterprise,Other Services,60088805,CONWAY AECOM LTD,"3,548.86",06/10/2017
Commercial,Regional Enterprise,Other Services,60088809,CONWAY AECOM LTD,"4,048.06",06/10/2017
Commercial,Regional Enterprise,Other Services,60088811,CONWAY AECOM LTD,733.80,06/10/2017
Commercial,Regional Enterprise,Other Services,60088834,CONWAY AECOM LTD,"2,323.52",06/10/2017
Commercial,Regional Enterprise,Other Services,60088869,CONWAY AECOM LTD,"2,127.38",06/10/2017
Commercial,Regional Enterprise,Other Services,60088874,CONWAY AECOM LTD,"3,742.90",06/10/2017
Commercial,Regional Enterprise,Other Services,60088875,CONWAY AECOM LTD,"1,144.30",06/10/2017
Commercial,Regional Enterprise,Other Services,60088157,CONWAY AECOM LTD,"1,483.52",11/10/2017
Commercial,Regional Enterprise,Other Services,60088175,CONWAY AECOM LTD,"1,072.29",11/10/2017
Commercial,Regional Enterprise,Other Services,60088184,CONWAY AECOM LTD,"4,687.49",11/10/2017
Commercial,Regional Enterprise,Other Services,60088202,CONWAY AECOM LTD,"1,002.78",11/10/2017
Commercial,Regional Enterprise,Other Services,60090189,CONWAY AECOM LTD,867.46,26/10/2017
Commercial,Regional Enterprise,Other Services,60090228,CONWAY AECOM LTD,"3,165.67",26/10/2017
Commercial,Regional Enterprise,Other Services,60088797,CONWAY AECOM LTD,"86,857.73",25/10/2017
Commercial,Regional Enterprise,Other Services,60082177,CONWAY AECOM LTD,"1,793.62",12/10/2017
Commercial,Regional Enterprise,Other Services,60082550,CONWAY AECOM LTD,"1,347.19",12/10/2017
Commercial,Regional Enterprise,Other Services,60082567,CONWAY AECOM LTD,"4,094.41",12/10/2017
Commercial,Regional Enterprise,Other Services,60089485,CYCLE CONFIDENT LTD,"15,845.68",30/10/2017
Commercial,Regional Enterprise,Other Services,60089918,BARNET LIGHTING SERVICES LTD,500.00,23/10/2017
Commercial,Regional Enterprise,Advertising,60088603,TMP (UK) LTD,512.00,11/10/2017
Commercial,Regional Enterprise,Advertising,60088648,TMP (UK) LTD,717.20,11/10/2017
Commercial,Regional Enterprise,Advertising,60089263,TMP (UK) LTD,"1,271.20",17/10/2017
Commercial,Regional Enterprise,Other Services,60086176,BRITISH TELECOM PLC,"1,196.48",31/10/2017
Commercial,Regional Enterprise,Advertising,60088643,TMP (UK) LTD,"1,223.40",11/10/2017
Commercial,Regional Enterprise,Other Services,60088804,CONWAY AECOM LTD,"30,989.32",25/10/2017
Commercial,Regional Enterprise,Other Services,60089278,CONWAY AECOM LTD,"2,353.28",26/10/2017
Commercial,Regional Enterprise,Other Services,60089347,CONWAY AECOM LTD,"1,549.54",26/10/2017
Commercial,Regional Enterprise,Other Services,60089355,CONWAY AECOM LTD,"50,000.00",26/10/2017
Commercial,Regional Enterprise,Other Services,60089317,CONWAY AECOM LTD,944.22,26/10/2017
Commercial,Regional Enterprise,Other Services,60089356,CONWAY AECOM LTD,"13,624.48",26/10/2017
Commercial,Regional Enterprise,Other Services,60088563,CONWAY AECOM LTD,127.62,03/10/2017
Commercial,Regional Enterprise,Other Services,60088556,CONWAY AECOM LTD,232.93,03/10/2017
Commercial,Regional Enterprise,Other Services,60088806,CONWAY AECOM LTD,117.29,17/10/2017
Commercial,Regional Enterprise,Other Services,60089826,CONWAY AECOM LTD,38.59,25/10/2017
Commercial,Regional Enterprise,Other Services,60087987,CONWAY AECOM LTD,"10,150.26",12/10/2017
Commercial,Regional Enterprise,Other Services,60088981,CONWAY AECOM LTD,"1,841.82",24/10/2017
Commercial,Regional Enterprise,Other Services,60088986,CONWAY AECOM LTD,"1,519.77",24/10/2017
Commercial,Regional Enterprise,Other Services,60088987,CONWAY AECOM LTD,"2,236.11",24/10/2017
Commercial,Regional Enterprise,Other Services,60088991,CONWAY AECOM LTD,846.17,24/10/2017
Commercial,Regional Enterprise,Other Services,60088993,CONWAY AECOM LTD,"1,663.18",24/10/2017
Commercial,Regional Enterprise,Other Services,60088995,CONWAY AECOM LTD,"1,207.38",24/10/2017
Commercial,Regional Enterprise,Other Services,60088997,CONWAY AECOM LTD,638.11,24/10/2017
Commercial,Regional Enterprise,Other Services,60089005,CONWAY AECOM LTD,378.40,24/10/2017
Commercial,Regional Enterprise,Other Services,60089006,CONWAY AECOM LTD,913.54,24/10/2017
Commercial,Regional Enterprise,Other Services,60089013,CONWAY AECOM LTD,"2,081.39",24/10/2017
Commercial,Regional Enterprise,Other Services,60089014,CONWAY AECOM LTD,"1,459.79",24/10/2017
Commercial,Regional Enterprise,Other Services,60089016,CONWAY AECOM LTD,423.57,24/10/2017
Commercial,Regional Enterprise,Other Services,60089027,CONWAY AECOM LTD,"1,751.78",24/10/2017
Commercial,Regional Enterprise,Other Services,60089029,CONWAY AECOM LTD,"4,452.75",24/10/2017
Commercial,Regional Enterprise,Other Services,60089035,CONWAY AECOM LTD,"1,409.36",24/10/2017
Commercial,Regional Enterprise,Other Services,60089044,CONWAY AECOM LTD,208.68,24/10/2017
Commercial,Regional Enterprise,Other Services,60089052,CONWAY AECOM LTD,957.38,24/10/2017
Commercial,Regional Enterprise,Other Services,60089069,CONWAY AECOM LTD,737.46,24/10/2017
Commercial,Regional Enterprise,Other Services,60089077,CONWAY AECOM LTD,334.21,24/10/2017
Commercial,Regional Enterprise,Other Services,60089007,CONWAY AECOM LTD,406.30,25/10/2017
Commercial,Regional Enterprise,Other Services,60089012,CONWAY AECOM LTD,668.84,25/10/2017
Commercial,Regional Enterprise,Other Services,60089039,CONWAY AECOM LTD,241.73,25/10/2017
Commercial,Regional Enterprise,Other Services,60089051,CONWAY AECOM LTD,681.75,25/10/2017
Commercial,Regional Enterprise,Other Services,60089058,CONWAY AECOM LTD,"1,548.36",25/10/2017
Commercial,Regional Enterprise,Other Services,60089063,CONWAY AECOM LTD,"2,032.82",25/10/2017
Commercial,Regional Enterprise,Other Services,60089082,CONWAY AECOM LTD,825.92,25/10/2017
Commercial,Regional Enterprise,Other Services,60088350,CONWAY AECOM LTD,"19,964.25",11/10/2017
Commercial,Regional Enterprise,Other Services,60088389,CONWAY AECOM LTD,"44,122.72",11/10/2017
Commercial,Regional Enterprise,Other Services,60088399,CONWAY AECOM LTD,"43,129.60",11/10/2017
Commercial,Regional Enterprise,Other Services,60088840,CONWAY AECOM LTD,"23,068.29",25/10/2017
Commercial,Regional Enterprise,Other Services,60088975,CONWAY AECOM LTD,"2,793.76",25/10/2017
Commercial,Regional Enterprise,Other Services,60088983,CONWAY AECOM LTD,"2,929.07",25/10/2017
Commercial,Regional Enterprise,Other Services,60089145,CONWAY AECOM LTD,"5,941.50",26/10/2017
Commercial,Regional Enterprise,Other Services,60089150,CONWAY AECOM LTD,"3,036.29",26/10/2017
Commercial,Regional Enterprise,Other Services,60007818,LONDON BOROUGH OF HAMMERSMITH & FUL,479.08,17/10/2017
Commercial,Regional Enterprise,Other Services,60088559,RM COUNTRYSIDE SERVICES LTD,"1,775.00",05/10/2017
Commercial,Regional Enterprise,Consultants Fees,60087687,BOLT & HEEKS LTD,"46,590.71",12/10/2017
Commercial,Regional Enterprise,Other Services,60088597,CONWAY AECOM LTD,"4,945.80",12/10/2017
Commercial,Regional Enterprise,Other Services,60088618,CONWAY AECOM LTD,824.30,12/10/2017
Commercial,Regional Enterprise,Other Services,60088637,CONWAY AECOM LTD,"3,297.20",12/10/2017
Commercial,Regional Enterprise,Other Services,60088671,CONWAY AECOM LTD,"1,648.60",12/10/2017
Commercial,Regional Enterprise,Other Services,60088601,CONWAY AECOM LTD,"5,770.10",17/10/2017
Commercial,Regional Enterprise,Other Services,60088624,CONWAY AECOM LTD,"3,297.20",17/10/2017
Commercial,Regional Enterprise,Other Services,60088627,CONWAY AECOM LTD,824.30,17/10/2017
Commercial,Regional Enterprise,Other Services,60089458,CONWAY AECOM LTD,"65,953.36",17/10/2017
Commercial,Regional Enterprise,Other Services,60089494,CONWAY AECOM LTD,"31,629.36",17/10/2017
Commercial,Regional Enterprise,Consultants Fees,60088429,EVERSHEDS LLP,"105,872.54",06/10/2017
Commercial,Regional Enterprise,Consultants Fees,60088756,JEWISH CARE,616.00,05/10/2017
Commercial,Regional Enterprise,Consultants Fees,60088740,JEWISH CARE,616.00,17/10/2017
Commercial,Regional Enterprise,Consultants Fees,60085656,AECOM INFRASTRUCTURE & ENVIRONMENT UK LT,"2,350.00",10/10/2017
Commercial,Regional Enterprise,Consultants Fees,60088693,GOWLING WLG,"1,891.66",05/10/2017
Commercial,Regional Enterprise,Consultants Fees,60088697,GOWLING WLG,"3,895.20",05/10/2017
Commercial,Regional Enterprise,Consultants Fees,60088731,GOWLING WLG,"5,353.49",05/10/2017
Commercial,Regional Enterprise,Consultants Fees,60088743,GOWLING WLG,"4,220.41",05/10/2017
Commercial,Regional Enterprise,Consultants Fees,60088751,GOWLING WLG,"1,886.81",05/10/2017
Commercial,Regional Enterprise,Consultants Fees,60088752,GOWLING WLG,"3,055.76",05/10/2017
Commercial,Regional Enterprise,Consultants Fees,60088766,GOWLING WLG,"2,581.99",05/10/2017
Commercial,Regional Enterprise,Consultants Fees,60088768,GOWLING WLG,"3,972.82",05/10/2017
Commercial,Regional Enterprise,Consultants Fees,60089376,GOWLING WLG,"5,448.80",26/10/2017
Commercial,Regional Enterprise,Consultants Fees,60089380,GOWLING WLG,913.68,26/10/2017
Commercial,Regional Enterprise,Consultants Fees,60089390,GOWLING WLG,"6,349.32",26/10/2017
Commercial,Regional Enterprise,Consultants Fees,60089399,GOWLING WLG,"2,077.78",26/10/2017
Commercial,Regional Enterprise,Consultants Fees,60089408,GOWLING WLG,572.93,26/10/2017
Commercial,Regional Enterprise,Consultants Fees,60089417,GOWLING WLG,"10,489.55",26/10/2017
Commercial,Regional Enterprise,Consultants Fees,60089427,GOWLING WLG,"1,471.10",26/10/2017
Commercial,Regional Enterprise,Consultants Fees,60089430,GOWLING WLG,"6,133.22",26/10/2017
Commercial,Regional Enterprise,Consultants Fees,60089436,GOWLING WLG,"1,539.72",26/10/2017
Commercial,Regional Enterprise,Consultants Fees,60089446,GOWLING WLG,"8,220.15",26/10/2017
Commercial,Regional Enterprise,Consultants Fees,60088007,NETWORK RAIL INFRASTRUCTURE LTD,"135,000.00",11/10/2017
Commercial,Regional Enterprise,Consultants Fees,60089585,NETWORK RAIL INFRASTRUCTURE LTD,"49,242.89",19/10/2017
Commercial,Regional Enterprise,Consultants Fees,60088183,NETWORK RAIL INFRASTRUCTURE LTD,"565,404.02",31/10/2017
Commercial,Regional Enterprise,Consultants Fees,60088964,RAILFREIGHT CONSULTING LTD,"2,722.50",10/10/2017
Commercial,Regional Enterprise,Consultants Fees,60088928,RAILFREIGHT CONSULTING LTD,"7,095.00",11/10/2017
Commercial,Regional Enterprise,Consultants Fees,60086935,SAPIENS CONSULTANCY, 705.00 ,05/10/2017
Commercial,Regional Enterprise,Other Services,60090330,TRAFFIC SURVEY PARTNERS (TSP) LTD, 690.00 ,27/10/2017
Commercial,Regional Enterprise,Other Services,60090361,TRAFFIC SURVEY PARTNERS (TSP) LTD, 980.00 ,27/10/2017
Commissioning,Commissioning,Professional Services,10013818,GENERAL DYNAMICS INFORMATION TECHNOLOGY," 5,683.00 ",02/10/2017
Commissioning,Commissioning,Professional Services,10013895,GENERAL DYNAMICS INFORMATION TECHNOLOGY," 6,097.80 ",05/10/2017
Commissioning,Commissioning,Professional Services,10013819,GENERAL DYNAMICS INFORMATION TECHNOLOGY, 12.00 ,20/10/2017
Commissioning,Commissioning,Professional Services,10013903,GENERAL DYNAMICS INFORMATION TECHNOLOGY," 5,185.00 ",20/10/2017
Commissioning,Commissioning,Cleaning and domestic material,60088516,CHURCHILL CONTRACT SERVICES, 664.48 ,18/10/2017
Commissioning,Commissioning,Cleaning and domestic material,60088777,CHURCHILL CONTRACT SERVICES, 664.48 ,30/10/2017
Commissioning,Commissioning,Other Services,80012076,MYERS & CO SOLICITORS, 350.00 ,09/10/2017
Commissioning,Commissioning,Professional Services,60079772,TXTTOOLS - BLACKBOARD UK LTD," 3,000.00 ",31/10/2017
Commissioning,Commissioning,Other Services,60089078,IRMS CUSTOMER SERVICES," 1,198.00 ",10/10/2017
Commissioning,Commissioning,Other Services,60089009,SHRED-IT, 95.40 ,10/10/2017
Commissioning,Commissioning,Other Services,60089017,SHRED-IT,94.95,10/10/2017
Commissioning,Commissioning,Other Services,60089033,SHRED-IT, 94.95 ,10/10/2017
Commissioning,Commissioning,Other Services,60089138,SHRED-IT,114.48,12/10/2017
Commissioning,Commissioning,Other Services,60088978,SHRED-IT,95.40,19/10/2017
Commissioning,Commissioning,Other Services,60088988,SHRED-IT, 95.40 ,26/10/2017
Commissioning,Commissioning,Other Services,60089026,SHRED-IT, 57.24 ,31/10/2017
Commissioning,Commissioning,Ttl IT & Comms,60086989,STOR-A FILE LTD," 5,818.93 ",04/10/2017
Commissioning,Commissioning,Ttl IT & Comms,60089133,STOR-A FILE LTD,"5,780.07",27/10/2017
Commissioning,Commissioning,Software Licences & Support,60090094,J.C.APPLICATIONS DEVELOPMENT," 7,252.00 ",25/10/2017
Commissioning,Commissioning,Employee Expenses,60087233,TMP (UK) LTD, 551.75 ,10/10/2017
Commissioning,Commissioning,Consultants Fees,60087846,CAPITA BUSINESS SERVICES LTD," 4,292.39 ",10/10/2017
Commissioning,Commissioning,Consultants Fees,60087850,CAPITA BUSINESS SERVICES LTD," 8,623.61 ",10/10/2017
Commissioning,Commissioning,Other Services,60086452,TMP (UK) LTD,841.00,19/10/2017
Commissioning,Commissioning,Consultants Fees,60088629,ARIANA BANQUETING HALL,400.00,31/10/2017
Commissioning,Commissioning,Ttl IT & Comms,60088296,DATAPRESS LTD," 9,924.00 ",17/10/2017
Commissioning,Commissioning,Consultants Fees,60089804,LEIDOS INNOVATIONS UK LTD," 8,684.00 ",31/10/2017
Commissioning,Commissioning,Printing-Contract,40002607,OFFICE DEPOT UK LTD, 12.28 ,24/10/2017
Commissioning,Commissioning,Other Agencies - Third Party P,60088948,FAMILY FUND TRADING LTD, 176.00 ,17/10/2017
Commissioning,Commissioning,Professional Services,60087715,THE BARNETGROUP LIMITED,"8,916.90",17/10/2017
Commissioning,Commissioning,Equipment and Materials Purcha,60087524,NISBETS PLC, 53.54 ,31/10/2017
Commissioning,Commissioning,Grant Payments,60077251,GROUNDWORK LONDON," 20,000.00 ",02/10/2017
Commissioning,Commissioning,Grant Payments,60084651,GROUNDWORK LONDON,"19,867.58",02/10/2017
Commissioning,Commissioning,Consultants Fees,60087835,PUBLISH - REDACT NAME," 1,250.00 ",11/10/2017
Commissioning,Commissioning,Consultants Fees,60087861,PUBLISH - REDACT NAME, 400.00 ,11/10/2017
Commissioning,Commissioning,Equipment and Materials Purcha,60088864,BARNET LIGHTING SERVICES LTD, 500.00 ,11/10/2017
Commissioning,Commissioning,Consultants Fees,60082892,PHOENIX CANOE CLUB LIMITED,102.08,24/10/2017
Commissioning,Commissioning,Other Services,60088850,GREENWICH LEISURE LTD," 2,380.50 ",23/10/2017
Commissioning,Commissioning,Other Services,60088808,OUR PARKS," 4,635.00 ",31/10/2017
Commissioning,Commissioning,Professional Services,60089642,MOTT MACDONALD LTD/CAMBRIDGE EDUCATION, 36.00 ,19/10/2017
Commissioning,Commissioning,Other Transfer Payments to Soc,60088329,SOLACE WOMEN'S AID," 74,552.50 ",03/10/2017
Commissioning,Commissioning,Other Transfer Payments to Soc,60088867,BARNET LIGHTING SERVICES LTD, 868.60 ,06/10/2017
Commissioning,Commissioning,Equipment and Materials Purcha,60088245,RISE MUTUAL CIC," 6,675.00 ",19/10/2017
Commissioning,Commissioning,Equipment and Materials Purcha,60088291,RISE MUTUAL CIC," 11,925.00 ",19/10/2017
Commissioning,Commissioning,Consultants Fees,60088807,PUBLISH - REDACT NAME, 50.00 ,31/10/2017
Commissioning,Commissioning,Private Contractors - Third Pa,60089328,GREENWICH LEISURE LTD," 121,987.03 ",18/10/2017
Commissioning,Commissioning,Other Services,60087447,REACH AND TEACH (BALL FOR ALL)," 1,270.00 ",12/10/2017
Commissioning,Commissioning,Venue Hire,60087431,RAINBOW CENTRE, 600.00 ,23/10/2017
Commissioning,Commissioning,Other Services,60087390,ART AGAINST KNIVES,"1,065.00",05/10/2017
Commissioning,Commissioning,Other Services,60087017,GREENWICH LEISURE LTD, 953.25 ,23/10/2017
Commissioning,Commissioning,Venue Hire,60087415,GREENWICH LEISURE LTD,726.60,23/10/2017
Commissioning,Commissioning,Other Services,60087015,SAS POSITIVE ACTIVITIES LTD," 2,806.00 ",20/10/2017
Commissioning,Commissioning,Consultants Fees,60080613,LONDON BOROUGH OF EALING, 123.00 ,31/10/2017
Commissioning,Commissioning,Professional Services,60087997,NAUTOGUIDE LTD," 6,995.00 ",17/10/2017
Commissioning,Commissioning,Training,80012738,PUBLISH - REDACT NAME,"2,500.00",03/10/2017
Commissioning,Commissioning,Consultants Fees,60089470,OPUS INTERNATIONAL CONSULTANTS UK LTD," 8,865.00 ",18/10/2017
Commissioning,Commissioning,Consultants Fees,60087490,PROJECT CENTRE LTD," 5,288.50 ",10/10/2017
Commissioning,Commissioning,Consultants Fees,60090513,MOTT MACDONALD LTD/CAMBRIDGE EDUCATION," 143,129.00 ",30/10/2017
Commissioning,Commissioning,Professional Services,60088522,LONDON BOROUGH OF EALING," 2,500.00 ",02/10/2017
Commissioning,Commissioning,Venue Hire,80012550,LOVE BURNT OAK COMMUNITY RESOURCE & SUPP, 150.00 ,05/10/2017
Commissioning,Commissioning,Professional Services,60087799,THE BARNETGROUP LIMITED,"2,708.39",17/10/2017
Commissioning,Commissioning,Professional Services,60088943,B.T.S . HOLDINGS PLC," 1,700.00 ",26/10/2017
Commissioning,Commissioning,Professional Services,60089110,MYSTERY SHOPPERS LTD, 433.55 ,30/10/2017
Commissioning,Commissioning,Professional Services,60088241,ALPHA RESEARCH LIMITED," 3,390.00 ",17/10/2017
Commissioning,Commissioning,Consultants Fees,20034821,WESTCO TRADING LTD," 2,750.00 ",13/10/2017
Commissioning,Commissioning,Equipment and Materials Purcha,60088435,AV2HIRE, 205.00 ,25/10/2017
Commissioning,Commissioning,Publications,60090046,LETTERBOX DISTRIBUTION.COM, 300.00 ,26/10/2017
Commissioning,Commissioning,Consultants Fees,60090101,WHATEVER DESIGN LTD, 600.00 ,25/10/2017
Commissioning,Commissioning,Training,60088347,FILEMAKER INTERNATIONAL LTD, 404.00 ,24/10/2017
Commissioning,Commissioning,Printing-Contract,60088816,LETTERBOX DISTRIBUTION.COM," 10,237.50 ",06/10/2017
Commissioning,Commissioning,Publications,60088171,PUBLISH - REDACT NAME, 250.00 ,05/10/2017
Commissioning,Commissioning,Professional Services,60089126,MIDDLESEX UNIVERSITY,213.40,12/10/2017
Commissioning,Commissioning,Other Services,60088890,BLUE 9 SECURITY LIMITED," 1,977.39 ",11/10/2017
Commissioning,Commissioning,Other Services,60088907,BLUE 9 SECURITY LIMITED," 2,428.93 ",11/10/2017
Commissioning,Commissioning,Other Services,60088926,BLUE 9 SECURITY LIMITED," 2,358.86 ",11/10/2017
Commissioning,Commissioning,Other Services,60088940,BLUE 9 SECURITY LIMITED," 2,444.49 ",11/10/2017
Commissioning,Commissioning,Other Services,60088942,BLUE 9 SECURITY LIMITED," 2,366.64 ",11/10/2017
Commissioning,Commissioning,Other Services,60088944,BLUE 9 SECURITY LIMITED," 2,273.22 ",11/10/2017
Commissioning,Commissioning,Other Services,60088959,BLUE 9 SECURITY LIMITED, 474.89 ,11/10/2017
Commissioning,Commissioning,Other Services,60088966,BLUE 9 SECURITY LIMITED," 3,448.76 ",11/10/2017
Commissioning,Commissioning,Professional Services,60079083,ARIANA BANQUETING HALL," 1,600.00 ",31/10/2017
Commissioning,Commissioning,Professional Services,60087284,TRACEY HILL TRAINING & CONSULTANCY LTD," 3,554.40 ",06/10/2017
Commissioning,Commissioning,Other Services,60075548,MOTT MACDONALD LTD/CAMBRIDGE EDUCATION," 4,050.35 ",16/10/2017
Commissioning,Commissioning,Other Services,60075588,MOTT MACDONALD LTD/CAMBRIDGE EDUCATION," 3,440.35 ",16/10/2017
Commissioning,Commissioning,Other Services,60089869,MOTT MACDONALD LTD/CAMBRIDGE EDUCATION,"4,366.60",27/10/2017
Commissioning,Commissioning,Equipment and Materials Purcha,60088261,CHARLES WILSON ENGINEERS LTD, 9.00 ,03/10/2017
Commissioning,Commissioning,Capital Construction and Works,60087752,CLEVELAND SITESAFE LTD," 3,249.00 ",16/10/2017
Commissioning,Commissioning,Building Repairs & Maintenance,60088395,CONTAINERS DIRECT," 9,999.00 ",12/10/2017
Commissioning,Commissioning,Building Repairs & Maintenance,60089081,CONWAY AECOM LTD," 1,556.84 ",26/10/2017
Commissioning,Commissioning,Other Services,60090392,HARROW GREEN LTD," 1,343.75 ",31/10/2017
Commissioning,Commissioning,Other Services,60090395,HARROW GREEN LTD," 1,112.18 ",31/10/2017
Commissioning,Commissioning,Furniture-Purchase-Repair,60089144,OFFICE UPDATE LTD," 7,923.20 ",11/10/2017
Commissioning,Commissioning,Building Repairs & Maintenance,60089976,RGE SERVICES,"4,055.03",23/10/2017
Commissioning,Commissioning,Capital Construction and Works,60088980,S W BRUCE & CO LTD," 9,292.00 ",10/10/2017
Commissioning,Commissioning,Building Repairs & Maintenance,60088059,S W BRUCE & CO LTD,639.50,17/10/2017
Commissioning,Commissioning,Furniture-Purchase-Repair,60084280,SENATOR INTERNATIONAL," 7,808.00 ",11/10/2017
Commissioning,Commissioning,Furniture-Purchase-Repair,60084459,SENATOR INTERNATIONAL," 2,074.00 ",11/10/2017
Commissioning,Commissioning,Capital Construction and Works,60090663,S W BRUCE & CO LTD,491.74,31/10/2017
Commissioning,Commissioning,Consultants Fees,60088091,ARIANA BANQUETING HALL," 3,200.00 ",17/10/2017
Commissioning,Commissioning,Professional Services,60088299,CYCLE CONFIDENT LTD, 390.00 ,12/10/2017
Commissioning,Commissioning,Consultants Fees,60089422,GALLIFORD TRY," 1,124,751.56 ",26/10/2017
Commissioning,Commissioning,Other Services,60089206,TMP (UK) LTD, 785.60 ,17/10/2017
Commissioning,Commissioning,Advertising,60089226,TMP (UK) LTD,512.00,19/10/2017
Commissioning,Commissioning,Other Services,60090412,TRAFFIC SURVEY PARTNERS (TSP) LTD, 340.00 ,27/10/2017
Commissioning,Commissioning,Other Services,60087586,40SEVEN LTD," 1,400.00 ",05/10/2017
Commissioning,Commissioning,Other Services,60090394,BARNET LIGHTING SERVICES LTD," 4,156.10 ",27/10/2017
Commissioning,Commissioning,Other Services,60090373,TRAFFIC SURVEY PARTNERS (TSP) LTD, 320.00 ,27/10/2017
Commissioning,Commissioning,Other Services,60087252,40SEVEN LTD," 2,355.00 ",05/10/2017
Commissioning,Commissioning,Other Services,60088596,BARNET LIGHTING SERVICES LTD, 500.00 ,04/10/2017
Commissioning,Commissioning,Equipment and Materials Purcha,60088651,BARNET LIGHTING SERVICES LTD, 700.82 ,04/10/2017
Commissioning,Commissioning,Advertising,60088659,TMP (UK) LTD, 580.40 ,11/10/2017
Commissioning,Commissioning,Advertising,60088639,TMP (UK) LTD, 915.60 ,17/10/2017
Commissioning,Commissioning,Other Services,60086435,TMP (UK) LTD," 1,471.00 ",19/10/2017
Corporate Accounting,Corporate Accounting,Consultants Fees,80013098,TFL," 61,288.09 ",17/10/2017
Corporate Accounting,Corporate Accounting,Government departments - Third,80013323,DEPARTMENT FOR COMMUNITIES & LOCAL GOV.,"438,142.93",30/10/2017
Corporate Accounting,Corporate Accounting,Grant Payments,80013229,FRIENDS OF CHILDS HILL PARK," 5,000.00 ",20/10/2017
Corporate Accounting,Corporate Accounting,Grant Payments,80013232,NOA GIRLS,"5,000.00",20/10/2017
Corporate Accounting,Corporate Accounting,Grant Payments,80013351,INCLUSION BARNET," 2,312.50 ",31/10/2017
Corporate Accounting,Corporate Accounting,Other Agencies - Third Party P,60087834,THE BARNETGROUP LIMITED," 91,666.67 ",06/10/2017
Corporate Accounting,Corporate Accounting,Other Agencies - Third Party P,60087874,THE BARNETGROUP LIMITED," 2,490,000.00 ",06/10/2017
Corporate Accounting,Corporate Accounting,Other Agencies - Third Party P,60089994,THE BARNETGROUP LIMITED," 5,260,000.00 ",25/10/2017
Corporate Accounting,Corporate Accounting,Other Agencies - Third Party P,60090031,THE BARNETGROUP LIMITED,"91,666.67",25/10/2017
Corporate Accounting,Corporate Accounting,Other Transfer Payments to Soc,80013296,YOUNG MINDS, 580.70 ,23/10/2017
Corporate Accounting,Corporate Accounting,Other Transfer Payments to Soc,80013297,MACMILLAN CANCER," 1,301.68 ",23/10/2017
Corporate Accounting,Corporate Accounting,Refunds,80013321,HENDON SCHOOL (ACADEMY), 473.47 ,31/10/2017
Corporate Accounting,Corporate Accounting,Refunds,80012893,MOTT MACDONALD LTD/CAMBRIDGE EDUCATION,"4,945.70",12/10/2017
Corporate Accounting,Corporate Accounting,Refunds,80012950,MOTT MACDONALD LTD/CAMBRIDGE EDUCATION, 120.00 ,18/10/2017
Corporate Accounting,Corporate Accounting,Refunds,80012956,MOTT MACDONALD LTD/CAMBRIDGE EDUCATION,"4,095.00",18/10/2017
Corporate Accounting,Corporate Accounting,Refunds,80013035,MOTT MACDONALD LTD/CAMBRIDGE EDUCATION," 6,663.96 ",19/10/2017
Corporate Accounting,Corporate Accounting,Refunds,80013091,MOTT MACDONALD LTD/CAMBRIDGE EDUCATION," 1,951.20 ",20/10/2017
Corporate Accounting,Corporate Accounting,Refunds,80013092,MOTT MACDONALD LTD/CAMBRIDGE EDUCATION,540.00,20/10/2017
Corporate Accounting,Corporate Accounting,Refunds,80013093,MOTT MACDONALD LTD/CAMBRIDGE EDUCATION, 800.00 ,20/10/2017
Corporate Accounting,Corporate Accounting,Refunds,80013094,MOTT MACDONALD LTD/CAMBRIDGE EDUCATION," 1,173.31 ",20/10/2017
Corporate Accounting,Corporate Accounting,Refunds,80013095,MOTT MACDONALD LTD/CAMBRIDGE EDUCATION, 720.00 ,20/10/2017
Corporate Accounting,Corporate Accounting,Refunds,80013096,MOTT MACDONALD LTD/CAMBRIDGE EDUCATION," 14,145.86 ",20/10/2017
Corporate Accounting,Corporate Accounting,Other Establishments - Third P,LEEVALLEYREGPKAU,LEE VALLEY REGIONAL PARK AUTH.,"30,430.52",17/10/2017
Corporate Accounting,Corporate Accounting,Other Local Authorities - Thir,BUSNESSRATESRENTEN,GREATER LONDON AUTHORITY," 3,428,215.84 ",11/10/2017
Corporate Accounting,Corporate Accounting,Other Local Authorities - Thir,GLABRSSUPPLEMENT1,GREATER LONDON AUTHORITY," 234,605.00 ",23/10/2017
Corporate Accounting,Corporate Accounting,Other Local Authorities - Thir,LPFALEVY,GREATER LONDON AUTHORITY," 49,828.80 ",19/10/2017
Delivery Units,Adults and Communities,Voluntary Associations - Third,30171448,ELEANOR PALMER TRUST NO 2 A/C., 486.50 ,04/10/2017
Delivery Units,Adults and Communities,Voluntary Associations - Third,30172118,ELEANOR PALMER TRUST NO 2 A/C., 486.50 ,25/10/2017
Delivery Units,Adults and Communities,Other Services,30171459,WILLOW HOUSING & CARE LTD., 711.38 ,04/10/2017
Delivery Units,Adults and Communities,Other Services,30172130,WILLOW HOUSING & CARE LTD., 711.38 ,25/10/2017
Delivery Units,Adults and Communities,Voluntary Associations - Third,30171444,ASRA GREATER LONDON HOUSING ASSOC, 379.30 ,04/10/2017
Delivery Units,Adults and Communities,Voluntary Associations - Third,30172115,ASRA GREATER LONDON HOUSING ASSOC, 379.30 ,25/10/2017
Delivery Units,Adults and Communities,Voluntary Associations - Third,30171447,CHRISTIAN ACTION (ENFIELD), 365.80 ,04/10/2017
Delivery Units,Adults and Communities,Voluntary Associations - Third,30172117,CHRISTIAN ACTION (ENFIELD), 365.80 ,25/10/2017
Delivery Units,Adults and Communities,Voluntary Associations - Third,30171449,GENESIS HOUSING ASSOCIATION LIMITED," 35,676.00 ",04/10/2017
Delivery Units,Adults and Communities,Voluntary Associations - Third,30171451,JEWISH COMMUNITY HOUSING ASSOCIATIO, 568.17 ,04/10/2017
Delivery Units,Adults and Communities,Voluntary Associations - Third,30172122,JEWISH COMMUNITY HOUSING ASSOCIATIO, 568.17 ,25/10/2017
Delivery Units,Adults and Communities,Voluntary Associations - Third,30171455,ST PANCRAS & HUMANIST H.A.,661.55,04/10/2017
Delivery Units,Adults and Communities,Voluntary Associations - Third,30172126,ST PANCRAS & HUMANIST H.A., 661.55 ,25/10/2017
Delivery Units,Adults and Communities,Voluntary Associations - Third,30171450,HABINTEG HOUSING ASSOCIATION, 446.37 ,04/10/2017
Delivery Units,Adults and Communities,Voluntary Associations - Third,30172121,HABINTEG HOUSING ASSOCIATION, 446.37 ,25/10/2017
Delivery Units,Adults and Communities,Voluntary Associations - Third,30171456,LINEN & WOOLLEN DRAPERS COTTAGE, 730.11 ,04/10/2017
Delivery Units,Adults and Communities,Voluntary Associations - Third,30172127,LINEN & WOOLLEN DRAPERS COTTAGE, 730.11 ,25/10/2017
Delivery Units,Adults and Communities,Voluntary Associations - Third,30171454,ORCHARD HOUSING ASSOCIATION, 196.62 ,03/10/2017
Delivery Units,Adults and Communities,Voluntary Associations - Third,30172125,ORCHARD HOUSING ASSOCIATION, 196.62 ,24/10/2017
Delivery Units,Adults and Communities,Voluntary Associations - Third,30171458,SCOTSCARE, 361.52 ,04/10/2017
Delivery Units,Adults and Communities,Voluntary Associations - Third,30172129,SCOTSCARE, 361.52 ,25/10/2017
Delivery Units,Adults and Communities,Other Services,60086459,M1 EXPRESS CAR SERVICES, 104.00 ,31/10/2017
Delivery Units,Adults and Communities,Other Agencies - Third Party P,90026050,ABBEY RAVENSCROFT PARK NURSING HOME," 3,321.43 ",17/10/2017
Delivery Units,Adults and Communities,Other Agencies - Third Party P,90026057,ABBEY RAVENSCROFT PARK NURSING HOME," 3,321.43 ",17/10/2017
Delivery Units,Adults and Communities,Other Agencies - Third Party P,90026058,ABBEY RAVENSCROFT PARK NURSING HOME," 3,214.29 ",17/10/2017
Delivery Units,Adults and Communities,Other Agencies - Third Party P,90026892,ABBEY RAVENSCROFT PARK NURSING HOME," 2,788.32 ",20/10/2017
Delivery Units,Adults and Communities,Other Agencies - Third Party P,90026893,ABBEY RAVENSCROFT PARK NURSING HOME," 3,321.43 ",20/10/2017
Delivery Units,Adults and Communities,Other Agencies - Third Party P,90026896,ABBEY RAVENSCROFT PARK NURSING HOME," 3,801.88 ",20/10/2017
Delivery Units,Adults and Communities,Other Agencies - Third Party P,90026897,ABBEY RAVENSCROFT PARK NURSING HOME," 2,788.32 ",20/10/2017
Delivery Units,Adults and Communities,Other Agencies - Third Party P,90026898,ABBEY RAVENSCROFT PARK NURSING HOME," 3,255.00 ",20/10/2017
Delivery Units,Adults and Communities,Other Agencies - Third Party P,90026902,ABBEY RAVENSCROFT PARK NURSING HOME," 3,255.00 ",20/10/2017
Delivery Units,Adults and Communities,Other Agencies - Third Party P,90026903,ABBEY RAVENSCROFT PARK NURSING HOME," 3,255.00 ",20/10/2017
Delivery Units,Adults and Communities,Other Agencies - Third Party P,90026904,ABBEY RAVENSCROFT PARK NURSING HOME," 3,321.43 ",20/10/2017
Delivery Units,Adults and Communities,Other Agencies - Third Party P,90026906,ABBEY RAVENSCROFT PARK NURSING HOME," 3,321.43 ",20/10/2017
Delivery Units,Adults and Communities,Other Agencies - Third Party P,90026908,ABBEY RAVENSCROFT PARK NURSING HOME," 2,788.32 ",20/10/2017
Delivery Units,Adults and Communities,Other Agencies - Third Party P,90026910,ABBEY RAVENSCROFT PARK NURSING HOME," 2,788.32 ",20/10/2017
Delivery Units,Adults and Communities,Other Agencies - Third Party P,90026911,ABBEY RAVENSCROFT PARK NURSING HOME," 2,788.32 ",20/10/2017
Delivery Units,Adults and Communities,Other Agencies - Third Party P,90026913,ABBEY RAVENSCROFT PARK NURSING HOME," 2,788.32 ",20/10/2017
Delivery Units,Adults and Communities,Other Agencies - Third Party P,90022205,APPLE TREE COURT CARE HOME," 2,487.77 ",03/10/2017
Delivery Units,Adults and Communities,Other Agencies - Third Party P,90022206,APPLE TREE COURT CARE HOME," 2,487.77 ",03/10/2017
Delivery Units,Adults and Communities,Other Agencies - Third Party P,90022207,APPLE TREE COURT CARE HOME," 3,642.86 ",03/10/2017
Delivery Units,Adults and Communities,Other Agencies - Third Party P,90022210,APPLE TREE COURT CARE HOME," 4,714.29 ",03/10/2017
Delivery Units,Adults and Communities,Other Agencies - Third Party P,90022212,APPLE TREE COURT CARE HOME,"2,320.37",03/10/2017
Delivery Units,Adults and Communities,Other Agencies - Third Party P,90022213,APPLE TREE COURT CARE HOME," 2,569.89 ",03/10/2017
Delivery Units,Adults and Communities,Other Agencies - Third Party P,90024527,APPLE TREE COURT CARE HOME," 4,871.43 ",13/10/2017
Delivery Units,Adults and Communities,Other Agencies - Third Party P,90029002,APPLE TREE COURT CARE HOME," 2,397.72 ",30/10/2017
Delivery Units,Adults and Communities,Other Agencies - Third Party P,90029003,APPLE TREE COURT CARE HOME,"4,871.43",30/10/2017
Delivery Units,Adults and Communities,Other Agencies - Third Party P,90029010,APPLE TREE COURT CARE HOME," 2,570.70 ",30/10/2017
Delivery Units,Adults and Communities,Other Agencies - Third Party P,90029011,APPLE TREE COURT CARE HOME," 2,570.70 ",30/10/2017
Delivery Units,Adults and Communities,Other Agencies - Third Party P,90029012,APPLE TREE COURT CARE HOME," 3,764.29 ",30/10/2017
Delivery Units,Adults and Communities,Other Agencies - Third Party P,90029016,APPLE TREE COURT CARE HOME,"4,871.43",30/10/2017
Delivery Units,Adults and Communities,Other Agencies - Third Party P,30171288,ASHTON LODGE CARE CENTRE,"10,564.29",03/10/2017
Delivery Units,Adults and Communities,Other Agencies - Third Party P,90023372,ASHTON LODGE CARE CENTRE,"-3,066.24 ",13/10/2017
Delivery Units,Adults and Communities,Other Agencies - Third Party P,90024523,ASHTON LODGE CARE CENTRE," 4,996.83 ",13/10/2017
Delivery Units,Adults and Communities,Other Agencies - Third Party P,90024524,ASHTON LODGE CARE CENTRE, 319.26 ,13/10/2017
Delivery Units,Adults and Communities,Other Agencies - Third Party P,90024525,ASHTON LODGE CARE CENTRE," 3,871.86 ",13/10/2017
Delivery Units,Adults and Communities,Other Agencies - Third Party P,90024528,ASHTON LODGE CARE CENTRE," 4,996.83 ",13/10/2017
Delivery Units,Adults and Communities,Other Agencies - Third Party P,90027254,ASHTON LODGE CARE CENTRE,"2,844.07",24/10/2017
Delivery Units,Adults and Communities,Other Agencies - Third Party P,90027255,ASHTON LODGE CARE CENTRE," 2,936.14 ",24/10/2017
Delivery Units,Adults and Communities,Other Agencies - Third Party P,90027256,ASHTON LODGE CARE CENTRE," 2,844.07 ",24/10/2017
Delivery Units,Adults and Communities,Other Agencies - Third Party P,90027257,ASHTON LODGE CARE CENTRE," 3,133.79 ",24/10/2017
Delivery Units,Adults and Communities,Other Agencies - Third Party P,90027258,ASHTON LODGE CARE CENTRE," 3,321.43 ",24/10/2017
Delivery Units,Adults and Communities,Other Agencies - Third Party P,90027259,ASHTON LODGE CARE CENTRE," 2,844.07 ",24/10/2017
Delivery Units,Adults and Communities,Other Agencies - Third Party P,90027260,ASHTON LODGE CARE CENTRE," 3,542.86 ",24/10/2017
Delivery Units,Adults and Communities,Other Agencies - Third Party P,90027261,ASHTON LODGE CARE CENTRE," 3,265.85 ",24/10/2017
Delivery Units,Adults and Communities,Other Agencies - Third Party P,90027262,ASHTON LODGE CARE CENTRE," 3,764.29 ",24/10/2017
Delivery Units,Adults and Communities,Other Agencies - Third Party P,90027264,ASHTON LODGE CARE CENTRE,"2,844.07",24/10/2017
Delivery Units,Adults and Communities,Other Agencies - Third Party P,90027266,ASHTON LODGE CARE CENTRE,"3,520.49",24/10/2017
Delivery Units,Adults and Communities,Other Agencies - Third Party P,90027268,ASHTON LODGE CARE CENTRE," 2,567.95 ",24/10/2017
Delivery Units,Adults and Communities,Other Agencies - Third Party P,90023365,BUPA CARE HOMES," 2,387.19 ",12/10/2017
Delivery Units,Adults and Communities,Other Agencies - Third Party P,90023366,BUPA CARE HOMES," 2,165.68 ",12/10/2017
Delivery Units,Adults and Communities,Other Agencies - Third Party P,90023367,BUPA CARE HOMES," 2,466.76 ",12/10/2017
Delivery Units,Adults and Communities,Other Agencies - Third Party P,90023195,BUPA CARE HOMES," 3,416.11 ",13/10/2017
Delivery Units,Adults and Communities,Other Agencies - Third Party P,90023316,BUPA CARE HOMES," 2,386.50 ",13/10/2017
Delivery Units,Adults and Communities,Other Agencies - Third Party P,90023318,BUPA CARE HOMES,"2,386.50",13/10/2017
Delivery Units,Adults and Communities,Other Agencies - Third Party P,90023356,BUPA CARE HOMES," 2,611.48 ",13/10/2017
Delivery Units,Adults and Communities,Other Agencies - Third Party P,30171860,BUPA CARE HOMES," 1,546.91 ",18/10/2017
Delivery Units,Adults and Communities,Other Agencies - Third Party P,30171861,BUPA CARE HOMES," 1,160.19 ",18/10/2017
Delivery Units,Adults and Communities,Other Agencies - Third Party P,90028179,BUPA CARE HOMES,"2,384.57",26/10/2017
Delivery Units,Adults and Communities,Other Agencies - Third Party P,90028723,BUPA CARE HOMES," 1,578.57 ",30/10/2017
Delivery Units,Adults and Communities,Other Agencies - Third Party P,80013425,BUPA CARE HOMES," 11,814.50 ",31/10/2017
Delivery Units,Adults and Communities,Other Agencies - Third Party P,90026072,BUPA NURSING HOMES LTD - ARKLEY," 2,214.76 ",19/10/2017
Delivery Units,Adults and Communities,Other Agencies - Third Party P,90026073,BUPA NURSING HOMES LTD - ARKLEY," 2,227.40 ",19/10/2017
Delivery Units,Adults and Communities,Other Agencies - Third Party P,90026075,BUPA NURSING HOMES LTD - ARKLEY," 2,227.24 ",19/10/2017
Delivery Units,Adults and Communities,Other Agencies - Third Party P,90026076,BUPA NURSING HOMES LTD - ARKLEY," 2,227.24 ",19/10/2017
Delivery Units,Adults and Communities,Other Agencies - Third Party P,90026077,BUPA NURSING HOMES LTD - ARKLEY," 2,227.52 ",19/10/2017
Delivery Units,Adults and Communities,Other Agencies - Third Party P,30171322,CEDARS NURSING HOME, 390.00 ,03/10/2017
Delivery Units,Adults and Communities,Other Agencies - Third Party P,30171323,CEDARS NURSING HOME," 2,184.00 ",03/10/2017
Delivery Units,Adults and Communities,Other Agencies - Third Party P,90023358,CLARE HOUSE NURSING HOME," 2,228.72 ",11/10/2017
Delivery Units,Adults and Communities,Other Agencies - Third Party P,90026082,CLARE HOUSE NURSING HOME," 2,228.72 ",17/10/2017
Delivery Units,Adults and Communities,Other Agencies - Third Party P,90023333,DENHAM MANOR, 300.00 ,11/10/2017
Delivery Units,Adults and Communities,Other Agencies - Third Party P,90027179,FERNBANK NURSING HOME.,"2,318.80",24/10/2017
Delivery Units,Adults and Communities,Other Agencies - Third Party P,90027180,FERNBANK NURSING HOME.," 2,318.80 ",24/10/2017
Delivery Units,Adults and Communities,Other Agencies - Third Party P,90027181,FERNBANK NURSING HOME.," 2,397.54 ",24/10/2017
Delivery Units,Adults and Communities,Other Agencies - Third Party P,90027183,FERNBANK NURSING HOME.," 2,397.54 ",24/10/2017
Delivery Units,Adults and Communities,Other Agencies - Third Party P,90027184,FERNBANK NURSING HOME.," 3,072.10 ",24/10/2017
Delivery Units,Adults and Communities,Other Agencies - Third Party P,90027185,FERNBANK NURSING HOME.,"2,397.54",24/10/2017
Delivery Units,Adults and Communities,Other Agencies - Third Party P,90027143,FOUR SEASONS HEALTH CARE," 2,550.72 ",24/10/2017
Delivery Units,Adults and Communities,Other Agencies - Third Party P,90027144,FOUR SEASONS HEALTH CARE," 2,550.72 ",24/10/2017
Delivery Units,Adults and Communities,Other Agencies - Third Party P,90027145,FOUR SEASONS HEALTH CARE,"2,550.72",24/10/2017
Delivery Units,Adults and Communities,Other Agencies - Third Party P,90027146,FOUR SEASONS HEALTH CARE," 2,550.72 ",24/10/2017
Delivery Units,Adults and Communities,Other Agencies - Third Party P,90027288,FOUR SEASONS HEALTH CARE," 2,551.52 ",24/10/2017
Delivery Units,Adults and Communities,Other Agencies - Third Party P,90027290,FOUR SEASONS HEALTH CARE," 2,291.36 ",24/10/2017
Delivery Units,Adults and Communities,Other Agencies - Third Party P,90027291,FOUR SEASONS HEALTH CARE," 2,291.36 ",24/10/2017
Delivery Units,Adults and Communities,Other Agencies - Third Party P,90027293,FOUR SEASONS HEALTH CARE,"2,291.36",24/10/2017
Delivery Units,Adults and Communities,Other Agencies - Third Party P,90027294,FOUR SEASONS HEALTH CARE," 2,291.36 ",24/10/2017
Delivery Units,Adults and Communities,Other Agencies - Third Party P,90027392,FOUR SEASONS HEALTH CARE," 2,291.36 ",24/10/2017
Delivery Units,Adults and Communities,Other Agencies - Third Party P,90027393,FOUR SEASONS HEALTH CARE," 2,550.72 ",24/10/2017
Delivery Units,Adults and Communities,Other Agencies - Third Party P,90027394,FOUR SEASONS HEALTH CARE," 2,550.72 ",24/10/2017
Delivery Units,Adults and Communities,Other Agencies - Third Party P,90027395,FOUR SEASONS HEALTH CARE," 2,550.72 ",24/10/2017
Delivery Units,Adults and Communities,Other Agencies - Third Party P,90029001,FOUR SEASONS HEALTH CARE (NO.4) LTD," 2,004.00 ",30/10/2017
Delivery Units,Adults and Communities,Other Agencies - Third Party P,90027140,FRISTON HOUSE, 532.10 ,24/10/2017
Delivery Units,Adults and Communities,Other Agencies - Third Party P,90022164,JEWISH CARE," 4,807.80 ",02/10/2017
Delivery Units,Adults and Communities,Other Agencies - Third Party P,90026008,JEWISH CARE, 13.00 ,17/10/2017
Delivery Units,Adults and Communities,Other Agencies - Third Party P,90026009,JEWISH CARE," 4,807.80 ",17/10/2017
Delivery Units,Adults and Communities,Other Agencies - Third Party P,90026010,JEWISH CARE,"5,236.61",17/10/2017
Delivery Units,Adults and Communities,Other Agencies - Third Party P,90026011,JEWISH CARE," 4,807.80 ",17/10/2017
Delivery Units,Adults and Communities,Other Agencies - Third Party P,90026012,JEWISH CARE," 5,324.74 ",17/10/2017
Delivery Units,Adults and Communities,Other Agencies - Third Party P,90026013,JEWISH CARE," 4,807.80 ",17/10/2017
Delivery Units,Adults and Communities,Other Agencies - Third Party P,90026014,JEWISH CARE," 5,324.74 ",17/10/2017
Delivery Units,Adults and Communities,Other Agencies - Third Party P,90026015,JEWISH CARE,"4,807.80",17/10/2017
Delivery Units,Adults and Communities,Other Agencies - Third Party P,90026016,JEWISH CARE," 4,807.80 ",17/10/2017
Delivery Units,Adults and Communities,Other Agencies - Third Party P,90026017,JEWISH CARE,"5,324.74",17/10/2017
Delivery Units,Adults and Communities,Other Agencies - Third Party P,90026018,JEWISH CARE," 5,324.74 ",17/10/2017
Delivery Units,Adults and Communities,Other Agencies - Third Party P,90026019,JEWISH CARE," 5,324.74 ",17/10/2017
Delivery Units,Adults and Communities,Other Agencies - Third Party P,90026020,JEWISH CARE," 4,807.80 ",17/10/2017
Delivery Units,Adults and Communities,Other Agencies - Third Party P,90026021,JEWISH CARE," 4,807.80 ",17/10/2017
Delivery Units,Adults and Communities,Other Agencies - Third Party P,90026022,JEWISH CARE," 4,807.80 ",17/10/2017
Delivery Units,Adults and Communities,Other Agencies - Third Party P,90026023,JEWISH CARE,"4,807.80",17/10/2017
Delivery Units,Adults and Communities,Other Agencies - Third Party P,90026024,JEWISH CARE," 5,324.74 ",17/10/2017
Delivery Units,Adults and Communities,Other Agencies - Third Party P,90026025,JEWISH CARE," 4,807.80 ",17/10/2017
Delivery Units,Adults and Communities,Other Agencies - Third Party P,90026026,JEWISH CARE,"4,774.67",17/10/2017
Delivery Units,Adults and Communities,Other Agencies - Third Party P,90026027,JEWISH CARE," 5,324.74 ",17/10/2017
Delivery Units,Adults and Communities,Other Agencies - Third Party P,90026028,JEWISH CARE," 5,324.74 ",17/10/2017
Delivery Units,Adults and Communities,Other Agencies - Third Party P,90026030,JEWISH CARE," 7,710.36 ",17/10/2017
Delivery Units,Adults and Communities,Other Agencies - Third Party P,90027978,JEWISH CARE," 2,319.44 ",24/10/2017
Delivery Units,Adults and Communities,Other Agencies - Third Party P,90028244,JEWISH CARE," 2,319.44 ",26/10/2017
Delivery Units,Adults and Communities,Other Agencies - Third Party P,90028245,JEWISH CARE," 2,568.84 ",26/10/2017
Delivery Units,Adults and Communities,Other Agencies - Third Party P,90028246,JEWISH CARE," 2,319.44 ",26/10/2017
Delivery Units,Adults and Communities,Other Agencies - Third Party P,90028248,JEWISH CARE," 2,568.84 ",26/10/2017
Delivery Units,Adults and Communities,Other Agencies - Third Party P,90028249,JEWISH CARE,"2,319.44",26/10/2017
Delivery Units,Adults and Communities,Other Agencies - Third Party P,90028250,JEWISH CARE," 2,568.84 ",26/10/2017
Delivery Units,Adults and Communities,Other Agencies - Third Party P,90028251,JEWISH CARE," 2,319.44 ",26/10/2017
Delivery Units,Adults and Communities,Other Agencies - Third Party P,90028252,JEWISH CARE," 2,319.44 ",26/10/2017
Delivery Units,Adults and Communities,Other Agencies - Third Party P,90028253,JEWISH CARE," 2,568.84 ",26/10/2017
Delivery Units,Adults and Communities,Other Agencies - Third Party P,90028254,JEWISH CARE,"2,568.84",26/10/2017
Delivery Units,Adults and Communities,Other Agencies - Third Party P,90028255,JEWISH CARE," 2,568.84 ",26/10/2017
Delivery Units,Adults and Communities,Other Agencies - Third Party P,90028256,JEWISH CARE,"2,319.44",26/10/2017
Delivery Units,Adults and Communities,Other Agencies - Third Party P,90028257,JEWISH CARE,"2,319.44",26/10/2017
Delivery Units,Adults and Communities,Other Agencies - Third Party P,90028258,JEWISH CARE," 2,319.44 ",26/10/2017
Delivery Units,Adults and Communities,Other Agencies - Third Party P,90028259,JEWISH CARE," 2,319.44 ",26/10/2017
Delivery Units,Adults and Communities,Other Agencies - Third Party P,90028260,JEWISH CARE," 2,319.44 ",26/10/2017
Delivery Units,Adults and Communities,Other Agencies - Third Party P,90028261,JEWISH CARE," 2,568.84 ",26/10/2017
Delivery Units,Adults and Communities,Other Agencies - Third Party P,90028262,JEWISH CARE," 2,319.44 ",26/10/2017
Delivery Units,Adults and Communities,Other Agencies - Third Party P,90028263,JEWISH CARE," 2,319.44 ",26/10/2017
Delivery Units,Adults and Communities,Other Agencies - Third Party P,90028264,JEWISH CARE," 2,568.84 ",26/10/2017
Delivery Units,Adults and Communities,Other Agencies - Third Party P,90028265,JEWISH CARE," 2,568.84 ",26/10/2017
Delivery Units,Adults and Communities,Other Agencies - Third Party P,90027957,KARUNA MANOR," 4,071.43 ",24/10/2017
Delivery Units,Adults and Communities,Other Agencies - Third Party P,90027961,KARUNA MANOR," 4,071.43 ",24/10/2017
Delivery Units,Adults and Communities,Other Agencies - Third Party P,90026834,LIFESTYLE CARE PLC," 2,397.72 ",19/10/2017
Delivery Units,Adults and Communities,Other Agencies - Third Party P,90026835,LIFESTYLE CARE PLC," 2,655.55 ",19/10/2017
Delivery Units,Adults and Communities,Other Agencies - Third Party P,90026836,LIFESTYLE CARE PLC,"2,569.89",19/10/2017
Delivery Units,Adults and Communities,Other Agencies - Third Party P,90026837,LIFESTYLE CARE PLC," 2,320.37 ",19/10/2017
Delivery Units,Adults and Communities,Other Agencies - Third Party P,90026838,LIFESTYLE CARE PLC, 428.31 ,19/10/2017
Delivery Units,Adults and Communities,Other Agencies - Third Party P,90026839,LIFESTYLE CARE PLC," 2,569.89 ",19/10/2017
Delivery Units,Adults and Communities,Other Agencies - Third Party P,90026840,LIFESTYLE CARE PLC," 2,320.37 ",19/10/2017
Delivery Units,Adults and Communities,Other Agencies - Third Party P,90026841,LIFESTYLE CARE PLC," 2,569.89 ",19/10/2017
Delivery Units,Adults and Communities,Other Agencies - Third Party P,90026843,LIFESTYLE CARE PLC," 2,320.37 ",19/10/2017
Delivery Units,Adults and Communities,Other Agencies - Third Party P,90026844,LIFESTYLE CARE PLC," 2,244.13 ",19/10/2017
Delivery Units,Adults and Communities,Other Agencies - Third Party P,90023722,MEERA NURSING HOME LIMITED," 2,445.68 ",13/10/2017
Delivery Units,Adults and Communities,Other Agencies - Third Party P,90025762,MEERA NURSING HOME LIMITED," 2,907.93 ",17/10/2017
Delivery Units,Adults and Communities,Other Agencies - Third Party P,90027274,MEERA NURSING HOME LIMITED," 2,445.68 ",24/10/2017
Delivery Units,Adults and Communities,Other Agencies - Third Party P,90027275,MEERA NURSING HOME LIMITED,"2,445.68",24/10/2017
Delivery Units,Adults and Communities,Other Agencies - Third Party P,90027276,MEERA NURSING HOME LIMITED," 2,708.65 ",24/10/2017
Delivery Units,Adults and Communities,Other Agencies - Third Party P,90027277,MEERA NURSING HOME LIMITED,"2,445.68",24/10/2017
Delivery Units,Adults and Communities,Other Agencies - Third Party P,90027278,MEERA NURSING HOME LIMITED," 2,445.68 ",24/10/2017
Delivery Units,Adults and Communities,Other Agencies - Third Party P,90027279,MEERA NURSING HOME LIMITED," 2,708.65 ",24/10/2017
Delivery Units,Adults and Communities,Other Agencies - Third Party P,30171330,MURRAYFIELD CARE HOME, 631.94 ,03/10/2017
Delivery Units,Adults and Communities,Other Agencies - Third Party P,90029349,NEEM TREE CARE CENTRE,"2,002.64",31/10/2017
Delivery Units,Adults and Communities,Other Agencies - Third Party P,90023184,NEWCENTURY CARE LTD,"2,398.56",11/10/2017
Delivery Units,Adults and Communities,Other Agencies - Third Party P,90023185,NEWCENTURY CARE LTD,"3,764.29",11/10/2017
Delivery Units,Adults and Communities,Other Agencies - Third Party P,90023186,NEWCENTURY CARE LTD,"2,655.55",11/10/2017
Delivery Units,Adults and Communities,Other Agencies - Third Party P,90023187,NEWCENTURY CARE LTD,"3,764.29",11/10/2017
Delivery Units,Adults and Communities,Other Agencies - Third Party P,90023189,NEWCENTURY CARE LTD," 2,655.55 ",11/10/2017
Delivery Units,Adults and Communities,Other Agencies - Third Party P,90023190,NEWCENTURY CARE LTD,"2,655.55",11/10/2017
Delivery Units,Adults and Communities,Other Agencies - Third Party P,80013350,NEWCENTURY CARE LTD," 16,656.89 ",30/10/2017
Delivery Units,Adults and Communities,Other Agencies - Third Party P,90028693,NEWCENTURY CARE LTD,"6,497.06",30/10/2017
Delivery Units,Adults and Communities,Other Agencies - Third Party P,90028694,NEWCENTURY CARE LTD,"7,195.70",30/10/2017
Delivery Units,Adults and Communities,Other Agencies - Third Party P,90015156,NIGHTINGALE HOUSE,374.29,17/10/2017
Delivery Units,Adults and Communities,Other Agencies - Third Party P,90015157,NIGHTINGALE HOUSE," 2,900.71 ",17/10/2017
Delivery Units,Adults and Communities,Other Agencies - Third Party P,90015158,NIGHTINGALE HOUSE," 2,807.14 ",17/10/2017
Delivery Units,Adults and Communities,Other Agencies - Third Party P,90015159,NIGHTINGALE HOUSE,"2,900.71",17/10/2017
Delivery Units,Adults and Communities,Other Agencies - Third Party P,90015160,NIGHTINGALE HOUSE," 2,245.71 ",17/10/2017
Delivery Units,Adults and Communities,Other Agencies - Third Party P,90016965,NIGHTINGALE HOUSE,"2,900.71",17/10/2017
Delivery Units,Adults and Communities,Other Agencies - Third Party P,90023106,NIGHTINGALE HOUSE," 2,807.14 ",17/10/2017
Delivery Units,Adults and Communities,Other Agencies - Third Party P,90023710,SAGE NURSING HOME,"5,142.86",13/10/2017
Delivery Units,Adults and Communities,Other Agencies - Third Party P,90023713,SAGE NURSING HOME," 2,320.37 ",13/10/2017
Delivery Units,Adults and Communities,Other Agencies - Third Party P,90023714,SAGE NURSING HOME,"2,320.37",13/10/2017
Delivery Units,Adults and Communities,Other Agencies - Third Party P,90023716,SAGE NURSING HOME," 2,698.37 ",13/10/2017
Delivery Units,Adults and Communities,Other Agencies - Third Party P,90023717,SAGE NURSING HOME,"2,436.39",13/10/2017
Delivery Units,Adults and Communities,Other Agencies - Third Party P,90028678,SAGE NURSING HOME," 5,314.29 ",30/10/2017
Delivery Units,Adults and Communities,Other Agencies - Third Party P,90028681,SAGE NURSING HOME," 2,397.72 ",30/10/2017
Delivery Units,Adults and Communities,Other Agencies - Third Party P,90028682,SAGE NURSING HOME," 2,397.72 ",30/10/2017
Delivery Units,Adults and Communities,Other Agencies - Third Party P,90028684,SAGE NURSING HOME," 2,788.32 ",30/10/2017
Delivery Units,Adults and Communities,Other Agencies - Third Party P,90028685,SAGE NURSING HOME," 2,517.60 ",30/10/2017
Delivery Units,Adults and Communities,Other Agencies - Third Party P,90028686,SAGE NURSING HOME,568.49,30/10/2017
Delivery Units,Adults and Communities,Other Agencies - Third Party P,90023723,SANCTUARY CARE LTD," 2,573.84 ",13/10/2017
Delivery Units,Adults and Communities,Other Agencies - Third Party P,90026619,SONESTA NURSING HOME LTD.," 2,397.72 ",18/10/2017
Delivery Units,Adults and Communities,Other Agencies - Third Party P,90026621,SONESTA NURSING HOME LTD.," 2,655.55 ",18/10/2017
Delivery Units,Adults and Communities,Other Agencies - Third Party P,90022325,VICTORIA CARE CENTRE," 2,958.95 ",03/10/2017
Delivery Units,Adults and Communities,Other Agencies - Third Party P,90023314,VICTORIA CARE CENTRE," 2,863.50 ",11/10/2017
Delivery Units,Adults and Communities,Other Agencies - Third Party P,90025773,WESTGATE HOUSE CARE CENTRE," 3,725.76 ",17/10/2017
Delivery Units,Adults and Communities,Other Agencies - Third Party P,90026065,WESTMINSTER HEALTH CARE LTD,"2,244.13",17/10/2017
Delivery Units,Adults and Communities,Other Agencies - Third Party P,90023072,AGUDAS ISRAEL HOUSING ASSCTN LTD," 3,052.50 ",13/10/2017
Delivery Units,Adults and Communities,Other Agencies - Third Party P,90023074,AGUDAS ISRAEL HOUSING ASSCTN LTD,"2,648.57",13/10/2017
Delivery Units,Adults and Communities,Other Agencies - Third Party P,30171287,ACER HEALTHCARE OPERATIONS LTD," 2,179.57 ",03/10/2017
Delivery Units,Adults and Communities,Other Agencies - Third Party P,90023332,AUTUMN GARDENS,"4,800.00",11/10/2017
Delivery Units,Adults and Communities,Other Agencies - Third Party P,90025751,AUTUMN GARDENS," 4,800.00 ",17/10/2017
Delivery Units,Adults and Communities,Other Agencies - Third Party P,90023095,BUPA CARE HOMES," 2,642.87 ",11/10/2017
Delivery Units,Adults and Communities,Other Agencies - Third Party P,90026600,CARLTON COURT (TLC GROUP)," 2,655.55 ",18/10/2017
Delivery Units,Adults and Communities,Other Agencies - Third Party P,90026601,CARLTON COURT (TLC GROUP)," 2,655.55 ",18/10/2017
Delivery Units,Adults and Communities,Other Agencies - Third Party P,90026604,CARLTON COURT (TLC GROUP),"2,448.78",18/10/2017
Delivery Units,Adults and Communities,Other Agencies - Third Party P,90018677,ERSKINE HALL (BUPA)," 3,385.71 ",03/10/2017
Delivery Units,Adults and Communities,Other Agencies - Third Party P,90023368,AARANDALE LODGE," 2,600.00 ",11/10/2017
Delivery Units,Adults and Communities,Other Agencies - Third Party P,90027270,AARON COURT CARE HOME," 2,216.41 ",24/10/2017
Delivery Units,Adults and Communities,Other Agencies - Third Party P,90026049,ABBEY RAVENSCROFT PARK NURSING HOME,"1,542.86",17/10/2017
Delivery Units,Adults and Communities,Other Agencies - Third Party P,90026059,ABBEY RAVENSCROFT PARK NURSING HOME,"2,657.14",17/10/2017
Delivery Units,Adults and Communities,Other Agencies - Third Party P,90026907,ABBEY RAVENSCROFT PARK NURSING HOME," 2,657.14 ",20/10/2017
Delivery Units,Adults and Communities,Other Agencies - Third Party P,90023096,ALEXANDRA HOUSE (RUNWOOD HOMES)," 2,189.70 ",09/10/2017
Delivery Units,Adults and Communities,Other Agencies - Third Party P,90025752,ANASTASIA LODGE,"3,000.00",17/10/2017
Delivery Units,Adults and Communities,Other Agencies - Third Party P,90025754,ANASTASIA LODGE,"2,800.00",17/10/2017
Delivery Units,Adults and Communities,Other Agencies - Third Party P,90026069,ANGEL HEALTHCARE LTD - GLENMUIR HOUSE," 2,211.72 ",17/10/2017
Delivery Units,Adults and Communities,Other Agencies - Third Party P,90026070,ANGEL HEALTHCARE LTD - GLENMUIR HOUSE," 2,211.72 ",17/10/2017
Delivery Units,Adults and Communities,Other Agencies - Third Party P,90022201,APPLE TREE COURT CARE HOME," 2,369.79 ",03/10/2017
Delivery Units,Adults and Communities,Other Agencies - Third Party P,90022202,APPLE TREE COURT CARE HOME,"3,428.57",03/10/2017
Delivery Units,Adults and Communities,Other Agencies - Third Party P,90022204,APPLE TREE COURT CARE HOME,"2,340.04",03/10/2017
Delivery Units,Adults and Communities,Other Agencies - Third Party P,90029006,APPLE TREE COURT CARE HOME,"2,448.78",30/10/2017
Delivery Units,Adults and Communities,Other Agencies - Third Party P,90029007,APPLE TREE COURT CARE HOME," 3,542.86 ",30/10/2017
Delivery Units,Adults and Communities,Other Agencies - Third Party P,90029009,APPLE TREE COURT CARE HOME," 2,418.04 ",30/10/2017
Delivery Units,Adults and Communities,Other Agencies - Third Party P,90022324,ASHFIELDS RESIDENTIAL CARE HOME, 552.95 ,03/10/2017
Delivery Units,Adults and Communities,Other Agencies - Third Party P,90027263,ASHTON LODGE CARE CENTRE,"2,622.64",24/10/2017
Delivery Units,Adults and Communities,Other Agencies - Third Party P,90027265,ASHTON LODGE CARE CENTRE,"2,622.64",24/10/2017
Delivery Units,Adults and Communities,Other Agencies - Third Party P,90024521,B & M CARE," 2,135.71 ",13/10/2017
Delivery Units,Adults and Communities,Other Agencies - Third Party P,90024522,B & M CARE,"2,785.71",13/10/2017
Delivery Units,Adults and Communities,Other Agencies - Third Party P,90026609,B & M CARE," 2,522.25 ",18/10/2017
Delivery Units,Adults and Communities,Other Agencies - Third Party P,90026610,B & M CARE,"2,316.94",18/10/2017
Delivery Units,Adults and Communities,Other Agencies - Third Party P,90028999,B & M CARE,"2,316.94",30/10/2017
Delivery Units,Adults and Communities,Other Agencies - Third Party P,90027958,BIRCHWOOD GRANGE CARE HOME,"2,657.14",24/10/2017
Delivery Units,Adults and Communities,Other Agencies - Third Party P,90023362,BUPA CARE HOMES,"2,239.59",12/10/2017
Delivery Units,Adults and Communities,Other Agencies - Third Party P,90023363,BUPA CARE HOMES," 2,369.79 ",12/10/2017
Delivery Units,Adults and Communities,Other Agencies - Third Party P,90023364,BUPA CARE HOMES," 2,239.59 ",12/10/2017
Delivery Units,Adults and Communities,Other Agencies - Third Party P,90023194,BUPA CARE HOMES,"2,518.48",13/10/2017
Delivery Units,Adults and Communities,Other Agencies - Third Party P,90023319,BUPA CARE HOMES,"2,910.39",13/10/2017
Delivery Units,Adults and Communities,Other Agencies - Third Party P,90026074,BUPA NURSING HOMES LTD - ARKLEY," 2,089.68 ",19/10/2017
Delivery Units,Adults and Communities,Other Agencies - Third Party P,90025736,CLOVELLY HOUSE RESID. HOME LTD," 2,211.80 ",17/10/2017
Delivery Units,Adults and Communities,Other Agencies - Third Party P,90025737,CLOVELLY HOUSE RESID. HOME LTD," 2,600.00 ",17/10/2017
Delivery Units,Adults and Communities,Other Agencies - Third Party P,90025738,CLOVELLY HOUSE RESID. HOME LTD," 2,211.80 ",17/10/2017
Delivery Units,Adults and Communities,Other Agencies - Third Party P,90025741,CLOVELLY HOUSE RESID. HOME LTD," 2,780.00 ",17/10/2017
Delivery Units,Adults and Communities,Other Agencies - Third Party P,90025742,CLOVELLY HOUSE RESID. HOME LTD,"2,780.00",17/10/2017
Delivery Units,Adults and Communities,Other Agencies - Third Party P,90025743,CLOVELLY HOUSE RESID. HOME LTD,"2,600.00",17/10/2017
Delivery Units,Adults and Communities,Other Agencies - Third Party P,90025745,CLOVELLY HOUSE RESID. HOME LTD," 2,600.00 ",17/10/2017
Delivery Units,Adults and Communities,Other Agencies - Third Party P,90026079,DELAMER HOUSE," 2,435.71 ",17/10/2017
Delivery Units,Adults and Communities,Other Agencies - Third Party P,90025747,DOWNLANDS CARE LTD," 2,079.17 ",17/10/2017
Delivery Units,Adults and Communities,Other Agencies - Third Party P,90026041,EASTSIDE HOUSE RESIDENTIAL CARE HOM,"3,080.00",17/10/2017
Delivery Units,Adults and Communities,Other Agencies - Third Party P,90028675,ELEANOR PALMER TRUST NO 2 A/C.," 2,339.44 ",30/10/2017
Delivery Units,Adults and Communities,Other Agencies - Third Party P,90028182,ELIZABETH HOUSE," 2,448.78 ",26/10/2017
Delivery Units,Adults and Communities,Other Agencies - Third Party P,90023349,ELM PARK LODGE,"3,068.57",11/10/2017
Delivery Units,Adults and Communities,Other Agencies - Third Party P,90023354,ELMHURST RESIDENTIAL HOME," 10,678.57 ",12/10/2017
Delivery Units,Adults and Communities,Other Agencies - Third Party P,30171839,ELMHURST RESIDENTIAL HOME, 157.99 ,17/10/2017
Delivery Units,Adults and Communities,Other Agencies - Third Party P,30171840,ELMHURST RESIDENTIAL HOME,185.71,17/10/2017
Delivery Units,Adults and Communities,Other Agencies - Third Party P,30171841,ELMHURST RESIDENTIAL HOME,157.99,17/10/2017
Delivery Units,Adults and Communities,Other Agencies - Third Party P,30171843,ELMHURST RESIDENTIAL HOME, 185.71 ,17/10/2017
Delivery Units,Adults and Communities,Other Agencies - Third Party P,30171845,ELMHURST RESIDENTIAL HOME, 185.71 ,17/10/2017
Delivery Units,Adults and Communities,Other Agencies - Third Party P,30171847,ELMHURST RESIDENTIAL HOME, 185.71 ,17/10/2017
Delivery Units,Adults and Communities,Other Agencies - Third Party P,30171848,ELMHURST RESIDENTIAL HOME, 171.43 ,17/10/2017
Delivery Units,Adults and Communities,Other Agencies - Third Party P,30171851,ELMHURST RESIDENTIAL HOME, 157.99 ,17/10/2017
Delivery Units,Adults and Communities,Other Agencies - Third Party P,30171853,ELMHURST RESIDENTIAL HOME,157.99,17/10/2017
Delivery Units,Adults and Communities,Other Agencies - Third Party P,30171855,ELMHURST RESIDENTIAL HOME,157.99,17/10/2017
Delivery Units,Adults and Communities,Other Agencies - Third Party P,30171856,ELMHURST RESIDENTIAL HOME,157.99,17/10/2017
Delivery Units,Adults and Communities,Other Agencies - Third Party P,30172205,ELMHURST RESIDENTIAL HOME," 4,739.57 ",30/10/2017
Delivery Units,Adults and Communities,Other Agencies - Third Party P,30172208,ELMHURST RESIDENTIAL HOME," 20,617.13 ",30/10/2017
Delivery Units,Adults and Communities,Other Agencies - Third Party P,30172209,ELMHURST RESIDENTIAL HOME," 11,235.71 ",30/10/2017
Delivery Units,Adults and Communities,Other Agencies - Third Party P,90029360,ELMHURST RESIDENTIAL HOME," 14,297.71 ",31/10/2017
Delivery Units,Adults and Communities,Other Agencies - Third Party P,90029362,ELMHURST RESIDENTIAL HOME," 16,807.14 ",31/10/2017
Delivery Units,Adults and Communities,Other Agencies - Third Party P,90029363,ELMHURST RESIDENTIAL HOME," 14,297.71 ",31/10/2017
Delivery Units,Adults and Communities,Other Agencies - Third Party P,90029364,ELMHURST RESIDENTIAL HOME," 15,514.29 ",31/10/2017
Delivery Units,Adults and Communities,Other Agencies - Third Party P,90029367,ELMHURST RESIDENTIAL HOME," 16,807.14 ",31/10/2017
Delivery Units,Adults and Communities,Other Agencies - Third Party P,90029368,ELMHURST RESIDENTIAL HOME,"16,807.14",31/10/2017
Delivery Units,Adults and Communities,Other Agencies - Third Party P,90029371,ELMHURST RESIDENTIAL HOME," 2,764.75 ",31/10/2017
Delivery Units,Adults and Communities,Other Agencies - Third Party P,90029373,ELMHURST RESIDENTIAL HOME, 371.43 ,31/10/2017
Delivery Units,Adults and Communities,Other Agencies - Third Party P,90029374,ELMHURST RESIDENTIAL HOME,"14,297.71",31/10/2017
Delivery Units,Adults and Communities,Other Agencies - Third Party P,90029375,ELMHURST RESIDENTIAL HOME," 14,297.71 ",31/10/2017
Delivery Units,Adults and Communities,Other Agencies - Third Party P,30171294,FOUR SEASONS HEALTH CARE,145.13,03/10/2017
Delivery Units,Adults and Communities,Other Agencies - Third Party P,30171295,FOUR SEASONS HEALTH CARE, 580.50 ,03/10/2017
Delivery Units,Adults and Communities,Other Agencies - Third Party P,90027296,FREMANTLE TRUST,"2,284.00",24/10/2017
Delivery Units,Adults and Communities,Other Agencies - Third Party P,90027297,FREMANTLE TRUST," 2,096.00 ",24/10/2017
Delivery Units,Adults and Communities,Other Agencies - Third Party P,90027298,FREMANTLE TRUST," 2,284.00 ",24/10/2017
Delivery Units,Adults and Communities,Other Agencies - Third Party P,90027299,FREMANTLE TRUST,"2,096.00",24/10/2017
Delivery Units,Adults and Communities,Other Agencies - Third Party P,90027300,FREMANTLE TRUST," 2,096.00 ",24/10/2017
Delivery Units,Adults and Communities,Other Agencies - Third Party P,90027301,FREMANTLE TRUST,"2,284.00",24/10/2017
Delivery Units,Adults and Communities,Other Agencies - Third Party P,90027302,FREMANTLE TRUST," 2,284.00 ",24/10/2017
Delivery Units,Adults and Communities,Other Agencies - Third Party P,90027303,FREMANTLE TRUST,"2,284.00",24/10/2017
Delivery Units,Adults and Communities,Other Agencies - Third Party P,90027306,FREMANTLE TRUST," 2,284.00 ",24/10/2017
Delivery Units,Adults and Communities,Other Agencies - Third Party P,90027307,FREMANTLE TRUST,"2,096.00",24/10/2017
Delivery Units,Adults and Communities,Other Agencies - Third Party P,90027308,FREMANTLE TRUST," 2,096.00 ",24/10/2017
Delivery Units,Adults and Communities,Other Agencies - Third Party P,90027309,FREMANTLE TRUST," 2,284.00 ",24/10/2017
Delivery Units,Adults and Communities,Other Agencies - Third Party P,90027310,FREMANTLE TRUST," 2,096.00 ",24/10/2017
Delivery Units,Adults and Communities,Other Agencies - Third Party P,90027311,FREMANTLE TRUST," 2,284.00 ",24/10/2017
Delivery Units,Adults and Communities,Other Agencies - Third Party P,90027313,FREMANTLE TRUST,"2,096.00",24/10/2017
Delivery Units,Adults and Communities,Other Agencies - Third Party P,90027314,FREMANTLE TRUST," 2,284.00 ",24/10/2017
Delivery Units,Adults and Communities,Other Agencies - Third Party P,90027316,FREMANTLE TRUST,"2,096.00",24/10/2017
Delivery Units,Adults and Communities,Other Agencies - Third Party P,90027319,FREMANTLE TRUST," 2,096.00 ",24/10/2017
Delivery Units,Adults and Communities,Other Agencies - Third Party P,90027320,FREMANTLE TRUST,"2,284.00",24/10/2017
Delivery Units,Adults and Communities,Other Agencies - Third Party P,90027321,FREMANTLE TRUST,"2,096.00",24/10/2017
Delivery Units,Adults and Communities,Other Agencies - Third Party P,90027322,FREMANTLE TRUST,"2,284.00",24/10/2017
Delivery Units,Adults and Communities,Other Agencies - Third Party P,90027323,FREMANTLE TRUST,"2,096.00",24/10/2017
Delivery Units,Adults and Communities,Other Agencies - Third Party P,90027324,FREMANTLE TRUST," 2,284.00 ",24/10/2017
Delivery Units,Adults and Communities,Other Agencies - Third Party P,90027326,FREMANTLE TRUST,"2,284.00",24/10/2017
Delivery Units,Adults and Communities,Other Agencies - Third Party P,90027327,FREMANTLE TRUST,"2,284.00",24/10/2017
Delivery Units,Adults and Communities,Other Agencies - Third Party P,90027328,FREMANTLE TRUST,"2,284.00",24/10/2017
Delivery Units,Adults and Communities,Other Agencies - Third Party P,90027329,FREMANTLE TRUST," 2,096.00 ",24/10/2017
Delivery Units,Adults and Communities,Other Agencies - Third Party P,90027331,FREMANTLE TRUST,"2,096.00",24/10/2017
Delivery Units,Adults and Communities,Other Agencies - Third Party P,90027332,FREMANTLE TRUST," 2,284.00 ",24/10/2017
Delivery Units,Adults and Communities,Other Agencies - Third Party P,90027333,FREMANTLE TRUST,"2,284.00",24/10/2017
Delivery Units,Adults and Communities,Other Agencies - Third Party P,90027334,FREMANTLE TRUST," 2,096.00 ",24/10/2017
Delivery Units,Adults and Communities,Other Agencies - Third Party P,90027335,FREMANTLE TRUST," 2,284.00 ",24/10/2017
Delivery Units,Adults and Communities,Other Agencies - Third Party P,90027336,FREMANTLE TRUST,"2,284.00",24/10/2017
Delivery Units,Adults and Communities,Other Agencies - Third Party P,90027339,FREMANTLE TRUST," 2,284.00 ",24/10/2017
Delivery Units,Adults and Communities,Other Agencies - Third Party P,90027340,FREMANTLE TRUST,"2,284.00",24/10/2017
Delivery Units,Adults and Communities,Other Agencies - Third Party P,90027341,FREMANTLE TRUST," 2,284.00 ",24/10/2017
Delivery Units,Adults and Communities,Other Agencies - Third Party P,90027342,FREMANTLE TRUST," 2,284.00 ",24/10/2017
Delivery Units,Adults and Communities,Other Agencies - Third Party P,90027345,FREMANTLE TRUST,"2,096.00",24/10/2017
Delivery Units,Adults and Communities,Other Agencies - Third Party P,90027346,FREMANTLE TRUST,"2,096.00",24/10/2017
Delivery Units,Adults and Communities,Other Agencies - Third Party P,90027347,FREMANTLE TRUST," 2,284.00 ",24/10/2017
Delivery Units,Adults and Communities,Other Agencies - Third Party P,90027349,FREMANTLE TRUST,"2,284.00",24/10/2017
Delivery Units,Adults and Communities,Other Agencies - Third Party P,90027351,FREMANTLE TRUST," 2,096.00 ",24/10/2017
Delivery Units,Adults and Communities,Other Agencies - Third Party P,90027352,FREMANTLE TRUST,"2,096.00",24/10/2017
Delivery Units,Adults and Communities,Other Agencies - Third Party P,90027353,FREMANTLE TRUST,"2,284.00",24/10/2017
Delivery Units,Adults and Communities,Other Agencies - Third Party P,90027354,FREMANTLE TRUST,"2,096.00",24/10/2017
Delivery Units,Adults and Communities,Other Agencies - Third Party P,90027355,FREMANTLE TRUST," 2,284.00 ",24/10/2017
Delivery Units,Adults and Communities,Other Agencies - Third Party P,90027356,FREMANTLE TRUST," 2,284.00 ",24/10/2017
Delivery Units,Adults and Communities,Other Agencies - Third Party P,90027357,FREMANTLE TRUST,"2,284.00",24/10/2017
Delivery Units,Adults and Communities,Other Agencies - Third Party P,90027358,FREMANTLE TRUST," 2,096.00 ",24/10/2017
Delivery Units,Adults and Communities,Other Agencies - Third Party P,90027359,FREMANTLE TRUST," 2,284.00 ",24/10/2017
Delivery Units,Adults and Communities,Other Agencies - Third Party P,90027360,FREMANTLE TRUST," 2,284.00 ",24/10/2017
Delivery Units,Adults and Communities,Other Agencies - Third Party P,90027361,FREMANTLE TRUST," 2,284.00 ",24/10/2017
Delivery Units,Adults and Communities,Other Agencies - Third Party P,90027365,FREMANTLE TRUST," 2,284.00 ",24/10/2017
Delivery Units,Adults and Communities,Other Agencies - Third Party P,90027367,FREMANTLE TRUST," 2,096.00 ",24/10/2017
Delivery Units,Adults and Communities,Other Agencies - Third Party P,90027368,FREMANTLE TRUST," 2,096.00 ",24/10/2017
Delivery Units,Adults and Communities,Other Agencies - Third Party P,90027369,FREMANTLE TRUST," 2,096.00 ",24/10/2017
Delivery Units,Adults and Communities,Other Agencies - Third Party P,90027370,FREMANTLE TRUST,"2,096.00",24/10/2017
Delivery Units,Adults and Communities,Other Agencies - Third Party P,90027371,FREMANTLE TRUST," 2,284.00 ",24/10/2017
Delivery Units,Adults and Communities,Other Agencies - Third Party P,90027372,FREMANTLE TRUST," 2,096.00 ",24/10/2017
Delivery Units,Adults and Communities,Other Agencies - Third Party P,90027373,FREMANTLE TRUST," 2,096.00 ",24/10/2017
Delivery Units,Adults and Communities,Other Agencies - Third Party P,90027374,FREMANTLE TRUST,"2,096.00",24/10/2017
Delivery Units,Adults and Communities,Other Agencies - Third Party P,90027375,FREMANTLE TRUST,"2,096.00",24/10/2017
Delivery Units,Adults and Communities,Other Agencies - Third Party P,90027377,FREMANTLE TRUST,"2,096.00",24/10/2017
Delivery Units,Adults and Communities,Other Agencies - Third Party P,90027379,FREMANTLE TRUST," 2,096.00 ",24/10/2017
Delivery Units,Adults and Communities,Other Agencies - Third Party P,90027380,FREMANTLE TRUST,"2,096.00",24/10/2017
Delivery Units,Adults and Communities,Other Agencies - Third Party P,90027381,FREMANTLE TRUST," 2,096.00 ",24/10/2017
Delivery Units,Adults and Communities,Other Agencies - Third Party P,90027383,FREMANTLE TRUST," 2,096.00 ",24/10/2017
Delivery Units,Adults and Communities,Other Agencies - Third Party P,90027384,FREMANTLE TRUST,"2,096.00",24/10/2017
Delivery Units,Adults and Communities,Other Agencies - Third Party P,90027386,FREMANTLE TRUST,"2,096.00",24/10/2017
Delivery Units,Adults and Communities,Other Agencies - Third Party P,90027388,FREMANTLE TRUST," 2,096.00 ",24/10/2017
Delivery Units,Adults and Communities,Other Agencies - Third Party P,90027389,FREMANTLE TRUST,"2,096.00",24/10/2017
Delivery Units,Adults and Communities,Other Agencies - Third Party P,90027390,FREMANTLE TRUST," 2,096.00 ",24/10/2017
Delivery Units,Adults and Communities,Other Agencies - Third Party P,90027391,FREMANTLE TRUST," 2,096.00 ",24/10/2017
Delivery Units,Adults and Communities,Other Agencies - Third Party P,90027402,FREMANTLE TRUST," 21,453.28 ",24/10/2017
Delivery Units,Adults and Communities,Other Agencies - Third Party P,90027403,FREMANTLE TRUST,"6,288.00",24/10/2017
Delivery Units,Adults and Communities,Other Agencies - Third Party P,90027404,FREMANTLE TRUST,326.29,24/10/2017
Delivery Units,Adults and Communities,Other Agencies - Third Party P,30172213,FREMANTLE TRUST," 3,010.64 ",30/10/2017
Delivery Units,Adults and Communities,Other Agencies - Third Party P,30172214,FREMANTLE TRUST," 3,010.64 ",30/10/2017
Delivery Units,Adults and Communities,Other Agencies - Third Party P,30172223,FREMANTLE TRUST," 3,010.64 ",30/10/2017
Delivery Units,Adults and Communities,Other Agencies - Third Party P,90026638,HALLMARK CARE (KINGS LYNN) LTD,"2,890.31",18/10/2017
Delivery Units,Adults and Communities,Other Agencies - Third Party P,90023098,HILTON LODGE LTD.," 2,480.00 ",10/10/2017
Delivery Units,Adults and Communities,Other Agencies - Third Party P,90023101,HILTON LODGE LTD.," 2,880.00 ",10/10/2017
Delivery Units,Adults and Communities,Other Agencies - Third Party P,90023331,HILTON LODGE LTD.,822.86,11/10/2017
Delivery Units,Adults and Communities,Other Agencies - Third Party P,90026832,HUSKARDS NEW CARE LTD," 2,249.36 ",19/10/2017
Delivery Units,Adults and Communities,Other Agencies - Third Party P,90022163,JEWISH CARE," 4,495.25 ",02/10/2017
Delivery Units,Adults and Communities,Other Agencies - Third Party P,90022166,JEWISH CARE, 725.31 ,02/10/2017
Delivery Units,Adults and Communities,Other Agencies - Third Party P,90022445,JEWISH CARE," 5,175.54 ",05/10/2017
Delivery Units,Adults and Communities,Other Agencies - Third Party P,90022446,JEWISH CARE," 4,754.26 ",05/10/2017
Delivery Units,Adults and Communities,Other Agencies - Third Party P,90022449,JEWISH CARE," 7,497.94 ",05/10/2017
Delivery Units,Adults and Communities,Other Agencies - Third Party P,90022450,JEWISH CARE," 5,175.54 ",05/10/2017
Delivery Units,Adults and Communities,Other Agencies - Third Party P,90022451,JEWISH CARE,"7,497.94",05/10/2017
Delivery Units,Adults and Communities,Other Agencies - Third Party P,90022452,JEWISH CARE," 2,354.52 ",05/10/2017
Delivery Units,Adults and Communities,Other Agencies - Third Party P,90022453,JEWISH CARE," 5,175.54 ",05/10/2017
Delivery Units,Adults and Communities,Other Agencies - Third Party P,90022454,JEWISH CARE,"9,096.37",05/10/2017
Delivery Units,Adults and Communities,Other Agencies - Third Party P,90022455,JEWISH CARE," 6,985.16 ",05/10/2017
Delivery Units,Adults and Communities,Other Agencies - Third Party P,90022456,JEWISH CARE," 7,497.94 ",05/10/2017
Delivery Units,Adults and Communities,Other Agencies - Third Party P,90022459,JEWISH CARE,"5,175.54",05/10/2017
Delivery Units,Adults and Communities,Other Agencies - Third Party P,90022460,JEWISH CARE," 9,156.80 ",05/10/2017
Delivery Units,Adults and Communities,Other Agencies - Third Party P,90022461,JEWISH CARE," 5,175.54 ",05/10/2017
Delivery Units,Adults and Communities,Other Agencies - Third Party P,90022463,JEWISH CARE,"4,754.26",05/10/2017
Delivery Units,Adults and Communities,Other Agencies - Third Party P,90022464,JEWISH CARE,"5,175.54",05/10/2017
Delivery Units,Adults and Communities,Other Agencies - Third Party P,90022465,JEWISH CARE," 5,175.54 ",05/10/2017
Delivery Units,Adults and Communities,Other Agencies - Third Party P,90022467,JEWISH CARE,"4,216.00",05/10/2017
Delivery Units,Adults and Communities,Other Agencies - Third Party P,90022468,JEWISH CARE," 5,175.54 ",05/10/2017
Delivery Units,Adults and Communities,Other Agencies - Third Party P,90022469,JEWISH CARE," 4,752.48 ",05/10/2017
Delivery Units,Adults and Communities,Other Agencies - Third Party P,90022470,JEWISH CARE," 4,508.00 ",05/10/2017
Delivery Units,Adults and Communities,Other Agencies - Third Party P,90022471,JEWISH CARE," 4,508.00 ",05/10/2017
Delivery Units,Adults and Communities,Other Agencies - Third Party P,90022473,JEWISH CARE," 4,754.26 ",05/10/2017
Delivery Units,Adults and Communities,Other Agencies - Third Party P,90022474,JEWISH CARE," 4,754.26 ",05/10/2017
Delivery Units,Adults and Communities,Other Agencies - Third Party P,90022478,JEWISH CARE," 7,073.32 ",05/10/2017
Delivery Units,Adults and Communities,Other Agencies - Third Party P,90022479,JEWISH CARE," 5,175.54 ",05/10/2017
Delivery Units,Adults and Communities,Other Agencies - Third Party P,90022480,JEWISH CARE," 5,175.54 ",05/10/2017
Delivery Units,Adults and Communities,Other Agencies - Third Party P,90022481,JEWISH CARE,"2,501.48",05/10/2017
Delivery Units,Adults and Communities,Other Agencies - Third Party P,90022482,JEWISH CARE," 4,754.26 ",05/10/2017
Delivery Units,Adults and Communities,Other Agencies - Third Party P,90022483,JEWISH CARE," 4,754.26 ",05/10/2017
Delivery Units,Adults and Communities,Other Agencies - Third Party P,90022484,JEWISH CARE, 23.17 ,05/10/2017
Delivery Units,Adults and Communities,Other Agencies - Third Party P,90022485,JEWISH CARE,"4,754.26",05/10/2017
Delivery Units,Adults and Communities,Other Agencies - Third Party P,90022486,JEWISH CARE,"5,175.54",05/10/2017
Delivery Units,Adults and Communities,Other Agencies - Third Party P,90022487,JEWISH CARE,"4,754.26",05/10/2017
Delivery Units,Adults and Communities,Other Agencies - Third Party P,90022488,JEWISH CARE,"4,754.26",05/10/2017
Delivery Units,Adults and Communities,Other Agencies - Third Party P,90022489,JEWISH CARE," 4,754.26 ",05/10/2017
Delivery Units,Adults and Communities,Other Agencies - Third Party P,90022490,JEWISH CARE," 5,175.54 ",05/10/2017
Delivery Units,Adults and Communities,Other Agencies - Third Party P,90022491,JEWISH CARE," 7,497.94 ",05/10/2017
Delivery Units,Adults and Communities,Other Agencies - Third Party P,90022617,JEWISH CARE,"2,102.00",05/10/2017
Delivery Units,Adults and Communities,Other Agencies - Third Party P,90022629,JEWISH CARE,"5,175.54",05/10/2017
Delivery Units,Adults and Communities,Other Agencies - Third Party P,90022630,JEWISH CARE,"5,175.54",05/10/2017
Delivery Units,Adults and Communities,Other Agencies - Third Party P,90022631,JEWISH CARE," 4,754.26 ",05/10/2017
Delivery Units,Adults and Communities,Other Agencies - Third Party P,90022633,JEWISH CARE," 5,175.54 ",05/10/2017
Delivery Units,Adults and Communities,Other Agencies - Third Party P,90022634,JEWISH CARE," 5,175.54 ",05/10/2017
Delivery Units,Adults and Communities,Other Agencies - Third Party P,90022636,JEWISH CARE," 5,175.54 ",05/10/2017
Delivery Units,Adults and Communities,Other Agencies - Third Party P,90022637,JEWISH CARE,"5,175.54",05/10/2017
Delivery Units,Adults and Communities,Other Agencies - Third Party P,90022638,JEWISH CARE," 5,175.54 ",05/10/2017
Delivery Units,Adults and Communities,Other Agencies - Third Party P,90022639,JEWISH CARE,"5,175.54",05/10/2017
Delivery Units,Adults and Communities,Other Agencies - Third Party P,90022640,JEWISH CARE,"5,175.54",05/10/2017
Delivery Units,Adults and Communities,Other Agencies - Third Party P,90022642,JEWISH CARE, 776.28 ,05/10/2017
Delivery Units,Adults and Communities,Other Agencies - Third Party P,90022643,JEWISH CARE," 12,678.17 ",06/10/2017
Delivery Units,Adults and Communities,Other Agencies - Third Party P,90022648,JEWISH CARE,"5,175.54",06/10/2017
Delivery Units,Adults and Communities,Other Agencies - Third Party P,90022649,JEWISH CARE," 5,175.54 ",06/10/2017
Delivery Units,Adults and Communities,Other Agencies - Third Party P,90022652,JEWISH CARE,"5,175.54",06/10/2017
Delivery Units,Adults and Communities,Other Agencies - Third Party P,90022653,JEWISH CARE," 5,175.54 ",06/10/2017
Delivery Units,Adults and Communities,Other Agencies - Third Party P,90022654,JEWISH CARE,"5,175.54",06/10/2017
Delivery Units,Adults and Communities,Other Agencies - Third Party P,90022655,JEWISH CARE," 5,175.54 ",06/10/2017
Delivery Units,Adults and Communities,Other Agencies - Third Party P,90022657,JEWISH CARE,"5,175.54",06/10/2017
Delivery Units,Adults and Communities,Other Agencies - Third Party P,90022658,JEWISH CARE," 5,175.54 ",06/10/2017
Delivery Units,Adults and Communities,Other Agencies - Third Party P,90022661,JEWISH CARE," 5,175.54 ",06/10/2017
Delivery Units,Adults and Communities,Other Agencies - Third Party P,90026029,JEWISH CARE," 5,324.74 ",17/10/2017
Delivery Units,Adults and Communities,Other Agencies - Third Party P,90027963,JEWISH CARE," 2,102.00 ",24/10/2017
Delivery Units,Adults and Communities,Other Agencies - Third Party P,90027970,JEWISH CARE," 2,218.68 ",24/10/2017
Delivery Units,Adults and Communities,Other Agencies - Third Party P,90027984,JEWISH CARE," 2,415.28 ",24/10/2017
Delivery Units,Adults and Communities,Other Agencies - Third Party P,90027985,JEWISH CARE," 2,218.68 ",24/10/2017
Delivery Units,Adults and Communities,Other Agencies - Third Party P,90027986,JEWISH CARE," 2,218.68 ",24/10/2017
Delivery Units,Adults and Communities,Other Agencies - Third Party P,90027988,JEWISH CARE,"2,218.68",24/10/2017
Delivery Units,Adults and Communities,Other Agencies - Third Party P,90027989,JEWISH CARE,"2,218.68",24/10/2017
Delivery Units,Adults and Communities,Other Agencies - Third Party P,90027990,JEWISH CARE,"2,218.68",24/10/2017
Delivery Units,Adults and Communities,Other Agencies - Third Party P,90027991,JEWISH CARE,"2,218.68",24/10/2017
Delivery Units,Adults and Communities,Other Agencies - Third Party P,90027992,JEWISH CARE," 2,415.28 ",24/10/2017
Delivery Units,Adults and Communities,Other Agencies - Third Party P,90027993,JEWISH CARE,"2,415.28",24/10/2017
Delivery Units,Adults and Communities,Other Agencies - Third Party P,90027994,JEWISH CARE,"2,218.68",24/10/2017
Delivery Units,Adults and Communities,Other Agencies - Third Party P,90028187,JEWISH CARE,"2,415.28",26/10/2017
Delivery Units,Adults and Communities,Other Agencies - Third Party P,90028188,JEWISH CARE,"2,415.28",26/10/2017
Delivery Units,Adults and Communities,Other Agencies - Third Party P,90028190,JEWISH CARE,"2,415.28",26/10/2017
Delivery Units,Adults and Communities,Other Agencies - Third Party P,90028191,JEWISH CARE,"2,415.28",26/10/2017
Delivery Units,Adults and Communities,Other Agencies - Third Party P,90028192,JEWISH CARE,"2,415.28",26/10/2017
Delivery Units,Adults and Communities,Other Agencies - Third Party P,90028194,JEWISH CARE,"2,415.28",26/10/2017
Delivery Units,Adults and Communities,Other Agencies - Third Party P,90028195,JEWISH CARE,"2,415.28",26/10/2017
Delivery Units,Adults and Communities,Other Agencies - Third Party P,90028198,JEWISH CARE," 2,415.28 ",26/10/2017
Delivery Units,Adults and Communities,Other Agencies - Third Party P,90028202,JEWISH CARE,"2,415.28",26/10/2017
Delivery Units,Adults and Communities,Other Agencies - Third Party P,90028203,JEWISH CARE,"2,415.28",26/10/2017
Delivery Units,Adults and Communities,Other Agencies - Third Party P,90028204,JEWISH CARE," 4,216.00 ",26/10/2017
Delivery Units,Adults and Communities,Other Agencies - Third Party P,90028205,JEWISH CARE,"2,218.68",26/10/2017
Delivery Units,Adults and Communities,Other Agencies - Third Party P,90028206,JEWISH CARE," 4,508.00 ",26/10/2017
Delivery Units,Adults and Communities,Other Agencies - Third Party P,90028208,JEWISH CARE," 2,218.68 ",26/10/2017
Delivery Units,Adults and Communities,Other Agencies - Third Party P,90028209,JEWISH CARE,"2,218.68",26/10/2017
Delivery Units,Adults and Communities,Other Agencies - Third Party P,90028212,JEWISH CARE," 2,218.68 ",26/10/2017
Delivery Units,Adults and Communities,Other Agencies - Third Party P,90028213,JEWISH CARE," 2,415.28 ",26/10/2017
Delivery Units,Adults and Communities,Other Agencies - Third Party P,90028214,JEWISH CARE,"2,415.28",26/10/2017
Delivery Units,Adults and Communities,Other Agencies - Third Party P,90028215,JEWISH CARE," 2,218.68 ",26/10/2017
Delivery Units,Adults and Communities,Other Agencies - Third Party P,90028216,JEWISH CARE," 2,218.68 ",26/10/2017
Delivery Units,Adults and Communities,Other Agencies - Third Party P,90028217,JEWISH CARE," 2,218.68 ",26/10/2017
Delivery Units,Adults and Communities,Other Agencies - Third Party P,90028218,JEWISH CARE," 2,218.68 ",26/10/2017
Delivery Units,Adults and Communities,Other Agencies - Third Party P,90028219,JEWISH CARE," 2,218.68 ",26/10/2017
Delivery Units,Adults and Communities,Other Agencies - Third Party P,90028220,JEWISH CARE," 2,218.68 ",26/10/2017
Delivery Units,Adults and Communities,Other Agencies - Third Party P,90028221,JEWISH CARE,"2,415.28",26/10/2017
Delivery Units,Adults and Communities,Other Agencies - Third Party P,90028222,JEWISH CARE,"2,415.28",26/10/2017
Delivery Units,Adults and Communities,Other Agencies - Third Party P,90028223,JEWISH CARE," 2,415.28 ",26/10/2017
Delivery Units,Adults and Communities,Other Agencies - Third Party P,90028224,JEWISH CARE," 2,415.28 ",26/10/2017
Delivery Units,Adults and Communities,Other Agencies - Third Party P,90028225,JEWISH CARE,"2,218.68",26/10/2017
Delivery Units,Adults and Communities,Other Agencies - Third Party P,90028228,JEWISH CARE," 2,415.28 ",26/10/2017
Delivery Units,Adults and Communities,Other Agencies - Third Party P,90028229,JEWISH CARE," 2,415.28 ",26/10/2017
Delivery Units,Adults and Communities,Other Agencies - Third Party P,90028230,JEWISH CARE,"2,415.28",26/10/2017
Delivery Units,Adults and Communities,Other Agencies - Third Party P,90028231,JEWISH CARE," 2,415.28 ",26/10/2017
Delivery Units,Adults and Communities,Other Agencies - Third Party P,90028232,JEWISH CARE," 2,415.28 ",26/10/2017
Delivery Units,Adults and Communities,Other Agencies - Third Party P,90028233,JEWISH CARE," 2,218.68 ",26/10/2017
Delivery Units,Adults and Communities,Other Agencies - Third Party P,90028234,JEWISH CARE," 2,218.68 ",26/10/2017
Delivery Units,Adults and Communities,Other Agencies - Third Party P,90028235,JEWISH CARE," 2,415.28 ",26/10/2017
Delivery Units,Adults and Communities,Other Agencies - Third Party P,90028238,JEWISH CARE," 2,415.28 ",26/10/2017
Delivery Units,Adults and Communities,Other Agencies - Third Party P,90028239,JEWISH CARE," 2,415.28 ",26/10/2017
Delivery Units,Adults and Communities,Other Agencies - Third Party P,90028240,JEWISH CARE,"2,415.28",26/10/2017
Delivery Units,Adults and Communities,Other Agencies - Third Party P,90028242,JEWISH CARE," 2,415.28 ",26/10/2017
Delivery Units,Adults and Communities,Other Agencies - Third Party P,90028243,JEWISH CARE," 2,218.68 ",26/10/2017
Delivery Units,Adults and Communities,Other Agencies - Third Party P,90028268,JEWISH CARE,"2,415.28",26/10/2017
Delivery Units,Adults and Communities,Other Agencies - Third Party P,90028269,JEWISH CARE," 2,415.28 ",26/10/2017
Delivery Units,Adults and Communities,Other Agencies - Third Party P,90028270,JEWISH CARE," 2,218.68 ",26/10/2017
Delivery Units,Adults and Communities,Other Agencies - Third Party P,90028272,JEWISH CARE," 2,415.28 ",26/10/2017
Delivery Units,Adults and Communities,Other Agencies - Third Party P,90028273,JEWISH CARE," 2,415.28 ",26/10/2017
Delivery Units,Adults and Communities,Other Agencies - Third Party P,90028275,JEWISH CARE," 2,415.28 ",26/10/2017
Delivery Units,Adults and Communities,Other Agencies - Third Party P,90028276,JEWISH CARE," 2,415.28 ",26/10/2017
Delivery Units,Adults and Communities,Other Agencies - Third Party P,90028277,JEWISH CARE," 2,415.28 ",26/10/2017
Delivery Units,Adults and Communities,Other Agencies - Third Party P,90028278,JEWISH CARE," 2,415.28 ",26/10/2017
Delivery Units,Adults and Communities,Other Agencies - Third Party P,90028279,JEWISH CARE," 2,415.28 ",26/10/2017
Delivery Units,Adults and Communities,Other Agencies - Third Party P,90028280,JEWISH CARE," 2,415.28 ",26/10/2017
Delivery Units,Adults and Communities,Other Agencies - Third Party P,90028281,JEWISH CARE,"2,415.28",26/10/2017
Delivery Units,Adults and Communities,Other Agencies - Third Party P,90028283,JEWISH CARE,"2,415.28",26/10/2017
Delivery Units,Adults and Communities,Other Agencies - Third Party P,90026606,KARUNA MANOR," 3,985.71 ",18/10/2017
Delivery Units,Adults and Communities,Other Agencies - Third Party P,90029381,KARUNA MANOR,"3,848.71",31/10/2017
Delivery Units,Adults and Communities,Other Agencies - Third Party P,90023369,LEEMING BAR CARE HOME," 2,141.70 ",11/10/2017
Delivery Units,Adults and Communities,Other Agencies - Third Party P,90023107,LEWIS.W.HAMMERSON MEMORIAL HOME," 2,310.34 ",09/10/2017
Delivery Units,Adults and Communities,Other Agencies - Third Party P,90023108,LEWIS.W.HAMMERSON MEMORIAL HOME,"2,310.34",09/10/2017
Delivery Units,Adults and Communities,Other Agencies - Third Party P,90023110,LEWIS.W.HAMMERSON MEMORIAL HOME," 2,310.34 ",09/10/2017
Delivery Units,Adults and Communities,Other Agencies - Third Party P,90026047,LEWIS.W.HAMMERSON MEMORIAL HOME," 2,310.34 ",17/10/2017
Delivery Units,Adults and Communities,Other Agencies - Third Party P,90023111,MADELAYNE COURT," 2,144.91 ",09/10/2017
Delivery Units,Adults and Communities,Other Agencies - Third Party P,90028690,MADELAYNE COURT," 2,216.41 ",30/10/2017
Delivery Units,Adults and Communities,Other Agencies - Third Party P,90025717,NAZARETH HOUSE," 2,031.76 ",17/10/2017
Delivery Units,Adults and Communities,Other Agencies - Third Party P,90025718,NAZARETH HOUSE," 3,036.00 ",17/10/2017
Delivery Units,Adults and Communities,Other Agencies - Third Party P,90025719,NAZARETH HOUSE," 2,031.76 ",17/10/2017
Delivery Units,Adults and Communities,Other Agencies - Third Party P,90025720,NAZARETH HOUSE," 2,031.76 ",17/10/2017
Delivery Units,Adults and Communities,Other Agencies - Third Party P,90025721,NAZARETH HOUSE,"2,031.76",17/10/2017
Delivery Units,Adults and Communities,Other Agencies - Third Party P,90025722,NAZARETH HOUSE," 2,031.76 ",17/10/2017
Delivery Units,Adults and Communities,Other Agencies - Third Party P,90025724,NAZARETH HOUSE," 2,650.40 ",17/10/2017
Delivery Units,Adults and Communities,Other Agencies - Third Party P,90025725,NAZARETH HOUSE," 2,211.80 ",17/10/2017
Delivery Units,Adults and Communities,Other Agencies - Third Party P,90025726,NAZARETH HOUSE,"2,031.76",17/10/2017
Delivery Units,Adults and Communities,Other Agencies - Third Party P,90025727,NAZARETH HOUSE," 2,031.76 ",17/10/2017
Delivery Units,Adults and Communities,Other Agencies - Third Party P,90025728,NAZARETH HOUSE," 2,031.76 ",17/10/2017
Delivery Units,Adults and Communities,Other Agencies - Third Party P,90025729,NAZARETH HOUSE," 2,211.80 ",17/10/2017
Delivery Units,Adults and Communities,Other Agencies - Third Party P,90025730,NAZARETH HOUSE,"2,031.76",17/10/2017
Delivery Units,Adults and Communities,Other Agencies - Third Party P,90025731,NAZARETH HOUSE,"2,031.76",17/10/2017
Delivery Units,Adults and Communities,Other Agencies - Third Party P,90025732,NAZARETH HOUSE,"2,031.76",17/10/2017
Delivery Units,Adults and Communities,Other Agencies - Third Party P,90025733,NAZARETH HOUSE," 2,031.76 ",17/10/2017
Delivery Units,Adults and Communities,Other Agencies - Third Party P,30107645,NIGHTINGALE HOUSE,"(1,465.71)",17/10/2017
Delivery Units,Adults and Communities,Other Agencies - Third Party P,90027157,PARCS HEALTHCARE LTD - VRANDAN CARE HOME," 2,080.00 ",24/10/2017
Delivery Units,Adults and Communities,Other Agencies - Third Party P,90028688,PARCS HEALTHCARE LTD - VRANDAN CARE HOME,"3,045.71",30/10/2017
Delivery Units,Adults and Communities,Other Agencies - Third Party P,90023724,QUANTUM CARE LIMITED," 2,369.79 ",13/10/2017
Delivery Units,Adults and Communities,Other Agencies - Third Party P,90022320,SAGE NURSING HOME,385.71,03/10/2017
Delivery Units,Adults and Communities,Other Agencies - Third Party P,90023709,SAGE NURSING HOME," 3,857.10 ",13/10/2017
Delivery Units,Adults and Communities,Other Agencies - Third Party P,90023712,SAGE NURSING HOME,"2,176.89",13/10/2017
Delivery Units,Adults and Communities,Other Agencies - Third Party P,90023715,SAGE NURSING HOME,"2,571.43",13/10/2017
Delivery Units,Adults and Communities,Other Agencies - Third Party P,90028680,SAGE NURSING HOME,"2,249.45",30/10/2017
Delivery Units,Adults and Communities,Other Agencies - Third Party P,90028683,SAGE NURSING HOME,"2,657.14",30/10/2017
Delivery Units,Adults and Communities,Other Agencies - Third Party P,90023105,SCIMITAR CARE HOTELS PLC,491.79,09/10/2017
Delivery Units,Adults and Communities,Other Agencies - Third Party P,90025768,SCIMITAR CARE HOTELS PLC," 3,976.86 ",30/10/2017
Delivery Units,Adults and Communities,Other Agencies - Third Party P,90025769,SCIMITAR CARE HOTELS PLC,"3,421.07",30/10/2017
Delivery Units,Adults and Communities,Other Agencies - Third Party P,90028718,SEVA CARE HOME," 2,216.41 ",30/10/2017
Delivery Units,Adults and Communities,Other Agencies - Third Party P,90028719,SEVA CARE HOME," 2,216.41 ",30/10/2017
Delivery Units,Adults and Communities,Other Agencies - Third Party P,90025734,THE CHRISTIAN CARE TRUST," 2,211.80 ",17/10/2017
Delivery Units,Adults and Communities,Other Agencies - Third Party P,30172224,THE CHRISTIAN CARE TRUST, 360.64 ,30/10/2017
Delivery Units,Adults and Communities,Other Agencies - Third Party P,90028687,THE CHRISTIAN CARE TRUST," 1,343.67 ",30/10/2017
Delivery Units,Adults and Communities,Other Agencies - Third Party P,30171338,THE LIMES RESIDENTIAL HOME, 145.13 ,05/10/2017
Delivery Units,Adults and Communities,Other Agencies - Third Party P,90022318,THE LIMES RESIDENTIAL HOME,"2,031.76",05/10/2017
Delivery Units,Adults and Communities,Other Agencies - Third Party P,90023687,THE LIMES RESIDENTIAL HOME," 2,249.45 ",18/10/2017
Delivery Units,Adults and Communities,Other Agencies - Third Party P,90023689,THE LIMES RESIDENTIAL HOME," 2,249.45 ",18/10/2017
Delivery Units,Adults and Communities,Other Agencies - Third Party P,90023690,THE LIMES RESIDENTIAL HOME," 2,448.78 ",18/10/2017
Delivery Units,Adults and Communities,Other Agencies - Third Party P,90023692,THE LIMES RESIDENTIAL HOME," 2,448.78 ",18/10/2017
Delivery Units,Adults and Communities,Other Agencies - Third Party P,90023693,THE LIMES RESIDENTIAL HOME," 2,878.57 ",18/10/2017
Delivery Units,Adults and Communities,Other Agencies - Third Party P,90023695,THE LIMES RESIDENTIAL HOME," 2,448.78 ",18/10/2017
Delivery Units,Adults and Communities,Other Agencies - Third Party P,90023696,THE LIMES RESIDENTIAL HOME," 2,448.78 ",18/10/2017
Delivery Units,Adults and Communities,Other Agencies - Third Party P,90023697,THE LIMES RESIDENTIAL HOME," 2,448.78 ",18/10/2017
Delivery Units,Adults and Communities,Other Agencies - Third Party P,90023698,THE LIMES RESIDENTIAL HOME," 2,249.45 ",18/10/2017
Delivery Units,Adults and Communities,Other Agencies - Third Party P,90023699,THE LIMES RESIDENTIAL HOME," 2,249.45 ",18/10/2017
Delivery Units,Adults and Communities,Other Agencies - Third Party P,90023701,THE LIMES RESIDENTIAL HOME," 2,448.78 ",18/10/2017
Delivery Units,Adults and Communities,Other Agencies - Third Party P,90026038,THE WINDMILL CARE HOME," 1,872.40 ",17/10/2017
Delivery Units,Adults and Communities,Other Agencies - Third Party P,90023373,VENTRY RESIDENTIAL CARE LTD," 2,211.80 ",11/10/2017
Delivery Units,Adults and Communities,Other Agencies - Third Party P,90026043,Z & M CARE LTD,"2,322.40",17/10/2017
Delivery Units,Adults and Communities,Other Agencies - Third Party P,90021699,LEO BAECK HOUSING ASSOC. LTD," 2,176.89 ",04/10/2017
Delivery Units,Adults and Communities,Other Agencies - Third Party P,90021701,LEO BAECK HOUSING ASSOC. LTD,"2,369.79",04/10/2017
Delivery Units,Adults and Communities,Other Agencies - Third Party P,90021702,LEO BAECK HOUSING ASSOC. LTD,"2,285.74",04/10/2017
Delivery Units,Adults and Communities,Other Agencies - Third Party P,90026612,SUNRIDGE HOUSING ASSOCIATION LTD," 2,989.58 ",18/10/2017
Delivery Units,Adults and Communities,Other Agencies - Third Party P,90026613,SUNRIDGE HOUSING ASSOCIATION LTD," 2,902.40 ",18/10/2017
Delivery Units,Adults and Communities,Other Agencies - Third Party P,90025756,THE GRANGE," 2,300.28 ",17/10/2017
Delivery Units,Adults and Communities,Other Agencies - Third Party P,90025760,THE GRANGE," 2,496.00 ",17/10/2017
Delivery Units,Adults and Communities,Other Agencies - Third Party P,90029376,LIVABILITY,"2,400.00",31/10/2017
Delivery Units,Adults and Communities,Other Agencies - Third Party P,90025746,R.M.B.I,"2,249.45",17/10/2017
Delivery Units,Adults and Communities,Other Agencies - Third Party P,30171286,ACER HEALTHCARE OPERATIONS LTD," 1,900.00 ",03/10/2017
Delivery Units,Adults and Communities,Other Agencies - Third Party P,90025748,AUTUMN GARDENS," 3,160.00 ",17/10/2017
Delivery Units,Adults and Communities,Other Agencies - Third Party P,90025749,AUTUMN GARDENS," 4,800.00 ",17/10/2017
Delivery Units,Adults and Communities,Other Agencies - Third Party P,90025753,AUTUMN GARDENS," 2,880.00 ",17/10/2017
Delivery Units,Adults and Communities,Other Agencies - Third Party P,90026597,CARLTON COURT (TLC GROUP)," 2,249.45 ",18/10/2017
Delivery Units,Adults and Communities,Other Agencies - Third Party P,90023322,CATHERINE LODGE," 2,211.80 ",12/10/2017
Delivery Units,Adults and Communities,Other Agencies - Third Party P,90023324,CATHERINE LODGE," 2,211.80 ",12/10/2017
Delivery Units,Adults and Communities,Other Agencies - Third Party P,90023326,CATHERINE LODGE," 2,211.80 ",12/10/2017
Delivery Units,Adults and Communities,Other Agencies - Third Party P,90023327,CATHERINE LODGE," 2,920.00 ",12/10/2017
Delivery Units,Adults and Communities,Other Agencies - Third Party P,90026044,CATHERINE LODGE," 3,040.00 ",17/10/2017
Delivery Units,Adults and Communities,Other Agencies - Third Party P,90023224,DR FRENCH MEMORIAL HOME LTD," 2,369.79 ",13/10/2017
Delivery Units,Adults and Communities,Other Agencies - Third Party P,90023225,DR FRENCH MEMORIAL HOME LTD,"2,448.78",13/10/2017
